{"text_format":"1","workbook":"xlsx","n_sheets":6,"sheets":["Portada","Intro","entrada datos Edificación","entrada datos Urbanizacion","resultados","CALCULO_EDIF"],"not_rendered":{"charts":8,"images":2,"macros":1,"external_links":1,"defined_names":1,"comments":0,"pivot_tables":0},"unopened":[],"bounds":{"document_bytes":16777216,"sheet_cells":100000,"rows_first":2000,"rows_last":500,"rows_between":2000,"halvings":0,"cell_chars":16384,"cell_head_chars":4096},"cells_cut":0,"cells_raw":0,"read":"whole","date_system":"1900"}

{"sheet":"Portada","index":0,"n_rows":0,"n_cols":0,"rows_kept":0,"cut":false,"hidden":false,"merged":[]}

{"sheet":"Intro","index":1,"n_rows":28,"n_cols":10,"rows_kept":28,"cut":false,"hidden":false,"merged":[[25,2,25,3],[26,2,26,3],[27,2,27,3],[22,2,22,3],[10,1,10,3],[20,2,20,3],[24,1,24,3],[16,2,16,3],[18,2,18,3],[21,2,21,3],[23,2,23,3],[14,2,14,3],[17,2,17,3],[19,1,19,3],[11,2,11,3],[12,2,12,3],[13,2,13,3],[3,1,3,3],[4,2,4,3],[5,2,5,3],[6,2,6,3],[7,2,7,3],[5,1,9,1],[8,2,8,3],[9,2,9,3]]}
[]
[]
[]
[null,"Agentes"]
[null,"Promotor"]
[null,"Proyectistas, Constructor y otros Agentes"]
[]
[]
[]
[]
[null,"Emplazamiento de la obra"]
[null,"Denominación de la obra"]
[null,"Dirección"]
[null,"Municipio"]
[null,"Territorio Histórico","Bizkaia"]
[null,"Coordenadas UTM"]
[null,"Superficie parcela [m2]"]
[null,"Superficie construida edificio [m2]"]
[null,"Superficie construida urbanización [m2]"]
[null,"Tipo de obra",null,null,null,"Araba","Obra nueva","Vivienda","Edificación","Proyecto"]
[null,"Tipo de actuación","Rehabilitación",null,null,"Bizkaia","Rehabilitación","Administrativo","Urbanización","Obra terminada"]
[null,"Uso","Vivienda",null,null,"Gipuzkoa",null,"Comercial","Edificación y Urbanización"]
[null,"Alcance","Edificación",null,null,"Otro",null,"Industrial"]
[null,"Fase","Proyecto"]
[null,"Calculos realizados por"]
[null,"Nombre"]
[null,"Cargo"]
[null,"Fecha"]

{"sheet":"entrada datos Edificación","index":2,"n_rows":172,"n_cols":21,"rows_kept":172,"cut":false,"hidden":false,"merged":[[94,14,94,15],[111,14,111,15],[1,14,1,15],[11,14,11,15],[26,14,26,15],[58,14,58,15],[78,14,78,15],[95,20,100,20],[102,20,104,20],[106,20,108,20],[133,20,137,20],[112,20,122,20],[124,20,131,20],[2,20,4,20],[6,20,8,20],[12,20,13,20],[15,20,19,20],[27,20,35,20],[79,20,88,20],[90,20,91,20],[37,20,45,20],[47,20,50,20],[52,20,55,20],[59,20,69,20],[71,20,75,20],[165,20,170,20],[140,14,140,15],[141,20,145,20],[147,20,151,20],[158,20,163,20],[153,20,156,20]]}
["Valor:"]
[null,"fila empieza","Fila termina","Lista asociada","Para poner en la lista",null,"ACONDICIONAMIENTO Y CIMENTACION",null,"m3","o","Kg","d","kg","Material seleccionado","% reciclado",null,null,"Material\nReciclado\n[Kg]","Material\nno Reciclado\n[Kg]",null,"Material Reciclado\n[%]"]
[{"$f":"CONCATENATE(\"CALCULO_EDIF!\",\"C\",C3,\":\",\"D\",D3)","v":"CALCULO_EDIF!C24:D1"},{"$f":"IF(D3=1,1,(D3*25-1))","v":1},{"$f":"IF(D3=1,24,B3+24)","v":24},1,{"$f":"CONCATENATE(\"CALCULO_EDIF!\",\"C\",B3,\":\",\"C\",C3)","v":"CALCULO_EDIF!C1:C24"},null,"CIMENTACIONES","hormigón zapatas y pilotes",50,null,null,2500,{"$f":"IF(AND(ISBLANK(I3)*ISBLANK(K3)),\"-\",IF(AND(NOT(ISBLANK(I3))*NOT(ISBLANK(K3))),\"Error\",IF(ISBLANK(I3),K3,I3*L3)))","v":125000},"Cemento CEM I-Cementos Lemona, S.A. ",{"$f":"IF(N3=\"Otro\",$A$1,VLOOKUP(N3, INDIRECT(A3),2,FALSE))","v":0.03},0.4,null,{"$f":"IF(O3=\"Valor:\",M3*P3,M3*O3)","v":3750},{"$f":"M3-R3","v":121250},null,{"$f":"SUM(R3:R5)/SUM(M3:M5)","v":0.23328699469544542}]
[{"$f":"CONCATENATE(\"CALCULO_EDIF!\",\"C\",C4,\":\",\"D\",D4)","v":"CALCULO_EDIF!C49:D2"},{"$f":"IF(D4=1,1,(D4-1)*25)","v":25},{"$f":"IF(D4=1,24,B4+24)","v":49},2,{"$f":"CONCATENATE(\"CALCULO_EDIF!\",\"C\",B4,\":\",\"C\",C4)","v":"CALCULO_EDIF!C25:C49"},null,null,"hormigón losas y soleras",null,null,10,2500,{"$f":"IF(AND(ISBLANK(I4)*ISBLANK(K4)),\"-\",IF(AND(NOT(ISBLANK(I4))*NOT(ISBLANK(K4))),\"Error\",IF(ISBLANK(I4),K4,I4*L4)))","v":10},"Cemento CEM I-Cementos Lemona, S.A. ",{"$f":"IF(N4=\"Otro\",$A$1,VLOOKUP(N4, INDIRECT(A4),2,FALSE))","v":0.03},0.4,null,{"$f":"IF(O4=\"Valor:\",M4*P4,M4*O4)","v":0.3},{"$f":"M4-R4","v":9.6999999999999993}]
["CALCULO_EDIF!C74:D3",{"$f":"IF(D5=1,1,(D5-1)*25)","v":50},74,3,"CALCULO_EDIF!C50:C74",null,null,"acero  armaduras",5,null,null,7800,{"$f":"IF(AND(ISBLANK(I5)*ISBLANK(K5)),\"-\",IF(AND(NOT(ISBLANK(I5))*NOT(ISBLANK(K5))),\"Error\",IF(ISBLANK(I5),K5,I5*L5)))","v":39000},"Barras Corrugadas- Arcelor Mittal",{"$f":"IF(N5=\"Otro\",$A$1,VLOOKUP(N5, INDIRECT(A5),2,FALSE))","v":0.88490000000000002},0.4,null,{"$f":"IF(O5=\"Valor:\",M5*P5,M5*O5)","v":34511.1},{"$f":"M5-R5","v":4488.9000000000015}]
[]
["CALCULO_EDIF!C99:D4",75,99,4,{"$f":"CONCATENATE(\"CALCULO_EDIF!\",\"C\",B7,\":\",\"C\",C7)","v":"CALCULO_EDIF!C75:C99"},null,"ACONDICIONAMIENTO DEL TERRENO","material de explanadas, terraplenes o afines",null,null,20,2050,{"$f":"IF(AND(ISBLANK(I7)*ISBLANK(K7)),\"-\",IF(AND(NOT(ISBLANK(I7))*NOT(ISBLANK(K7))),\"Error\",IF(ISBLANK(I7),K7,I7*L7)))","v":20},"material n02",{"$f":"IF(N7=\"Otro\",$A$1,VLOOKUP(N7, INDIRECT(A7),2,FALSE))","v":0.1},0.4,null,{"$f":"IF(O7=\"Valor:\",M7*P7,M7*O7)","v":2},{"$f":"M7-R7","v":18},null,{"$f":"SUM(R7:R9)/SUM(M7:M9)","v":0.2851503759398496}]
["CALCULO_EDIF!C124:D5",{"$f":"IF(D8=1,1,(D8-1)*25)","v":100},124,5,{"$f":"CONCATENATE(\"CALCULO_EDIF!\",\"C\",B8,\":\",\"C\",C8)","v":"CALCULO_EDIF!C100:C124"},null,null,"rellenos",3,null,null,1600,{"$f":"IF(AND(ISBLANK(I8)*ISBLANK(K8)),\"-\",IF(AND(NOT(ISBLANK(I8))*NOT(ISBLANK(K8))),\"Error\",IF(ISBLANK(I8),K8,I8*L8)))","v":4800},"Otro",{"$f":"IF(N8=\"Otro\",$A$1,VLOOKUP(N8, INDIRECT(A8),2,FALSE))","v":"Valor:"},0.3,null,{"$f":"IF(O8=\"Valor:\",M8*P8,M8*O8)","v":1440},{"$f":"M8-R8","v":3360}]
["CALCULO_EDIF!C149:D6",125,149,6,"CALCULO_EDIF!C125:C149",null,null,"zahorras",null,null,500,2200,{"$f":"IF(AND(ISBLANK(I9)*ISBLANK(K9)),\"-\",IF(AND(NOT(ISBLANK(I9))*NOT(ISBLANK(K9))),\"Error\",IF(ISBLANK(I9),K9,I9*L9)))","v":500},"material n03",{"$f":"IF(N9=\"Otro\",$A$1,VLOOKUP(N9, INDIRECT(A9),2,FALSE))","v":0.15},0.4,null,{"$f":"IF(O9=\"Valor:\",M9*P9,M9*O9)","v":75},{"$f":"M9-R9","v":425}]
[null,null,null,null,null,null,null,null,null,null,null,null,null,null,null,null,null,{"$f":"SUM(R3:R9)","v":39778.400000000001},{"$f":"SUM(S3:S9)","v":129551.6},null,{"$f":"R10/(R10+S10)","v":0.23491643536290086}]
[]
[null,null,null,null,null,null,"ESTRUCTURA",null,"m3",null,null,"d","kg",null,"% reciclado",null,null,"Material\nReciclado\n[Kg]","Material\nno Reciclado\n[Kg]",null,"Material Reciclado\n[%]"]
["CALCULO_EDIF!C174:D7",{"$f":"IF(D13=1,1,(D13-1)*25)","v":150},174,7,{"$f":"CONCATENATE(\"CALCULO_EDIF!\",\"C\",B13,\":\",\"C\",C13)","v":"CALCULO_EDIF!C150:C174"},null,"ACERO","pilares, vigas y viguetas",15,null,null,7800,{"$f":"IF(AND(ISBLANK(I13)*ISBLANK(K13)),\"-\",IF(AND(NOT(ISBLANK(I13))*NOT(ISBLANK(K13))),\"Error\",IF(ISBLANK(I13),K13,I13*L13)))","v":117000},"Barras y perfiles-ArcelorMittal",{"$f":"IF(N13=\"Otro\",$A$1,VLOOKUP(N13, INDIRECT(A13),2,FALSE))","v":0.88980000000000004},0.4,null,{"$f":"IF(O13=\"Valor:\",M13*P13,M13*O13)","v":104106.6},{"$f":"M13-R13","v":12893.399999999994},null,{"$f":"SUM(R13:R14)/SUM(M13:M14)","v":0.88967356007520082}]
["CALCULO_EDIF!C199:D8",{"$f":"IF(D14=1,1,(D14-1)*25)","v":175},199,8,"CALCULO_EDIF!C175:C199",null,null,"chapa metálica",null,null,20,7800,{"$f":"IF(AND(ISBLANK(I14)*ISBLANK(K14)),\"-\",IF(AND(NOT(ISBLANK(I14))*NOT(ISBLANK(K14))),\"Error\",IF(ISBLANK(I14),K14,I14*L14)))","v":20},"material n03",{"$f":"IF(N14=\"Otro\",$A$1,VLOOKUP(N14, INDIRECT(A14),2,FALSE))","v":0.15},0.4,null,{"$f":"IF(O14=\"Valor:\",M14*P14,M14*O14)","v":3},{"$f":"M14-R14","v":17}]
[]
["CALCULO_EDIF!C224:D9",200,224,9,"CALCULO_EDIF!C200:C224",null,"HORMIGON","hormigón vigas y pilares",2,null,null,2500,{"$f":"IF(AND(ISBLANK(I16)*ISBLANK(K16)),\"-\",IF(AND(NOT(ISBLANK(I16))*NOT(ISBLANK(K16))),\"Error\",IF(ISBLANK(I16),K16,I16*L16)))","v":5000},"material n06",{"$f":"IF(N16=\"Otro\",$A$1,VLOOKUP(N16, INDIRECT(A16),2,FALSE))","v":0.3},0.4,null,{"$f":"IF(O16=\"Valor:\",M16*P16,M16*O16)","v":1500},{"$f":"M16-R16","v":3500},null,{"$f":"SUM(R16:R20)/SUM(M16:M20)","v":0.30194454943132104}]
["CALCULO_EDIF!C249:D10",225,249,10,"CALCULO_EDIF!C225:C249",null,null,"hormigón losas y forjados",null,null,44,2500,{"$f":"IF(AND(ISBLANK(I17)*ISBLANK(K17)),\"-\",IF(AND(NOT(ISBLANK(I17))*NOT(ISBLANK(K17))),\"Error\",IF(ISBLANK(I17),K17,I17*L17)))","v":44},"material n06",{"$f":"IF(N17=\"Otro\",$A$1,VLOOKUP(N17, INDIRECT(A17),2,FALSE))","v":0.3},0.4,null,{"$f":"IF(O17=\"Valor:\",M17*P17,M17*O17)","v":13.2},{"$f":"M17-R17","v":30.8}]
[{"$f":"CONCATENATE(\"CALCULO_EDIF!\",\"C\",C18,\":\",\"D\",D18)","v":"CALCULO_EDIF!C274:D11"},{"$f":"IF(D18=1,1,(D18-1)*25)","v":250},{"$f":"IF(D18=1,24,B18+24)","v":274},11,{"$f":"CONCATENATE(\"CALCULO_EDIF!\",\"C\",B18,\":\",\"C\",C18)","v":"CALCULO_EDIF!C250:C274"},null,null,"soleras",null,null,44,2500,{"$f":"IF(AND(ISBLANK(I18)*ISBLANK(K18)),\"-\",IF(AND(NOT(ISBLANK(I18))*NOT(ISBLANK(K18))),\"Error\",IF(ISBLANK(I18),K18,I18*L18)))","v":44},"material n06",{"$f":"IF(N18=\"Otro\",$A$1,VLOOKUP(N18, INDIRECT(A18),2,FALSE))","v":0.3},0.4,null,{"$f":"IF(O18=\"Valor:\",M18*P18,M18*O18)","v":13.2},{"$f":"M18-R18","v":30.8}]
["CALCULO_EDIF!C299:D12",275,299,12,"CALCULO_EDIF!C275:C299",null,null,"acero armaduras",null,null,57,7800,{"$f":"IF(AND(ISBLANK(I19)*ISBLANK(K19)),\"-\",IF(AND(NOT(ISBLANK(I19))*NOT(ISBLANK(K19))),\"Error\",IF(ISBLANK(I19),K19,I19*L19)))","v":57},"Barras Corrugadas- Arcelor Mittal",{"$f":"IF(N19=\"Otro\",$A$1,VLOOKUP(N19, INDIRECT(A19),2,FALSE))","v":0.88490000000000002},0.4,null,{"$f":"IF(O19=\"Valor:\",M19*P19,M19*O19)","v":50.439300000000003},{"$f":"M19-R19","v":6.5606999999999971}]
["CALCULO_EDIF!C324:D13",300,324,13,"CALCULO_EDIF!C300:C324",null,null,"viguetas prefabricadas de hormigón",5,null,null,2400,{"$f":"IF(AND(ISBLANK(I20)*ISBLANK(K20)),\"-\",IF(AND(NOT(ISBLANK(I20))*NOT(ISBLANK(K20))),\"Error\",IF(ISBLANK(I20),K20,I20*L20)))","v":12000},"material n06",{"$f":"IF(N20=\"Otro\",$A$1,VLOOKUP(N20, INDIRECT(A20),2,FALSE))","v":0.3},0.4,null,{"$f":"IF(O20=\"Valor:\",M20*P20,M20*O20)","v":3600},{"$f":"M20-R20","v":8400}]
[]
["CALCULO_EDIF!C349:D14",325,349,14,"CALCULO_EDIF!C325:C349",null,"MADERA","madera",null,null,5,750,{"$f":"IF(AND(ISBLANK(I22)*ISBLANK(K22)),\"-\",IF(AND(NOT(ISBLANK(I22))*NOT(ISBLANK(K22))),\"Error\",IF(ISBLANK(I22),K22,I22*L22)))","v":5},"material n09",{"$f":"IF(N22=\"Otro\",$A$1,VLOOKUP(N22, INDIRECT(A22),2,FALSE))","v":0.45},0.4,null,{"$f":"IF(O22=\"Valor:\",M22*P22,M22*O22)","v":2.25},{"$f":"M22-R22","v":2.75},null,{"$f":"R22/(R22+S22)","v":0.45}]
[]
["CALCULO_EDIF!C374:D15",350,374,15,"CALCULO_EDIF!C350:C374",null,"MUROS DE FABRICA","fábrica",null,null,8,2300,{"$f":"IF(AND(ISBLANK(I24)*ISBLANK(K24)),\"-\",IF(AND(NOT(ISBLANK(I24))*NOT(ISBLANK(K24))),\"Error\",IF(ISBLANK(I24),K24,I24*L24)))","v":8},"material n06",{"$f":"IF(N24=\"Otro\",$A$1,VLOOKUP(N24, INDIRECT(A24),2,FALSE))","v":0.3},0.4,null,{"$f":"IF(O24=\"Valor:\",M24*P24,M24*O24)","v":2.4},{"$f":"M24-R24","v":5.6},null,0.3]
[null,null,null,null,null,null,null,null,null,null,null,null,null,null,null,null,null,{"$f":"SUM(R13:R24)","v":109291.08929999999},{"$f":"SUM(S13:T24)","v":24886.910699999993},null,{"$f":"R25/(R25+S25)","v":0.8145231654965791}]
[]
[null,null,null,null,null,null,"FACHADAS",null,"m3",null,null,"d","kg",null,"% reciclado",null,null,"Material\nReciclado\n[Kg]","Material\nno Reciclado\n[Kg]",null,"Material Reciclado\n[%]"]
["CALCULO_EDIF!C399:D16",375,399,16,"CALCULO_EDIF!C375:C399",null,"HOJA PRINCIPAL","ladrillo hueco doble",14,null,null,770,{"$f":"IF(AND(ISBLANK(I28)*ISBLANK(K28)),\"-\",IF(AND(NOT(ISBLANK(I28))*NOT(ISBLANK(K28))),\"Error\",IF(ISBLANK(I28),K28,I28*L28)))","v":10780},"material n03",{"$f":"IF(N28=\"Otro\",$A$1,VLOOKUP(N28, INDIRECT(A28),2,FALSE))","v":0.15},0.4,null,{"$f":"IF(O28=\"Valor:\",M28*P28,M28*O28)","v":1617},{"$f":"M28-R28","v":9163},null,{"$f":"SUM(R28:R36)/SUM(M28:M36)","v":0.29040061633281977}]
["CALCULO_EDIF!C424:D17",400,424,17,"CALCULO_EDIF!C400:C424",null,null,"ladrillo macizo",null,null,45,2300,45,"material n06",0.3,0.4,null,13.5,31.5]
["CALCULO_EDIF!C449:D18",425,449,18,"CALCULO_EDIF!C425:C449",null,null,"bloques de hormigón",null,null,16,1230,16,"material n07",0.35,0.4,null,5.6,10.4]
["CALCULO_EDIF!C474:D19",450,474,19,"CALCULO_EDIF!C450:C474",null,null,"bloques cerámicos",20,null,null,910,18200,"material n03",0.15,0.4,null,2730,15470]
["CALCULO_EDIF!C499:D20",475,499,20,"CALCULO_EDIF!C475:C499",null,null,"bloque termoarcilla",10,null,null,770,7700,"material n18",0.9,0.36,null,6930,770]
["CALCULO_EDIF!C524:D21",500,524,21,"CALCULO_EDIF!C500:C524",null,null,"subestructura acero",null,null,45,7800,45,"material n05",0.25,0.4,null,11.25,33.75]
["CALCULO_EDIF!C549:D22",525,549,22,"CALCULO_EDIF!C525:C549",null,null,"panel sándwich",3,null,null,175,525,"material n04",0.2,0.4,null,105,420]
["CALCULO_EDIF!C574:D23",550,574,23,"CALCULO_EDIF!C550:C574",null,null,"subestructura Acero",null,null,74,7800,74,"material n06",0.3,0.4,null,22.2,51.8]
["CALCULO_EDIF!C599:D24",{"$f":"IF(D36=1,1,(D36-1)*25)","v":575},{"$f":"IF(D36=1,24,B36+24)","v":599},24,"CALCULO_EDIF!C575:C599",null,null,"panel hormigón",2,null,null,2400,4800,"PowerPanel HD Building Board-FERMACELL",0.17,0.4,null,816.00000000000011,3984]
[]
["CALCULO_EDIF!C624:D25",600,624,25,"CALCULO_EDIF!C600:C624",null,"REVESTIMIENTO EXTERIOR","ladrillo caravista",null,null,75,2300,{"$f":"IF(AND(ISBLANK(I38)*ISBLANK(K38)),\"-\",IF(AND(NOT(ISBLANK(I38))*NOT(ISBLANK(K38))),\"Error\",IF(ISBLANK(I38),K38,I38*L38)))","v":75},"Otro",{"$f":"IF(N38=\"Otro\",$A$1,VLOOKUP(N38, INDIRECT(A38),2,FALSE))","v":"Valor:"},0.06,null,{"$f":"IF(O38=\"Valor:\",M38*P38,M38*O38)","v":4.5},{"$f":"M38-R38","v":70.5},null,{"$f":"SUM(R38:R46)/SUM(M38:M46)","v":0.239618383806014}]
["CALCULO_EDIF!C649:D26",625,649,26,"CALCULO_EDIF!C625:C649",null,null,"aplacado piedra",14,null,null,2250,31500,"material n05",0.25,0.4,null,7875,23625]
["CALCULO_EDIF!C674:D27",650,674,27,"CALCULO_EDIF!C650:C674",null,null,"hormigón polímero",null,null,36,2400,36,"material n06",0.3,0.4,null,10.799999999999999,25.200000000000003]
["CALCULO_EDIF!C699:D28",675,699,28,"CALCULO_EDIF!C675:C699",null,null,"tableros fenólicos",null,null,74,680,74,"material n05",0.25,0.4,null,18.5,55.5]
["CALCULO_EDIF!C724:D29",700,724,29,"CALCULO_EDIF!C700:C724",null,null,"revestimientos metálicos",null,null,35,7200,35,"material n10",0.5,0.4,null,17.5,17.5]
["CALCULO_EDIF!C749:D30",725,749,30,"CALCULO_EDIF!C725:C749",null,null,"mortero monocapa",null,null,41,1800,41,"material n04",0.2,0.4,null,8.2000000000000011,32.799999999999997]
["CALCULO_EDIF!C774:D31",750,774,31,"CALCULO_EDIF!C750:C774",null,null,"paneles de madera",null,null,10,680,10,"material n07",0.35,0.4,null,3.5,6.5]
["CALCULO_EDIF!C799:D32",775,799,32,"CALCULO_EDIF!C775:C799",null,null,"panel sándwich",5,null,null,175,875,"material n05",0.25,0.4,null,218.75,656.25]
["CALCULO_EDIF!C824:D33",800,824,33,"CALCULO_EDIF!C800:C824",null,null,"panel hormigón",2,null,null,2400,4800,"PowerPanel HD Building Board-FERMACELL",0.17,0.4,null,816.00000000000011,3984]
[]
["CALCULO_EDIF!C849:D34",825,849,34,"CALCULO_EDIF!C825:C849",null,"CARPINTERIA, VENTANAS","carpintería metálico",null,null,74,2700,{"$f":"IF(AND(ISBLANK(I48)*ISBLANK(K48)),\"-\",IF(AND(NOT(ISBLANK(I48))*NOT(ISBLANK(K48))),\"Error\",IF(ISBLANK(I48),K48,I48*L48)))","v":74},"material n08",{"$f":"IF(N48=\"Otro\",$A$1,VLOOKUP(N48, INDIRECT(A48),2,FALSE))","v":0.4},0.4,null,{"$f":"IF(O48=\"Valor:\",M48*P48,M48*O48)","v":29.6},{"$f":"M48-R48","v":44.4},null,{"$f":"SUM(R48:R51)/SUM(M48:M51)","v":0.31539741219963036}]
["CALCULO_EDIF!C874:D35",850,874,35,"CALCULO_EDIF!C850:C874",null,null,"carpintería sintético",null,null,75,1390,{"$f":"IF(AND(ISBLANK(I49)*ISBLANK(K49)),\"-\",IF(AND(NOT(ISBLANK(I49))*NOT(ISBLANK(K49))),\"Error\",IF(ISBLANK(I49),K49,I49*L49)))","v":75},"material n05",{"$f":"IF(N49=\"Otro\",$A$1,VLOOKUP(N49, INDIRECT(A49),2,FALSE))","v":0.25},0.4,null,{"$f":"IF(O49=\"Valor:\",M49*P49,M49*O49)","v":18.75},{"$f":"M49-R49","v":56.25}]
["CALCULO_EDIF!C899:D36",875,899,36,"CALCULO_EDIF!C875:C899",null,null,"carpintería madera",2,null,null,700,{"$f":"IF(AND(ISBLANK(I50)*ISBLANK(K50)),\"-\",IF(AND(NOT(ISBLANK(I50))*NOT(ISBLANK(K50))),\"Error\",IF(ISBLANK(I50),K50,I50*L50)))","v":1400},"Otro",{"$f":"IF(N50=\"Otro\",$A$1,VLOOKUP(N50, INDIRECT(A50),2,FALSE))","v":"Valor:"},0.32,null,{"$f":"IF(O50=\"Valor:\",M50*P50,M50*O50)","v":448},{"$f":"M50-R50","v":952}]
["CALCULO_EDIF!C924:D37",900,924,37,"CALCULO_EDIF!C900:C924",null,null,"vidrio",null,null,74,2500,{"$f":"IF(AND(ISBLANK(I51)*ISBLANK(K51)),\"-\",IF(AND(NOT(ISBLANK(I51))*NOT(ISBLANK(K51))),\"Error\",IF(ISBLANK(I51),K51,I51*L51)))","v":74},"Serie 100-Andersen Corporation",{"$f":"IF(N51=\"Otro\",$A$1,VLOOKUP(N51, INDIRECT(A51),2,FALSE))","v":0.21},0.4,null,{"$f":"IF(O51=\"Valor:\",M51*P51,M51*O51)","v":15.54},{"$f":"M51-R51","v":58.46}]
[]
["CALCULO_EDIF!C949:D38",925,949,38,"CALCULO_EDIF!C925:C949",null,"CARPINTERIA. PUERTAS","carpintería metálica",3,null,null,7800,{"$f":"IF(AND(ISBLANK(I53)*ISBLANK(K53)),\"-\",IF(AND(NOT(ISBLANK(I53))*NOT(ISBLANK(K53))),\"Error\",IF(ISBLANK(I53),K53,I53*L53)))","v":23400},"Crawford OH1042P-ASSA ABLOY",{"$f":"IF(N53=\"Otro\",$A$1,VLOOKUP(N53, INDIRECT(A53),2,FALSE))","v":0.77590000000000003},0.4,null,{"$f":"IF(O53=\"Valor:\",M53*P53,M53*O53)","v":18156.060000000001},{"$f":"M53-R53","v":5243.9399999999987},null,{"$f":"SUM(R53:R56)/SUM(M53:M56)","v":0.82072431011826552}]
["CALCULO_EDIF!C974:D39",950,974,39,"CALCULO_EDIF!C950:C974",null,null,"carpintería sintético",null,null,50,1390,{"$f":"IF(AND(ISBLANK(I54)*ISBLANK(K54)),\"-\",IF(AND(NOT(ISBLANK(I54))*NOT(ISBLANK(K54))),\"Error\",IF(ISBLANK(I54),K54,I54*L54)))","v":50},"material n19",{"$f":"IF(N54=\"Otro\",$A$1,VLOOKUP(N54, INDIRECT(A54),2,FALSE))","v":0.95},0.4,null,{"$f":"IF(O54=\"Valor:\",M54*P54,M54*O54)","v":47.5},{"$f":"M54-R54","v":2.5}]
["CALCULO_EDIF!C999:D40",975,999,40,"CALCULO_EDIF!C975:C999",null,null,"carpintería madera",3,null,null,700,{"$f":"IF(AND(ISBLANK(I55)*ISBLANK(K55)),\"-\",IF(AND(NOT(ISBLANK(I55))*NOT(ISBLANK(K55))),\"Error\",IF(ISBLANK(I55),K55,I55*L55)))","v":2100},"material n05",{"$f":"IF(N55=\"Otro\",$A$1,VLOOKUP(N55, INDIRECT(A55),2,FALSE))","v":0.25},0.4,null,{"$f":"IF(O55=\"Valor:\",M55*P55,M55*O55)","v":525},{"$f":"M55-R55","v":1575}]
["CALCULO_EDIF!C1024:D41",1000,1024,41,"CALCULO_EDIF!C1000:C1024",null,null,"vidrio",5,null,null,2500,{"$f":"IF(AND(ISBLANK(I56)*ISBLANK(K56)),\"-\",IF(AND(NOT(ISBLANK(I56))*NOT(ISBLANK(K56))),\"Error\",IF(ISBLANK(I56),K56,I56*L56)))","v":12500},"material n20",{"$f":"IF(N56=\"Otro\",$A$1,VLOOKUP(N56, INDIRECT(A56),2,FALSE))","v":1},0.4,null,{"$f":"IF(O56=\"Valor:\",M56*P56,M56*O56)","v":12500},{"$f":"M56-R56","v":0}]
[null,null,null,null,null,null,null,null,null,null,null,null,null,null,null,null,null,{"$f":"SUM(R28:R56)","v":52963.75},{"$f":"SUM(S28:T56)","v":66340.25},null,{"$f":"R57/(R57+S57)","v":0.44393943203916048}]
[]
[null,null,null,null,null,null,"CUBIERTAS",null,"m3",null,null,"d","kg",null,"% reciclado",null,null,"Material\nReciclado\n[Kg]","Material\nno Reciclado\n[Kg]",null,"Material Reciclado\n[%]"]
["CALCULO_EDIF!C1049:D42",1025,1049,42,"CALCULO_EDIF!C1025:C1049",null,"ACABADOS","panel sándwich",null,null,75,175,{"$f":"IF(AND(ISBLANK(I60)*ISBLANK(K60)),\"-\",IF(AND(NOT(ISBLANK(I60))*NOT(ISBLANK(K60))),\"Error\",IF(ISBLANK(I60),K60,I60*L60)))","v":75},"material n20",{"$f":"IF(N60=\"Otro\",$A$1,VLOOKUP(N60, INDIRECT(A60),2,FALSE))","v":1},0.4,null,{"$f":"IF(O60=\"Valor:\",M60*P60,M60*O60)","v":75},{"$f":"M60-R60","v":0},null,{"$f":"SUM(R60:R70)/SUM(M60:M70)","v":0.5612779329608939}]
["CALCULO_EDIF!C1074:D43",1050,1074,43,"CALCULO_EDIF!C1050:C1074",null,null,"cubierta decks",14,null,null,175,2450,"material n19",0.95,0.4,null,2327.5,122.5]
["CALCULO_EDIF!C1099:D44",1075,1099,44,"CALCULO_EDIF!C1075:C1099",null,null,"revestimiento metálico (zinc, acero, cobre, etc.…)",null,null,36,7200,36,"material n03",0.15,0.4,null,5.3999999999999995,30.6]
["CALCULO_EDIF!C1124:D45",1100,1124,45,"CALCULO_EDIF!C1100:C1124",null,null,"pizarra",null,null,74,2700,74,"material n06",0.3,0.4,null,22.2,51.8]
["CALCULO_EDIF!C1149:D46",1125,1149,46,"CALCULO_EDIF!C1125:C1149",null,null,"tejas cerámicas",null,null,35,2300,35,"material n20",1,0.4,null,35,0]
["CALCULO_EDIF!C1174:D47",1150,1174,47,"CALCULO_EDIF!C1150:C1174",null,null,"tejas de hormigón",null,null,41,2100,41,"material n03",0.15,0.4,null,6.1499999999999995,34.85]
["CALCULO_EDIF!C1199:D48",1175,1199,48,"CALCULO_EDIF!C1175:C1199",null,null,"tejas asfálticas",null,null,10,2100,10,"material n05",0.25,0.4,null,2.5,7.5]
["CALCULO_EDIF!C1224:D49",1200,1224,49,"CALCULO_EDIF!C1200:C1224",null,null,"grava",2,null,null,1800,3600,"material n20",1,0.4,null,3600,0]
["CALCULO_EDIF!C1249:D50",1225,{"$f":"IF(D68=1,24,B68+24)","v":1249},50,"CALCULO_EDIF!C1225:C1249",null,null,"cubierta verde",5,null,null,785,3925,"Otro","Valor:",0.4,null,1570,2355]
[{"$f":"CONCATENATE(\"CALCULO_EDIF!\",\"C\",C69,\":\",\"D\",D69)","v":"CALCULO_EDIF!C1274:D51"},1250,1274,51,"CALCULO_EDIF!C1250:C1274",null,null,"losa filtrante",1,null,null,1470,1470,"material n10",0.5,0.4,null,735,735]
["CALCULO_EDIF!C1299:D52",1275,1299,52,"CALCULO_EDIF!C1275:C1299",null,null,"baldosa",3,null,null,2300,6900,"material n06",0.3,0.4,null,2070,4830]
[]
["CALCULO_EDIF!C1324:D53",1300,1324,53,"CALCULO_EDIF!C1300:C1324",null,"LUCERNARIOS","carpintería metálica",null,null,36,2700,{"$f":"IF(AND(ISBLANK(I72)*ISBLANK(K72)),\"-\",IF(AND(NOT(ISBLANK(I72))*NOT(ISBLANK(K72))),\"Error\",IF(ISBLANK(I72),K72,I72*L72)))","v":36},"material n19",{"$f":"IF(N72=\"Otro\",$A$1,VLOOKUP(N72, INDIRECT(A72),2,FALSE))","v":0.95},0.4,null,{"$f":"IF(O72=\"Valor:\",M72*P72,M72*O72)","v":34.199999999999996},{"$f":"M72-R72","v":1.8000000000000043},null,{"$f":"SUM(R72:R76)/SUM(M72:M76)","v":0.91144825018615039}]
["CALCULO_EDIF!C1349:D54",1325,1349,54,"CALCULO_EDIF!C1325:C1349",null,null,"carpintería sintética",null,null,74,1390,{"$f":"IF(AND(ISBLANK(I73)*ISBLANK(K73)),\"-\",IF(AND(NOT(ISBLANK(I73))*NOT(ISBLANK(K73))),\"Error\",IF(ISBLANK(I73),K73,I73*L73)))","v":74},"material n05",{"$f":"IF(N73=\"Otro\",$A$1,VLOOKUP(N73, INDIRECT(A73),2,FALSE))","v":0.25},0.4,null,{"$f":"IF(O73=\"Valor:\",M73*P73,M73*O73)","v":18.5},{"$f":"M73-R73","v":55.5}]
["CALCULO_EDIF!C1374:D55",1350,1374,55,"CALCULO_EDIF!C1350:C1374",null,null,"madera",null,null,35,700,{"$f":"IF(AND(ISBLANK(I74)*ISBLANK(K74)),\"-\",IF(AND(NOT(ISBLANK(I74))*NOT(ISBLANK(K74))),\"Error\",IF(ISBLANK(I74),K74,I74*L74)))","v":35},"material n07",{"$f":"IF(N74=\"Otro\",$A$1,VLOOKUP(N74, INDIRECT(A74),2,FALSE))","v":0.35},0.4,null,{"$f":"IF(O74=\"Valor:\",M74*P74,M74*O74)","v":12.25},{"$f":"M74-R74","v":22.75}]
["CALCULO_EDIF!C1399:D56",1375,1399,56,"CALCULO_EDIF!C1375:C1399",null,null,"policarbonato",null,null,41,1200,{"$f":"IF(AND(ISBLANK(I75)*ISBLANK(K75)),\"-\",IF(AND(NOT(ISBLANK(I75))*NOT(ISBLANK(K75))),\"Error\",IF(ISBLANK(I75),K75,I75*L75)))","v":41},"material n04",{"$f":"IF(N75=\"Otro\",$A$1,VLOOKUP(N75, INDIRECT(A75),2,FALSE))","v":0.2},0.4,null,{"$f":"IF(O75=\"Valor:\",M75*P75,M75*O75)","v":8.2000000000000011},{"$f":"M75-R75","v":32.799999999999997}]
["CALCULO_EDIF!C1424:D57",1400,1424,57,"CALCULO_EDIF!C1400:C1424",null,null,"vidrio",1,null,null,2500,{"$f":"IF(AND(ISBLANK(I76)*ISBLANK(K76)),\"-\",IF(AND(NOT(ISBLANK(I76))*NOT(ISBLANK(K76))),\"Error\",IF(ISBLANK(I76),K76,I76*L76)))","v":2500},"material n19",{"$f":"IF(N76=\"Otro\",$A$1,VLOOKUP(N76, INDIRECT(A76),2,FALSE))","v":0.95},0.4,null,{"$f":"IF(O76=\"Valor:\",M76*P76,M76*O76)","v":2375},{"$f":"M76-R76","v":125}]
[null,null,null,null,null,null,null,null,null,null,null,null,null,null,null,null,null,{"$f":"SUM(R60:R76)","v":12896.900000000001},{"$f":"SUM(S60:S76)","v":8405.0999999999985},null,{"$f":"R77/(R77+S77)","v":0.60543141489062069}]
[]
[null,null,null,null,null,null,"AISLANTES E IMPERMEABILIZANTES",null,"m3",null,null,"d","kg",null,"% reciclado",null,null,"Material\nReciclado\n[Kg]","Material\nno Reciclado\n[Kg]",null,"Material Reciclado\n[%]"]
["CALCULO_EDIF!C1449:D58",{"$f":"IF(D80=1,1,(D80-1)*25)","v":1425},1449,58,{"$f":"CONCATENATE(\"CALCULO_EDIF!\",\"C\",B80,\":\",\"C\",C80)","v":"CALCULO_EDIF!C1425:C1449"},null,"AISLAMIENTOS TERMICOS","lana mineral",14,null,null,100,{"$f":"IF(AND(ISBLANK(I80)*ISBLANK(K80)),\"-\",IF(AND(NOT(ISBLANK(I80))*NOT(ISBLANK(K80))),\"Error\",IF(ISBLANK(I80),K80,I80*L80)))","v":1400},"Lana de roca de baja densidad (entre 27 kg/m³ a 60 kg/m³ ) -ROCKWOOL",{"$f":"IF(N80=\"Otro\",$A$1,VLOOKUP(N80, INDIRECT(A80),2,FALSE))","v":0.34399999999999997},0.4,null,{"$f":"IF(O80=\"Valor:\",M80*P80,M80*O80)","v":481.59999999999997},{"$f":"M80-R80","v":918.40000000000009},null,{"$f":"SUM(R80:R89)/SUM(M80:M89)","v":0.3149163079866093}]
["CALCULO_EDIF!C1474:D59",1450,1474,59,"CALCULO_EDIF!C1450:C1474",null,null,"lana de vidrio",null,null,36,90,36,"Glass Mineral Wool 035 - 034 slabs with ECOSE-Knauf insulation",0.84,0.4,null,30.24,5.7600000000000016]
["CALCULO_EDIF!C1499:D60",1475,1499,60,"CALCULO_EDIF!C1475:C1499",null,null,"poliestireno expandido",null,null,74,20,74,"material n02",0.1,0.4,null,7.4,66.599999999999994]
["CALCULO_EDIF!C1524:D61",1500,1524,61,"CALCULO_EDIF!C1500:C1524",null,null,"poliestireno extruido",null,null,35,30,35,"material n04",0.2,0.4,null,7,28]
["CALCULO_EDIF!C1549:D62",1525,1549,62,"CALCULO_EDIF!C1525:C1549",null,null,"espuma poliuretano",null,null,41,20,41,"material n05",0.25,0.4,null,10.25,30.75]
["CALCULO_EDIF!C1574:D63",1550,1574,63,"CALCULO_EDIF!C1550:C1574",null,null,"corcho",null,null,10,120,10,"material n03",0.15,0.4,null,1.5,8.5]
["CALCULO_EDIF!C1599:D64",1575,1599,64,"CALCULO_EDIF!C1575:C1599",null,null,"fibra de madera",2,null,null,50,100,"material n04",0.2,0.4,null,20,80]
["CALCULO_EDIF!C1624:D65",1600,1624,65,"CALCULO_EDIF!C1600:C1624",null,null,"celulosa",1,null,null,45,45,"Biocell -Biohaus Goierri sl",0.9,0.4,null,40.5,4.5]
["CALCULO_EDIF!C1649:D66",1625,1649,66,"CALCULO_EDIF!C1625:C1649",null,null,"vidrio celular",1,null,null,150,150,"material n04",0.2,0.4,null,30,120]
["CALCULO_EDIF!C1674:D67",1650,1674,67,"CALCULO_EDIF!C1650:C1674",null,null,"otros",2,null,null,100,200,"material n03",0.15,0.4,null,30,170]
[]
["CALCULO_EDIF!C1699:D68",1675,1699,68,"CALCULO_EDIF!C1675:C1699",null,"IMPERMEABILIZANTES","láminas sintéticas",null,null,45,2000,{"$f":"IF(AND(ISBLANK(I91)*ISBLANK(K91)),\"-\",IF(AND(NOT(ISBLANK(I91))*NOT(ISBLANK(K91))),\"Error\",IF(ISBLANK(I91),K91,I91*L91)))","v":45},"material n04",{"$f":"IF(N91=\"Otro\",$A$1,VLOOKUP(N91, INDIRECT(A91),2,FALSE))","v":0.2},0.4,null,{"$f":"IF(O91=\"Valor:\",M91*P91,M91*O91)","v":9},{"$f":"M91-R91","v":36},null,{"$f":"SUM(R91:R92)/SUM(M91:M92)","v":0.14857142857142858}]
["CALCULO_EDIF!C1724:D69",1700,1724,69,"CALCULO_EDIF!C1700:C1724",null,null,"láminas asfálticas",null,null,60,1100,{"$f":"IF(AND(ISBLANK(I92)*ISBLANK(K92)),\"-\",IF(AND(NOT(ISBLANK(I92))*NOT(ISBLANK(K92))),\"Error\",IF(ISBLANK(I92),K92,I92*L92)))","v":60},"Sistema BTC-Impermeabilizantes SANI S.L.",{"$f":"IF(N92=\"Otro\",$A$1,VLOOKUP(N92, INDIRECT(A92),2,FALSE))","v":0.11},0.4,null,{"$f":"IF(O92=\"Valor:\",M92*P92,M92*O92)","v":6.6},{"$f":"M92-R92","v":53.4}]
[null,null,null,null,null,null,null,null,null,null,null,null,null,null,null,null,null,{"$f":"SUM(R80:R92)","v":674.09},{"$f":"SUM(S80:S92)","v":1521.9100000000003},null,{"$f":"R93/(R93+S93)","v":0.30696265938069212}]
[]
[null,null,null,null,null,null,"PARTICIONES INTERIORES",null,"m3",null,null,"d","kg",null,"% reciclado",null,null,"Material\nReciclado\n[Kg]","Material\nno Reciclado\n[Kg]",null,"Material Reciclado\n[%]"]
["CALCULO_EDIF!C1749:D70",1725,1749,70,"CALCULO_EDIF!C1725:C1749",null,"TABIQUERIA","LHD 1/2 pie (tabicón)",20,null,null,770,{"$f":"IF(AND(ISBLANK(I96)*ISBLANK(K96)),\"-\",IF(AND(NOT(ISBLANK(I96))*NOT(ISBLANK(K96))),\"Error\",IF(ISBLANK(I96),K96,I96*L96)))","v":15400},"material n02",{"$f":"IF(N96=\"Otro\",$A$1,VLOOKUP(N96, INDIRECT(A96),2,FALSE))","v":0.1},0.4,null,{"$f":"IF(O96=\"Valor:\",M96*P96,M96*O96)","v":1540},{"$f":"M96-R96","v":13860},null,{"$f":"SUM(R96:R101)/SUM(M96:M101)","v":0.16432261094153558}]
["CALCULO_EDIF!C1774:D71",1750,1774,71,"CALCULO_EDIF!C1750:C1774",null,null,"LHD (8cm)  Machetón",25,null,null,770,19250,"material n04",0.2,0.4,null,3850,15400]
["CALCULO_EDIF!C1799:D72",1775,1799,72,"CALCULO_EDIF!C1775:C1799",null,null,"ladrillo perforado",10,null,null,780,7800,"material n04",0.2,0.4,null,1560,6240]
["CALCULO_EDIF!C1824:D73",1800,1824,73,"CALCULO_EDIF!C1800:C1824",null,null,"bloques de hormigón",null,null,30,1230,30,"material n11",0.55000000000000004,0.4,null,16.5,13.5]
["CALCULO_EDIF!C1849:D74",1825,1849,74,"CALCULO_EDIF!C1825:C1849",null,null,"cartón yeso",null,null,50,900,50,"Gupsum fibre Board Siglingen-FERMACELL",0.46,0.4,null,23,27]
["CALCULO_EDIF!C1874:D75",1850,1874,75,"CALCULO_EDIF!C1850:C1874",null,null,"otros",null,null,60,1000,60,"material n03",0.15,0.4,null,9,51]
[]
["CALCULO_EDIF!C1899:D76",1875,1899,76,"CALCULO_EDIF!C1875:C1899",null,"MAMPARAS","opacas metálicas",null,null,85,7800,{"$f":"IF(AND(ISBLANK(I103)*ISBLANK(K103)),\"-\",IF(AND(NOT(ISBLANK(I103))*NOT(ISBLANK(K103))),\"Error\",IF(ISBLANK(I103),K103,I103*L103)))","v":85},"material n05",{"$f":"IF(N103=\"Otro\",$A$1,VLOOKUP(N103, INDIRECT(A103),2,FALSE))","v":0.25},0.4,null,{"$f":"IF(O103=\"Valor:\",M103*P103,M103*O103)","v":21.25},{"$f":"M103-R103","v":63.75},null,{"$f":"SUM(R103:R105)/SUM(M103:M105)","v":0.15094719247198662}]
["CALCULO_EDIF!C1924:D77",1900,1924,77,"CALCULO_EDIF!C1900:C1924",null,null,"opacas de aglomerado",1,null,null,680,{"$f":"IF(AND(ISBLANK(I104)*ISBLANK(K104)),\"-\",IF(AND(NOT(ISBLANK(I104))*NOT(ISBLANK(K104))),\"Error\",IF(ISBLANK(I104),K104,I104*L104)))","v":680},"material n05",{"$f":"IF(N104=\"Otro\",$A$1,VLOOKUP(N104, INDIRECT(A104),2,FALSE))","v":0.25},0.4,null,{"$f":"IF(O104=\"Valor:\",M104*P104,M104*O104)","v":170},{"$f":"M104-R104","v":510}]
["CALCULO_EDIF!C1949:D78",1925,1949,78,"CALCULO_EDIF!C1925:C1949",null,null,"de vidrio",32,null,null,2500,{"$f":"IF(AND(ISBLANK(I105)*ISBLANK(K105)),\"-\",IF(AND(NOT(ISBLANK(I105))*NOT(ISBLANK(K105))),\"Error\",IF(ISBLANK(I105),K105,I105*L105)))","v":80000},"material n03",{"$f":"IF(N105=\"Otro\",$A$1,VLOOKUP(N105, INDIRECT(A105),2,FALSE))","v":0.15},0.4,null,{"$f":"IF(O105=\"Valor:\",M105*P105,M105*O105)","v":12000},{"$f":"M105-R105","v":68000}]
[]
["CALCULO_EDIF!C1974:D79",1950,1974,79,"CALCULO_EDIF!C1950:C1974",null,"CARPINTERIA INTERIOR","puertas madera",1,null,null,700,{"$f":"IF(AND(ISBLANK(I107)*ISBLANK(K107)),\"-\",IF(AND(NOT(ISBLANK(I107))*NOT(ISBLANK(K107))),\"Error\",IF(ISBLANK(I107),K107,I107*L107)))","v":700},"Puertas de interior JELD-WEN ",{"$f":"IF(N107=\"Otro\",$A$1,VLOOKUP(N107, INDIRECT(A107),2,FALSE))","v":0.56000000000000005},0.4,null,{"$f":"IF(O107=\"Valor:\",M107*P107,M107*O107)","v":392.00000000000006},{"$f":"M107-R107","v":307.99999999999994},null,{"$f":"SUM(R107:R109)/SUM(M107:M109)","v":0.55655630252100841}]
["CALCULO_EDIF!C1999:D80",1975,1999,80,"CALCULO_EDIF!C1975:C1999",null,null,"puertas metálicas",2,null,null,7800,{"$f":"IF(AND(ISBLANK(I108)*ISBLANK(K108)),\"-\",IF(AND(NOT(ISBLANK(I108))*NOT(ISBLANK(K108))),\"Error\",IF(ISBLANK(I108),K108,I108*L108)))","v":15600},"Crawford OH1042P-ASSA ABLOY",{"$f":"IF(N108=\"Otro\",$A$1,VLOOKUP(N108, INDIRECT(A108),2,FALSE))","v":0.77590000000000003},0.4,null,{"$f":"IF(O108=\"Valor:\",M108*P108,M108*O108)","v":12104.04},{"$f":"M108-R108","v":3495.9599999999991}]
["CALCULO_EDIF!C2024:D81",2000,2024,81,"CALCULO_EDIF!C2000:C2024",null,null,"vidrio puertas interiores",3,null,null,2500,{"$f":"IF(AND(ISBLANK(I109)*ISBLANK(K109)),\"-\",IF(AND(NOT(ISBLANK(I109))*NOT(ISBLANK(K109))),\"Error\",IF(ISBLANK(I109),K109,I109*L109)))","v":7500},"material n02",{"$f":"IF(N109=\"Otro\",$A$1,VLOOKUP(N109, INDIRECT(A109),2,FALSE))","v":0.1},0.4,null,{"$f":"IF(O109=\"Valor:\",M109*P109,M109*O109)","v":750},{"$f":"M109-R109","v":6750}]
[null,null,null,null,null,null,null,null,null,null,null,null,null,null,null,null,null,{"$f":"SUM(R96:R109)","v":32435.79},{"$f":"SUM(S96:S109)","v":114719.20999999999},null,{"$f":"R110/(R110+S110)","v":0.22041921783153817}]
[]
[null,null,null,null,null,null,"REVESTIMIENTOS",null,"m3",null,null,"d","kg",null,"% reciclado",null,null,"Material\nReciclado\n[Kg]","Material\nno Reciclado\n[Kg]",null,"Material Reciclado\n[%]"]
["CALCULO_EDIF!C2049:D82",2025,2049,82,"CALCULO_EDIF!C2025:C2049",null,"PARAMENTOS","guarnecido y enlucido de yeso",null,null,20,1300,{"$f":"IF(AND(ISBLANK(I113)*ISBLANK(K113)),\"-\",IF(AND(NOT(ISBLANK(I113))*NOT(ISBLANK(K113))),\"Error\",IF(ISBLANK(I113),K113,I113*L113)))","v":20},"material n02",{"$f":"IF(N113=\"Otro\",$A$1,VLOOKUP(N113, INDIRECT(A113),2,FALSE))","v":0.1},0.4,null,{"$f":"IF(O113=\"Valor:\",M113*P113,M113*O113)","v":2},{"$f":"M113-R113","v":18},null,{"$f":"SUM(R113:R123)/SUM(M113:M123)","v":0.35238045977011495}]
["CALCULO_EDIF!C2074:D83",2050,2074,83,"CALCULO_EDIF!C2050:C2074",null,null,"enfoscado",10,null,null,1800,18000,"material n04",0.2,0.4,null,3600,14400]
[{"$f":"CONCATENATE(\"CALCULO_EDIF!\",\"C\",C115,\":\",\"D\",D115)","v":"CALCULO_EDIF!C2099:D84"},{"$f":"IF(D115=1,1,(D115-1)*25)","v":2075},{"$f":"IF(D115=1,24,B115+24)","v":2099},84,{"$f":"CONCATENATE(\"CALCULO_EDIF!\",\"C\",B115,\":\",\"C\",C115)","v":"CALCULO_EDIF!C2075:C2099"},null,null,"morteros",null,null,20,1300,{"$f":"IF(AND(ISBLANK(I115)*ISBLANK(K115)),\"-\",IF(AND(NOT(ISBLANK(I115))*NOT(ISBLANK(K115))),\"Error\",IF(ISBLANK(I115),K115,I115*L115)))","v":20},"material n02",{"$f":"IF(N115=\"Otro\",$A$1,VLOOKUP(N115, INDIRECT(A115),2,FALSE))","v":0.1},0.4,null,{"$f":"IF(O115=\"Valor:\",M115*P115,M115*O115)","v":2},{"$f":"M115-R115","v":18}]
["CALCULO_EDIF!C2124:D85",2100,2124,85,"CALCULO_EDIF!C2100:C2124",null,null,"tableros de partículas de madera",2,null,null,640,1280,"Tableros MEDITE FR-Roseburg Forest Products",0.82,0.4,null,1049.5999999999999,230.40000000000009]
["CALCULO_EDIF!C2149:D86",2125,2149,86,"CALCULO_EDIF!C2125:C2149",null,null,"tableros de madera natural",null,null,50,750,50,"material n02",0.1,0.4,null,5,45]
["CALCULO_EDIF!C2174:D87",2150,2174,87,"CALCULO_EDIF!C2150:C2174",null,null,"alicatado cerámico",null,null,20,2000,20,"Chromtech-Floor Gres",0.4,0.4,null,8,12]
["CALCULO_EDIF!C2199:D88",2175,2199,88,"CALCULO_EDIF!C2175:C2199",null,null,"gres",1,null,null,2600,2600,"material n01",0.05,0.4,null,130,2470]
["CALCULO_EDIF!C2224:D89",2200,2224,89,"CALCULO_EDIF!C2200:C2224",null,null,"revestimientos sintéticos",1,null,null,1000,1000,"material n03",0.15,0.4,null,150,850]
["CALCULO_EDIF!C2249:D90",2225,2249,90,"CALCULO_EDIF!C2225:C2249",null,null,"papel",null,null,10,130,10,"material n01",0.05,0.4,null,0.5,9.5]
["CALCULO_EDIF!C2274:D91",2250,2274,91,"CALCULO_EDIF!C2250:C2274",null,null,"pintura",45,null,null,1200,54000,"material n06",0.3,0.4,null,16200,37800]
["CALCULO_EDIF!C2299:D92",2275,2299,92,"CALCULO_EDIF!C2275:C2299",null,null,"otros",10,null,null,1000,10000,"Mosaico UNICOLOR 103-Hisbalit",0.95099999999999996,0.4,null,9510,490]
[]
["CALCULO_EDIF!C2324:D93",2300,2324,93,"CALCULO_EDIF!C2300:C2324",null,"SUELOS Y ESCALERAS","terrazo",64,null,null,1800,{"$f":"IF(AND(ISBLANK(I125)*ISBLANK(K125)),\"-\",IF(AND(NOT(ISBLANK(I125))*NOT(ISBLANK(K125))),\"Error\",IF(ISBLANK(I125),K125,I125*L125)))","v":115200},"material n03",{"$f":"IF(N125=\"Otro\",$A$1,VLOOKUP(N125, INDIRECT(A125),2,FALSE))","v":0.15},0.01,null,{"$f":"IF(O125=\"Valor:\",M125*P125,M125*O125)","v":17280},{"$f":"M125-R125","v":97920},null,{"$f":"SUM(R125:R132)/SUM(M125:M133)","v":0.19963826030224163}]
["CALCULO_EDIF!C2349:D94",2325,2349,94,"CALCULO_EDIF!C2325:C2349",null,null,"baldosa cerámica",null,null,63,2300,63,"material n03",0.15,0.4,null,9.4499999999999993,53.55]
["CALCULO_EDIF!C2374:D95",2350,2374,95,"CALCULO_EDIF!C2350:C2374",null,null,"piedra",5,null,null,2200,11000,"material n05",0.25,0.4,null,2750,8250]
["CALCULO_EDIF!C2399:D96",2375,2399,96,"CALCULO_EDIF!C2375:C2399",null,null,"madera ",null,null,40,800,40,"material n03",0.15,0.4,null,6,34]
["CALCULO_EDIF!C2424:D97",2400,2424,97,"CALCULO_EDIF!C2400:C2424",null,null,"suelos sintéticos ",3,null,null,1200,3600,"PREMIUM PLUS: Alterna™ Luxury Tile-Armstrong World Industries, Inc.",0.4,0.4,null,1440,2160]
["CALCULO_EDIF!C2449:D98",2425,2449,98,"CALCULO_EDIF!C2425:C2449",null,null,"suelo técnico",null,null,54,1100,54,"material n05",0.25,0.4,null,13.5,40.5]
["CALCULO_EDIF!C2474:D99",2450,2474,99,"CALCULO_EDIF!C2450:C2474",null,null,"moquetas",55,null,null,200,11000,"Biosfera-Bouclé - Interface",0.6,0.4,null,6600,4400]
["CALCULO_EDIF!C2499:D100",2475,2499,100,"CALCULO_EDIF!C2475:C2499",null,null,"otros",null,null,56,1000,56,"Geolam-Maderas GAMIZ",0.94,0.4,null,52.64,3.3599999999999994]
[]
[{"$f":"CONCATENATE(\"CALCULO_EDIF!\",\"C\",C134,\":\",\"D\",D134)","v":"CALCULO_EDIF!C2524:D101"},2500,{"$f":"IF(D134=1,24,B134+24)","v":2524},101,"CALCULO_EDIF!C2500:C2524",null,"TECHOS","paneles metálicos",5,null,null,7800,{"$f":"IF(AND(ISBLANK(I134)*ISBLANK(K134)),\"-\",IF(AND(NOT(ISBLANK(I134))*NOT(ISBLANK(K134))),\"Error\",IF(ISBLANK(I134),K134,I134*L134)))","v":39000},"Ultra Microperforated Rg 0501-ARMSTRONG ",{"$f":"IF(N134=\"Otro\",$A$1,VLOOKUP(N134, INDIRECT(A134),2,FALSE))","v":0.3},0.4,null,{"$f":"IF(O134=\"Valor:\",M134*P134,M134*O134)","v":11700},{"$f":"M134-R134","v":27300},null,{"$f":"SUM(R134:R138)/SUM(M134:M138)","v":0.24818873668188737}]
["CALCULO_EDIF!C2549:D102",2525,2549,102,"CALCULO_EDIF!C2525:C2549",null,null,"paneles de fibra de madera",15,null,null,680,{"$f":"IF(AND(ISBLANK(I135)*ISBLANK(K135)),\"-\",IF(AND(NOT(ISBLANK(I135))*NOT(ISBLANK(K135))),\"Error\",IF(ISBLANK(I135),K135,I135*L135)))","v":10200},"material n01",{"$f":"IF(N135=\"Otro\",$A$1,VLOOKUP(N135, INDIRECT(A135),2,FALSE))","v":0.05},0.4,null,{"$f":"IF(O135=\"Valor:\",M135*P135,M135*O135)","v":510},{"$f":"M135-R135","v":9690}]
["CALCULO_EDIF!C2574:D103",2550,2574,103,"CALCULO_EDIF!C2550:C2574",null,null,"paneles sintéticos",null,null,20,1200,{"$f":"IF(AND(ISBLANK(I136)*ISBLANK(K136)),\"-\",IF(AND(NOT(ISBLANK(I136))*NOT(ISBLANK(K136))),\"Error\",IF(ISBLANK(I136),K136,I136*L136)))","v":20},"material n04",{"$f":"IF(N136=\"Otro\",$A$1,VLOOKUP(N136, INDIRECT(A136),2,FALSE))","v":0.2},0.4,null,{"$f":"IF(O136=\"Valor:\",M136*P136,M136*O136)","v":4},{"$f":"M136-R136","v":16}]
["CALCULO_EDIF!C2599:D104",2575,2599,104,"CALCULO_EDIF!C2575:C2599",null,null,"paneles de lana mineral",null,null,25,110,{"$f":"IF(AND(ISBLANK(I137)*ISBLANK(K137)),\"-\",IF(AND(NOT(ISBLANK(I137))*NOT(ISBLANK(K137))),\"Error\",IF(ISBLANK(I137),K137,I137*L137)))","v":25},"Ultima \"+\" - ARMSTRONG ",{"$f":"IF(N137=\"Otro\",$A$1,VLOOKUP(N137, INDIRECT(A137),2,FALSE))","v":0.5},0.4,null,{"$f":"IF(O137=\"Valor:\",M137*P137,M137*O137)","v":12.5},{"$f":"M137-R137","v":12.5}]
["CALCULO_EDIF!C2624:D105",2600,2624,105,"CALCULO_EDIF!C2600:C2624",null,null,"enlucido de yeso",null,null,30,1300,{"$f":"IF(AND(ISBLANK(I138)*ISBLANK(K138)),\"-\",IF(AND(NOT(ISBLANK(I138))*NOT(ISBLANK(K138))),\"Error\",IF(ISBLANK(I138),K138,I138*L138)))","v":30},"material n02",{"$f":"IF(N138=\"Otro\",$A$1,VLOOKUP(N138, INDIRECT(A138),2,FALSE))","v":0.1},0.4,null,{"$f":"IF(O138=\"Valor:\",M138*P138,M138*O138)","v":3},{"$f":"M138-R138","v":27}]
[null,null,null,null,null,null,null,null,null,null,null,null,null,null,null,null,null,{"$f":"SUM(R113:R138)","v":71038.19},{"$f":"SUM(S113:S138)","v":206249.80999999997},null,{"$f":"R139/(R139+S139)","v":0.25618919679178326}]
[]
[null,null,null,null,null,null,"INSTALACIONES",null,"m3",null,null,"d","kg",null,"% reciclado",null,null,"Material\nReciclado\n[Kg]","Material\nno Reciclado\n[Kg]",null,"Material Reciclado\n[%]"]
[{"$f":"CONCATENATE(\"CALCULO_EDIF!\",\"C\",C142,\":\",\"D\",D142)","v":"CALCULO_EDIF!C2649:D106"},{"$f":"IF(D142=1,1,(D142-1)*25)","v":2625},{"$f":"IF(D142=1,24,B142+24)","v":2649},106,{"$f":"CONCATENATE(\"CALCULO_EDIF!\",\"C\",B142,\":\",\"C\",C142)","v":"CALCULO_EDIF!C2625:C2649"},null,"ELECTRICIDAD","redes",5,null,null,2100,{"$f":"IF(AND(ISBLANK(I142)*ISBLANK(K142)),\"-\",IF(AND(NOT(ISBLANK(I142))*NOT(ISBLANK(K142))),\"Error\",IF(ISBLANK(I142),K142,I142*L142)))","v":10500},"material n02",{"$f":"IF(N142=\"Otro\",$A$1,VLOOKUP(N142, INDIRECT(A142),2,FALSE))","v":0.1},0.4,null,{"$f":"IF(O142=\"Valor:\",M142*P142,M142*O142)","v":1050},{"$f":"M142-R142","v":9450},null,{"$f":"SUM(R142:R146)/SUM(M142:M146)","v":9.999108734402852E-2}]
[{"$f":"CONCATENATE(\"CALCULO_EDIF!\",\"C\",C143,\":\",\"D\",D143)","v":"CALCULO_EDIF!C2674:D107"},{"$f":"IF(D143=1,1,(D143-1)*25)","v":2650},{"$f":"IF(D143=1,24,B143+24)","v":2674},107,{"$f":"CONCATENATE(\"CALCULO_EDIF!\",\"C\",B143,\":\",\"C\",C143)","v":"CALCULO_EDIF!C2650:C2674"},null,null,"protección y control",15,null,null,2100,{"$f":"IF(AND(ISBLANK(I143)*ISBLANK(K143)),\"-\",IF(AND(NOT(ISBLANK(I143))*NOT(ISBLANK(K143))),\"Error\",IF(ISBLANK(I143),K143,I143*L143)))","v":31500},"material n02",{"$f":"IF(N143=\"Otro\",$A$1,VLOOKUP(N143, INDIRECT(A143),2,FALSE))","v":0.1},0.4,null,{"$f":"IF(O143=\"Valor:\",M143*P143,M143*O143)","v":3150},{"$f":"M143-R143","v":28350}]
["CALCULO_EDIF!C2699:D108",2675,2699,108,"CALCULO_EDIF!C2675:C2699",null,null,"domotica",null,null,20,2100,{"$f":"IF(AND(ISBLANK(I144)*ISBLANK(K144)),\"-\",IF(AND(NOT(ISBLANK(I144))*NOT(ISBLANK(K144))),\"Error\",IF(ISBLANK(I144),K144,I144*L144)))","v":20},"material n02",0.1,0.4,null,2,18]
["CALCULO_EDIF!C2724:D109",2700,2724,109,"CALCULO_EDIF!C2700:C2724",null,null,"alumbrado",null,null,25,2100,{"$f":"IF(AND(ISBLANK(I145)*ISBLANK(K145)),\"-\",IF(AND(NOT(ISBLANK(I145))*NOT(ISBLANK(K145))),\"Error\",IF(ISBLANK(I145),K145,I145*L145)))","v":25},"MIREL-L A LED2800-830 L1200 EVG-Zumtobel",8.5000000000000006E-2,0.4,null,2.125,22.875]
["CALCULO_EDIF!C2749:D110",2725,2749,110,"CALCULO_EDIF!C2725:C2749",null,null,"otros",null,null,30,2100,{"$f":"IF(AND(ISBLANK(I146)*ISBLANK(K146)),\"-\",IF(AND(NOT(ISBLANK(I146))*NOT(ISBLANK(K146))),\"Error\",IF(ISBLANK(I146),K146,I146*L146)))","v":30},"material n02",0.1,0.4,null,3,27]
[]
[{"$f":"CONCATENATE(\"CALCULO_EDIF!\",\"C\",C148,\":\",\"D\",D148)","v":"CALCULO_EDIF!C2774:D111"},{"$f":"IF(D148=1,1,(D148-1)*25)","v":2750},{"$f":"IF(D148=1,24,B148+24)","v":2774},111,{"$f":"CONCATENATE(\"CALCULO_EDIF!\",\"C\",B148,\":\",\"C\",C148)","v":"CALCULO_EDIF!C2750:C2774"},null,"ABASTECIMIENTO","bombas",5,null,null,2100,{"$f":"IF(AND(ISBLANK(I148)*ISBLANK(K148)),\"-\",IF(AND(NOT(ISBLANK(I148))*NOT(ISBLANK(K148))),\"Error\",IF(ISBLANK(I148),K148,I148*L148)))","v":10500},"material n02",{"$f":"IF(N148=\"Otro\",$A$1,VLOOKUP(N148, INDIRECT(A148),2,FALSE))","v":0.1},0.4,null,{"$f":"IF(O148=\"Valor:\",M148*P148,M148*O148)","v":1050},{"$f":"M148-R148","v":9450},null,{"$f":"SUM(R148:R152)/SUM(M148:M152)","v":0.1}]
["CALCULO_EDIF!C2799:D112",2775,2799,112,"CALCULO_EDIF!C2775:C2799",null,null,"fontanería",15,null,null,2100,31500,"material n02",0.1,0.4,null,3150,28350]
["CALCULO_EDIF!C2824:D113",2800,2824,113,"CALCULO_EDIF!C2800:C2824",null,null,"tuberías, valvulas y griferías",null,null,20,2100,20,"material n02",0.1,0.4,null,2,18]
["CALCULO_EDIF!C2849:D114",2825,2849,114,"CALCULO_EDIF!C2825:C2849",null,null,"aparatos sanitarios",null,null,25,2100,25,"material n02",0.1,0.4,null,2.5,22.5]
["CALCULO_EDIF!C2874:D115",2850,2874,115,"CALCULO_EDIF!C2850:C2874",null,null,"otros",null,null,30,2100,30,"material n02",0.1,0.4,null,3,27]
[]
[{"$f":"CONCATENATE(\"CALCULO_EDIF!\",\"C\",C154,\":\",\"D\",D154)","v":"CALCULO_EDIF!C2899:D116"},{"$f":"IF(D154=1,1,(D154-1)*25)","v":2875},{"$f":"IF(D154=1,24,B154+24)","v":2899},116,{"$f":"CONCATENATE(\"CALCULO_EDIF!\",\"C\",B154,\":\",\"C\",C154)","v":"CALCULO_EDIF!C2875:C2899"},null,"CLIMATIZACIÓN","calefacción",null,null,20,2100,{"$f":"IF(AND(ISBLANK(I154)*ISBLANK(K154)),\"-\",IF(AND(NOT(ISBLANK(I154))*NOT(ISBLANK(K154))),\"Error\",IF(ISBLANK(I154),K154,I154*L154)))","v":20},"material n02",{"$f":"IF(N154=\"Otro\",$A$1,VLOOKUP(N154, INDIRECT(A154),2,FALSE))","v":0.1},0.4,null,{"$f":"IF(O154=\"Valor:\",M154*P154,M154*O154)","v":2},{"$f":"M154-R154","v":18},null,{"$f":"SUM(R154:R157)/SUM(M154:M157)","v":0.1}]
["CALCULO_EDIF!C2924:D117",2900,2924,117,"CALCULO_EDIF!C2900:C2924",null,null,"aire acondicionado",null,null,50,2100,50,"material n02",0.1,0.4,null,5,45]
["CALCULO_EDIF!C2949:D118",2925,2949,118,"CALCULO_EDIF!C2925:C2949",null,null,"tuberías y valvulas",null,null,20,2100,20,"material n02",0.1,0.4,null,2,18]
["CALCULO_EDIF!C2974:D119",2950,2974,119,"CALCULO_EDIF!C2950:C2974",null,null,"otros",null,null,10,2100,10,"material n02",0.1,0.4,null,1,9]
[]
[{"$f":"CONCATENATE(\"CALCULO_EDIF!\",\"C\",C159,\":\",\"D\",D159)","v":"CALCULO_EDIF!C2999:D120"},{"$f":"IF(D159=1,1,(D159-1)*25)","v":2975},{"$f":"IF(D159=1,24,B159+24)","v":2999},120,{"$f":"CONCATENATE(\"CALCULO_EDIF!\",\"C\",B159,\":\",\"C\",C159)","v":"CALCULO_EDIF!C2975:C2999"},null,"SANEAMIENTO","bajantes",null,null,20,2100,{"$f":"IF(AND(ISBLANK(I159)*ISBLANK(K159)),\"-\",IF(AND(NOT(ISBLANK(I159))*NOT(ISBLANK(K159))),\"Error\",IF(ISBLANK(I159),K159,I159*L159)))","v":20},"material n02",{"$f":"IF(N159=\"Otro\",$A$1,VLOOKUP(N159, INDIRECT(A159),2,FALSE))","v":0.1},0.4,null,{"$f":"IF(O159=\"Valor:\",M159*P159,M159*O159)","v":2},{"$f":"M159-R159","v":18},null,{"$f":"SUM(R159:R164)/SUM(M159:M164)","v":0.1}]
["CALCULO_EDIF!C3024:D121",3000,3024,121,"CALCULO_EDIF!C3000:C3024",null,null,"depuración",null,null,25,2100,25,"material n02",0.1,0.4,null,2.5,22.5]
["CALCULO_EDIF!C3049:D122",3025,3049,122,"CALCULO_EDIF!C3025:C3049",null,null,"humos y gases",null,null,30,2100,30,"material n02",0.1,0.4,null,3,27]
["CALCULO_EDIF!C3074:D123",3050,3074,123,"CALCULO_EDIF!C3050:C3074",null,null,"saneamiento",null,null,20,2100,20,"material n02",0.1,0.4,null,2,18]
["CALCULO_EDIF!C3099:D124",3075,3099,124,"CALCULO_EDIF!C3075:C3099",null,null,"ventilación",null,null,25,2100,25,"material n02",0.1,0.4,null,2.5,22.5]
["CALCULO_EDIF!C3124:D125",3100,3124,125,"CALCULO_EDIF!C3100:C3124",null,null,"otros",null,null,30,2100,30,"material n02",0.1,0.4,null,3,27]
[]
[{"$f":"CONCATENATE(\"CALCULO_EDIF!\",\"C\",C166,\":\",\"D\",D166)","v":"CALCULO_EDIF!C3149:D126"},{"$f":"IF(D166=1,1,(D166-1)*25)","v":3125},{"$f":"IF(D166=1,24,B166+24)","v":3149},126,{"$f":"CONCATENATE(\"CALCULO_EDIF!\",\"C\",B166,\":\",\"C\",C166)","v":"CALCULO_EDIF!C3125:C3149"},null,"ENERGIA SOLAR","paneles",null,null,20,2100,{"$f":"IF(AND(ISBLANK(I166)*ISBLANK(K166)),\"-\",IF(AND(NOT(ISBLANK(I166))*NOT(ISBLANK(K166))),\"Error\",IF(ISBLANK(I166),K166,I166*L166)))","v":20},"material n02",{"$f":"IF(N166=\"Otro\",$A$1,VLOOKUP(N166, INDIRECT(A166),2,FALSE))","v":0.1},0.4,null,{"$f":"IF(O166=\"Valor:\",M166*P166,M166*O166)","v":2},{"$f":"M166-R166","v":18},null,{"$f":"SUM(R166:R171)/SUM(M166:M171)","v":0.1}]
["CALCULO_EDIF!C3174:D127",3150,3174,127,"CALCULO_EDIF!C3150:C3174",null,null,"acumuladores",null,null,25,2100,25,"material n02",0.1,0.4,null,2.5,22.5]
["CALCULO_EDIF!C3199:D128",3175,3199,128,"CALCULO_EDIF!C3175:C3199",null,null,"bombas, valvulas y tuberias",null,null,30,2100,30,"material n02",0.1,0.4,null,3,27]
["CALCULO_EDIF!C3224:D129",3200,3224,129,"CALCULO_EDIF!C3200:C3224",null,null,"red electrica",20,null,null,2100,42000,"material n02",0.1,0.4,null,4200,37800]
["CALCULO_EDIF!C3249:D130",3225,3249,130,"CALCULO_EDIF!C3225:C3249",null,null,"baterias",25,null,null,2100,52500,"material n02",0.1,0.4,null,5250,47250]
["CALCULO_EDIF!C3274:D131",3250,3274,131,"CALCULO_EDIF!C3250:C3274",null,null,"otros",30,null,null,2100,63000,"material n02",0.1,0.4,null,6300,56700]
[null,null,null,null,null,null,null,null,null,null,null,null,null,null,null,null,null,{"$f":"SUM(R142:R164)","v":8439.625},{"$f":"SUM(S142:S164)","v":75960.375},null,{"$f":"R172/(R172+S172)","v":9.9995556872037913E-2}]

{"sheet":"entrada datos Urbanizacion","index":3,"n_rows":90,"n_cols":21,"rows_kept":90,"cut":false,"hidden":false,"merged":[[84,20,88,20],[34,20,36,20],[65,20,70,20],[72,20,82,20],[24,20,26,20],[28,20,32,20],[58,20,61,20],[38,20,56,20],[1,14,1,15],[4,20,7,20],[9,20,13,20],[15,20,18,20],[23,14,23,15]]}
["Valor:"]
[null,"fila empieza","Fila termina","Lista asociada","Para poner en la lista",null,"APLICACIONES NO LIGADAS",null,"m3","o","Kg","d","kg","Material seleccionado","% reciclado",null,null,"Material\nReciclado\n[Kg]","Material\nno Reciclado\n[Kg]",null,"Material Reciclado\n[%]"]
[{"$f":"CONCATENATE(\"CALCULO_EDIF!\",\"C\",C3,\":\",\"D\",D3)","v":"CALCULO_EDIF!C3299:D132"},{"$f":"IF(D3=1,1,(D3-1)*25)","v":3275},{"$f":"IF(D3=1,24,B3+24)","v":3299},132,{"$f":"CONCATENATE(\"CALCULO_EDIF!\",\"C\",B3,\":\",\"C\",C3)","v":"CALCULO_EDIF!C3275:C3299"},null,"DRENAJE","drenaje de grava",5,null,null,1800,{"$f":"IF(AND(ISBLANK(I3)*ISBLANK(K3)),\"-\",IF(AND(NOT(ISBLANK(I3))*NOT(ISBLANK(K3))),\"Error\",IF(ISBLANK(I3),K3,I3*L3)))","v":9000},"material n03",{"$f":"IF(N3=\"Otro\",$A$1,VLOOKUP(N3, INDIRECT(A3),2,FALSE))","v":0.15},0.4,null,{"$f":"IF(O3=\"Valor:\",M3*P3,M3*O3)","v":1350},{"$f":"M3-R3","v":7650},null,{"$f":"SUM(R3:R3)/SUM(M3:M3)","v":0.15}]
[]
[{"$f":"CONCATENATE(\"CALCULO_EDIF!\",\"C\",C5,\":\",\"D\",D5)","v":"CALCULO_EDIF!C3324:D133"},3300,{"$f":"IF(D5=1,24,B5+24)","v":3324},133,{"$f":"CONCATENATE(\"CALCULO_EDIF!\",\"C\",B5,\":\",\"C\",C5)","v":"CALCULO_EDIF!C3300:C3324"},null,"MOVIMIENTO E TIERRAS","material de explanadas",null,null,20,2500,{"$f":"IF(AND(ISBLANK(I5)*ISBLANK(K5)),\"-\",IF(AND(NOT(ISBLANK(I5))*NOT(ISBLANK(K5))),\"Error\",IF(ISBLANK(I5),K5,I5*L5)))","v":20},"material n04",{"$f":"IF(N5=\"Otro\",$A$1,VLOOKUP(N5, INDIRECT(A5),2,FALSE))","v":0.2},0.4,null,{"$f":"IF(O5=\"Valor:\",M5*P5,M5*O5)","v":4},{"$f":"M5-R5","v":16},null,{"$f":"SUM(R5:R8)/SUM(M5:M8)","v":0.10109278350515465}]
["CALCULO_EDIF!C3349:D134",3325,3349,134,"CALCULO_EDIF!C3325:C3349",null,null,"material de terraplenes o afines",null,null,10,2500,{"$f":"IF(AND(ISBLANK(I6)*ISBLANK(K6)),\"-\",IF(AND(NOT(ISBLANK(I6))*NOT(ISBLANK(K6))),\"Error\",IF(ISBLANK(I6),K6,I6*L6)))","v":10},"Otro",{"$f":"IF(N6=\"Otro\",$A$1,VLOOKUP(N6, INDIRECT(A6),2,FALSE))","v":"Valor:"},0.23,null,{"$f":"IF(O6=\"Valor:\",M6*P6,M6*O6)","v":2.3000000000000003},{"$f":"M6-R6","v":7.6999999999999993}]
[{"$f":"CONCATENATE(\"CALCULO_EDIF!\",\"C\",C7,\":\",\"D\",D7)","v":"CALCULO_EDIF!C3374:D135"},{"$f":"IF(D7=1,1,(D7-1)*25)","v":3350},{"$f":"IF(D7=1,24,B7+24)","v":3374},135,{"$f":"CONCATENATE(\"CALCULO_EDIF!\",\"C\",B7,\":\",\"C\",C7)","v":"CALCULO_EDIF!C3350:C3374"},null,null,"material para urbanizaciones y rellenos",null,null,20,2500,{"$f":"IF(AND(ISBLANK(I7)*ISBLANK(K7)),\"-\",IF(AND(NOT(ISBLANK(I7))*NOT(ISBLANK(K7))),\"Error\",IF(ISBLANK(I7),K7,I7*L7)))","v":20},"material n04",{"$f":"IF(N7=\"Otro\",$A$1,VLOOKUP(N7, INDIRECT(A7),2,FALSE))","v":0.2},0.4,null,{"$f":"IF(O7=\"Valor:\",M7*P7,M7*O7)","v":4},{"$f":"M7-R7","v":16}]
["CALCULO_EDIF!C3399:D136",3375,3399,136,"CALCULO_EDIF!C3375:C3399",null,null,"zanjas y pozos",3,null,null,1600,{"$f":"IF(AND(ISBLANK(I8)*ISBLANK(K8)),\"-\",IF(AND(NOT(ISBLANK(I8))*NOT(ISBLANK(K8))),\"Error\",IF(ISBLANK(I8),K8,I8*L8)))","v":4800},"material n02",{"$f":"IF(N8=\"Otro\",$A$1,VLOOKUP(N8, INDIRECT(A8),2,FALSE))","v":0.1},0.4,null,{"$f":"IF(O8=\"Valor:\",M8*P8,M8*O8)","v":480},{"$f":"M8-R8","v":4320}]
[]
["CALCULO_EDIF!C3424:D137",{"$f":"IF(D10=1,1,(D10-1)*25)","v":3400},{"$f":"IF(D10=1,24,B10+24)","v":3424},137,"CALCULO_EDIF!C3400:C3424",null,"SUBBASES","granular",null,null,59,1800,{"$f":"IF(AND(ISBLANK(I10)*ISBLANK(K10)),\"-\",IF(AND(NOT(ISBLANK(I10))*NOT(ISBLANK(K10))),\"Error\",IF(ISBLANK(I10),K10,I10*L10)))","v":59},"material n05",{"$f":"IF(N10=\"Otro\",$A$1,VLOOKUP(N10, INDIRECT(A10),2,FALSE))","v":0.25},0.4,null,{"$f":"IF(O10=\"Valor:\",M10*P10,M10*O10)","v":14.75},{"$f":"M10-R10","v":44.25},null,{"$f":"SUM(R10:R14)/SUM(M10:M14)","v":0.25206806456612713}]
["CALCULO_EDIF!C3449:D138",3425,3449,138,"CALCULO_EDIF!C3425:C3449",null,null,"suelo-cemento",null,null,58,1800,{"$f":"IF(AND(ISBLANK(I11)*ISBLANK(K11)),\"-\",IF(AND(NOT(ISBLANK(I11))*NOT(ISBLANK(K11))),\"Error\",IF(ISBLANK(I11),K11,I11*L11)))","v":58},"material n04",{"$f":"IF(N11=\"Otro\",$A$1,VLOOKUP(N11, INDIRECT(A11),2,FALSE))","v":0.2},0.4,null,{"$f":"IF(O11=\"Valor:\",M11*P11,M11*O11)","v":11.600000000000001},{"$f":"M11-R11","v":46.4}]
["CALCULO_EDIF!C3474:D139",3450,3474,139,"CALCULO_EDIF!C3450:C3474",null,null,"grava-emulsión",45,null,null,1900,{"$f":"IF(AND(ISBLANK(I12)*ISBLANK(K12)),\"-\",IF(AND(NOT(ISBLANK(I12))*NOT(ISBLANK(K12))),\"Error\",IF(ISBLANK(I12),K12,I12*L12)))","v":85500},"Otro",{"$f":"IF(N12=\"Otro\",$A$1,VLOOKUP(N12, INDIRECT(A12),2,FALSE))","v":"Valor:"},0.31,null,{"$f":"IF(O12=\"Valor:\",M12*P12,M12*O12)","v":26505},{"$f":"M12-R12","v":58995}]
["CALCULO_EDIF!C3499:D140",3475,3499,140,"CALCULO_EDIF!C3475:C3499",null,null,"grava-cemento",50,null,null,1900,{"$f":"IF(AND(ISBLANK(I13)*ISBLANK(K13)),\"-\",IF(AND(NOT(ISBLANK(I13))*NOT(ISBLANK(K13))),\"Error\",IF(ISBLANK(I13),K13,I13*L13)))","v":95000},"material n04",{"$f":"IF(N13=\"Otro\",$A$1,VLOOKUP(N13, INDIRECT(A13),2,FALSE))","v":0.2},0.4,null,{"$f":"IF(O13=\"Valor:\",M13*P13,M13*O13)","v":19000},{"$f":"M13-R13","v":76000}]
["CALCULO_EDIF!C3524:D141",3500,3524,141,"CALCULO_EDIF!C3500:C3524",null,null,"sablón",null,null,35,1500,{"$f":"IF(AND(ISBLANK(I14)*ISBLANK(K14)),\"-\",IF(AND(NOT(ISBLANK(I14))*NOT(ISBLANK(K14))),\"Error\",IF(ISBLANK(I14),K14,I14*L14)))","v":35},"material n03",{"$f":"IF(N14=\"Otro\",$A$1,VLOOKUP(N14, INDIRECT(A14),2,FALSE))","v":0.15},0.4,null,{"$f":"IF(O14=\"Valor:\",M14*P14,M14*O14)","v":5.25},{"$f":"M14-R14","v":29.75}]
[]
["CALCULO_EDIF!C3549:D142",{"$f":"IF(D16=1,1,(D16-1)*25)","v":3525},{"$f":"IF(D16=1,24,B16+24)","v":3549},142,"CALCULO_EDIF!C3525:C3549",null,"BASES","grava-escoria",95,null,null,1800,{"$f":"IF(AND(ISBLANK(I16)*ISBLANK(K16)),\"-\",IF(AND(NOT(ISBLANK(I16))*NOT(ISBLANK(K16))),\"Error\",IF(ISBLANK(I16),K16,I16*L16)))","v":171000},"material n05",{"$f":"IF(N16=\"Otro\",$A$1,VLOOKUP(N16, INDIRECT(A16),2,FALSE))","v":0.25},0.4,null,{"$f":"IF(O16=\"Valor:\",M16*P16,M16*O16)","v":42750},{"$f":"M16-R16","v":128250},null,{"$f":"SUM(R16:R19)/SUM(M16:M19)","v":0.18167649858490414}]
["CALCULO_EDIF!C3574:D143",3550,3574,143,"CALCULO_EDIF!C3550:C3574",null,null,"todo-uno",null,null,63,1600,{"$f":"IF(AND(ISBLANK(I17)*ISBLANK(K17)),\"-\",IF(AND(NOT(ISBLANK(I17))*NOT(ISBLANK(K17))),\"Error\",IF(ISBLANK(I17),K17,I17*L17)))","v":63},"material n03",{"$f":"IF(N17=\"Otro\",$A$1,VLOOKUP(N17, INDIRECT(A17),2,FALSE))","v":0.15},0.4,null,{"$f":"IF(O17=\"Valor:\",M17*P17,M17*O17)","v":9.4499999999999993},{"$f":"M17-R17","v":53.55}]
["CALCULO_EDIF!C3599:D144",3575,3599,144,"CALCULO_EDIF!C3575:C3599",null,null,"macadam",65,null,null,2200,{"$f":"IF(AND(ISBLANK(I18)*ISBLANK(K18)),\"-\",IF(AND(NOT(ISBLANK(I18))*NOT(ISBLANK(K18))),\"Error\",IF(ISBLANK(I18),K18,I18*L18)))","v":143000},"material n02",{"$f":"IF(N18=\"Otro\",$A$1,VLOOKUP(N18, INDIRECT(A18),2,FALSE))","v":0.1},0.4,null,{"$f":"IF(O18=\"Valor:\",M18*P18,M18*O18)","v":14300},{"$f":"M18-R18","v":128700}]
["CALCULO_EDIF!C3624:D145",{"$f":"IF(D19=1,1,(D19-1)*25)","v":3600},{"$f":"IF(D19=1,24,B19+24)","v":3624},145,"CALCULO_EDIF!C3600:C3624",null,null,"zahorra",null,null,50,2200,{"$f":"IF(AND(ISBLANK(I19)*ISBLANK(K19)),\"-\",IF(AND(NOT(ISBLANK(I19))*NOT(ISBLANK(K19))),\"Error\",IF(ISBLANK(I19),K19,I19*L19)))","v":50},"material n03",{"$f":"IF(N19=\"Otro\",$A$1,VLOOKUP(N19, INDIRECT(A19),2,FALSE))","v":0.15},0.4,null,{"$f":"IF(O19=\"Valor:\",M19*P19,M19*O19)","v":7.5},{"$f":"M19-R19","v":42.5}]
[]
["CALCULO_EDIF!C3649:D146",{"$f":"IF(D21=1,1,(D21-1)*25)","v":3625},{"$f":"IF(D21=1,24,B21+24)","v":3649},146,"CALCULO_EDIF!C3625:C3649",null,"PAVIMENTO","pavimento de zahorra",56,null,null,2200,{"$f":"IF(AND(ISBLANK(I21)*ISBLANK(K21)),\"-\",IF(AND(NOT(ISBLANK(I21))*NOT(ISBLANK(K21))),\"Error\",IF(ISBLANK(I21),K21,I21*L21)))","v":123200},"material n05",{"$f":"IF(N21=\"Otro\",$A$1,VLOOKUP(N21, INDIRECT(A21),2,FALSE))","v":0.25},0.4,null,{"$f":"IF(O21=\"Valor:\",M21*P21,M21*O21)","v":30800},{"$f":"M21-R21","v":92400},null,{"$f":"SUM(R21:R21)/SUM(M21:M21)","v":0.25}]
[null,null,null,null,null,null,null,null,null,null,null,null,null,null,null,null,null,{"$f":"SUM(R3:R21)","v":135243.84999999998},{"$f":"SUM(S3:T21)","v":496571.14999999997},null,{"$f":"R22/(R22+S22)","v":0.21405609236881046}]
[]
[null,null,null,null,null,null,"APLICACIONES LIGADAS / OTROS",null,"m3",null,null,"d","kg",null,"% reciclado",null,null,"Material\nReciclado\n[Kg]","Material\nno Reciclado\n[Kg]",null,"Material Reciclado\n[%]"]
["CALCULO_EDIF!C3674:D147",{"$f":"IF(D25=1,1,(D25-1)*25)","v":3650},3674,147,"CALCULO_EDIF!C3650:C3674",null,"DRENAJE","drenaje con tubo de PVC",10,null,null,1390,{"$f":"IF(AND(ISBLANK(I25)*ISBLANK(K25)),\"-\",IF(AND(NOT(ISBLANK(I25))*NOT(ISBLANK(K25))),\"Error\",IF(ISBLANK(I25),K25,I25*L25)))","v":13900},"material n07",{"$f":"IF(N25=\"Otro\",$A$1,VLOOKUP(N25, INDIRECT(A25),2,FALSE))","v":0.35},0.4,null,{"$f":"IF(O25=\"Valor:\",M25*P25,M25*O25)","v":4865},{"$f":"M25-R25","v":9035},null,{"$f":"SUM(R25:R27)/SUM(M25:M27)","v":0.34973089343379976}]
["CALCULO_EDIF!C3699:D148",3675,3699,148,"CALCULO_EDIF!C3675:C3699",null,null,"drenaje con tubo de hormigón",null,null,15,2400,{"$f":"IF(AND(ISBLANK(I26)*ISBLANK(K26)),\"-\",IF(AND(NOT(ISBLANK(I26))*NOT(ISBLANK(K26))),\"Error\",IF(ISBLANK(I26),K26,I26*L26)))","v":15},"material n06",{"$f":"IF(N26=\"Otro\",$A$1,VLOOKUP(N26, INDIRECT(A26),2,FALSE))","v":0.3},0.4,null,{"$f":"IF(O26=\"Valor:\",M26*P26,M26*O26)","v":4.5},{"$f":"M26-R26","v":10.5}]
["CALCULO_EDIF!C3724:D149",3700,3724,149,"CALCULO_EDIF!C3700:C3724",null,null,"geotextil",null,null,20,200,{"$f":"IF(AND(ISBLANK(I27)*ISBLANK(K27)),\"-\",IF(AND(NOT(ISBLANK(I27))*NOT(ISBLANK(K27))),\"Error\",IF(ISBLANK(I27),K27,I27*L27)))","v":20},"material n04",{"$f":"IF(N27=\"Otro\",$A$1,VLOOKUP(N27, INDIRECT(A27),2,FALSE))","v":0.2},0.4,null,{"$f":"IF(O27=\"Valor:\",M27*P27,M27*O27)","v":4},{"$f":"M27-R27","v":16}]
[]
["CALCULO_EDIF!C3749:D150",3725,3749,150,"CALCULO_EDIF!C3725:C3749",null,"BASE","hormigón magro",3,null,null,2400,{"$f":"IF(AND(ISBLANK(I29)*ISBLANK(K29)),\"-\",IF(AND(NOT(ISBLANK(I29))*NOT(ISBLANK(K29))),\"Error\",IF(ISBLANK(I29),K29,I29*L29)))","v":7200},"material n05",{"$f":"IF(N29=\"Otro\",$A$1,VLOOKUP(N29, INDIRECT(A29),2,FALSE))","v":0.25},0.4,null,{"$f":"IF(O29=\"Valor:\",M29*P29,M29*O29)","v":1800},{"$f":"M29-R29","v":5400},null,{"$f":"SUM(R29:R33)/SUM(M29:M33)","v":0.19575889692329504}]
["CALCULO_EDIF!C3774:D151",3750,3774,151,"CALCULO_EDIF!C3750:C3774",null,null,"hormigón compactado",4,null,null,2400,9600,"material n03",0.15,0.4,null,1440,8160]
["CALCULO_EDIF!C3799:D152",3775,3799,152,"CALCULO_EDIF!C3775:C3799",null,null,"suelo-cemento",null,null,5,1800,5,"material n04",0.2,0.4,null,1,4]
["CALCULO_EDIF!C3824:D153",3800,3824,153,"CALCULO_EDIF!C3800:C3824",null,null,"grava-cemento",6,null,null,1900,11400,"material n04",0.2,0.4,null,2280,9120]
["CALCULO_EDIF!C3849:D154",3825,3849,154,"CALCULO_EDIF!C3825:C3849",null,null,"grava-emulsión",null,null,7,1900,7,"material n05",0.25,0.4,null,1.75,5.25]
[]
[{"$f":"CONCATENATE(\"CALCULO_EDIF!\",\"C\",C35,\":\",\"D\",D35)","v":"CALCULO_EDIF!C3874:D155"},{"$f":"IF(D35=1,1,(D35-1)*25)","v":3850},{"$f":"IF(D35=1,24,B35+24)","v":3874},155,{"$f":"CONCATENATE(\"CALCULO_EDIF!\",\"C\",B35,\":\",\"C\",C35)","v":"CALCULO_EDIF!C3850:C3874"},null,"HORMIGONES Y MORTEROS","hormigones estructurales",3,null,null,2400,{"$f":"IF(AND(ISBLANK(I35)*ISBLANK(K35)),\"-\",IF(AND(NOT(ISBLANK(I35))*NOT(ISBLANK(K35))),\"Error\",IF(ISBLANK(I35),K35,I35*L35)))","v":7200},"material n05",{"$f":"IF(N35=\"Otro\",$A$1,VLOOKUP(N35, INDIRECT(A35),2,FALSE))","v":0.25},0.4,null,{"$f":"IF(O35=\"Valor:\",M35*P35,M35*O35)","v":1800},{"$f":"M35-R35","v":5400},null,{"$f":"SUM(R35:R37)/SUM(M35:M37)","v":0.19285926807497769}]
["CALCULO_EDIF!C3899:D156",3875,3899,156,"CALCULO_EDIF!C3875:C3899",null,null,"hormigones no estructurales ",4,null,null,2400,9600,"material n03",0.15,0.4,null,1440,8160]
["CALCULO_EDIF!C3924:D157",3900,3924,157,"CALCULO_EDIF!C3900:C3924",null,null,"morteros",null,null,5,1800,5,"material n04",0.2,0.4,null,1,4]
[]
["CALCULO_EDIF!C3949:D158",3925,3949,158,"CALCULO_EDIF!C3925:C3949",null,"PAVIMENTOS","bituminosos",10,null,null,2100,{"$f":"IF(AND(ISBLANK(I39)*ISBLANK(K39)),\"-\",IF(AND(NOT(ISBLANK(I39))*NOT(ISBLANK(K39))),\"Error\",IF(ISBLANK(I39),K39,I39*L39)))","v":21000},"material n03",{"$f":"IF(N39=\"Otro\",$A$1,VLOOKUP(N39, INDIRECT(A39),2,FALSE))","v":0.15},0.4,null,{"$f":"IF(O39=\"Valor:\",M39*P39,M39*O39)","v":3150},{"$f":"M39-R39","v":17850},null,{"$f":"SUM(R39:R57)/SUM(M39:M57)","v":0.40100582604126206}]
["CALCULO_EDIF!C3974:D159",3950,3974,159,"CALCULO_EDIF!C3950:C3974",null,null,"loseta hidráulica",null,null,45,2100,45,"material n10",0.5,0.4,null,22.5,22.5]
["CALCULO_EDIF!C3999:D160",3975,3999,160,"CALCULO_EDIF!C3975:C3999",null,null,"loseta terrazo",null,null,50,1800,50,"material n04",0.2,0.4,null,10,40]
["CALCULO_EDIF!C4024:D161",4000,4024,161,"CALCULO_EDIF!C4000:C4024",null,null,"losa granito",null,null,65,2600,65,"material n03",0.15,0.4,null,9.75,55.25]
["CALCULO_EDIF!C4049:D162",{"$f":"IF(D43=1,1,(D43-1)*25)","v":4025},{"$f":"IF(D43=1,24,B43+24)","v":4049},162,"CALCULO_EDIF!C4025:C4049",null,null,"baldosa de asfalto",null,null,20,1300,20,"material n03",0.15,0.4,null,3,17]
["CALCULO_EDIF!C4074:D163",4050,4074,163,"CALCULO_EDIF!C4050:C4074",null,null,"adoquín de hormigón",25,null,null,2400,60000,"material n06",0.3,0.4,null,18000,42000]
["CALCULO_EDIF!C4099:D164",4075,4099,164,"CALCULO_EDIF!C4075:C4099",null,null,"adoquín de granito",null,null,56,2600,56,"Otro","Valor:",0.32,null,17.920000000000002,38.08]
["CALCULO_EDIF!C4124:D165",{"$f":"IF(D46=1,1,(D46-1)*25)","v":4100},{"$f":"IF(D46=1,24,B46+24)","v":4124},165,"CALCULO_EDIF!C4100:C4124",null,null,"adoquín cerámico",null,null,36,2300,36,"material n04",0.2,0.4,null,7.2,28.8]
["CALCULO_EDIF!C4149:D166",4125,4149,166,"CALCULO_EDIF!C4125:C4149",null,null,"baldosa Hormigón pref",null,null,78,2200,78,"material n05",0.25,0.4,null,19.5,58.5]
[{"$f":"CONCATENATE(\"CALCULO_EDIF!\",\"C\",C48,\":\",\"D\",D48)","v":"CALCULO_EDIF!C4174:D167"},{"$f":"IF(D48=1,1,(D48-1)*25)","v":4150},{"$f":"IF(D48=1,24,B48+24)","v":4174},167,{"$f":"CONCATENATE(\"CALCULO_EDIF!\",\"C\",B48,\":\",\"C\",C48)","v":"CALCULO_EDIF!C4150:C4174"},null,null,"pavimento sintético",null,null,10000,2200,{"$f":"IF(AND(ISBLANK(I48)*ISBLANK(K48)),\"-\",IF(AND(NOT(ISBLANK(I48))*NOT(ISBLANK(K48))),\"Error\",IF(ISBLANK(I48),K48,I48*L48)))","v":10000},"LOSETAS FLEXIBLES - ZICLA",{"$f":"IF(N48=\"Otro\",$A$1,VLOOKUP(N48, INDIRECT(A48),2,FALSE))","v":1},0.1,null,{"$f":"IF(O48=\"Valor:\",M48*P48,M48*O48)","v":10000},{"$f":"M48-R48","v":0}]
["CALCULO_EDIF!C4199:D168",4175,4199,168,"CALCULO_EDIF!C4175:C4199",null,null,"pavimento continuo slurry",10,null,null,1400,14000,"material n04",0.2,0.4,null,2800,11200]
["CALCULO_EDIF!C4224:D169",4200,4224,169,"CALCULO_EDIF!C4200:C4224",null,null,"hormigón impreso",null,null,25,2400,25,"material n07",0.35,0.4,null,8.75,16.25]
["CALCULO_EDIF!C4249:D170",4225,4249,170,"CALCULO_EDIF!C4225:C4249",null,null,"pavimento de garbancillo",15,null,null,1800,27000,"material n04",0.2,0.4,null,5400,21600]
["CALCULO_EDIF!C4274:D171",4250,4274,171,"CALCULO_EDIF!C4250:C4274",null,null,"pavimento hormigón prefabricado",10,null,null,2500,25000,"ECODRAIN-ICA – GRUPO  SORIGUE",0.5,0.4,null,12500,12500]
[{"$f":"CONCATENATE(\"CALCULO_EDIF!\",\"C\",C53,\":\",\"D\",D53)","v":"CALCULO_EDIF!C4299:D172"},{"$f":"IF(D53=1,1,(D53-1)*25)","v":4275},{"$f":"IF(D53=1,24,B53+24)","v":4299},172,{"$f":"CONCATENATE(\"CALCULO_EDIF!\",\"C\",B53,\":\",\"C\",C53)","v":"CALCULO_EDIF!C4275:C4299"},null,null,"pavimento de madera",10,null,null,2500,{"$f":"IF(AND(ISBLANK(I53)*ISBLANK(K53)),\"-\",IF(AND(NOT(ISBLANK(I53))*NOT(ISBLANK(K53))),\"Error\",IF(ISBLANK(I53),K53,I53*L53)))","v":25000},"Pasarela fija/enrollable-ZICLA",{"$f":"IF(N53=\"Otro\",$A$1,VLOOKUP(N53, INDIRECT(A53),2,FALSE))","v":1},0.4,null,{"$f":"IF(O53=\"Valor:\",M53*P53,M53*O53)","v":25000},{"$f":"M53-R53","v":0}]
["CALCULO_EDIF!C4324:D173",4300,4324,173,"CALCULO_EDIF!C4300:C4324",null,null,"otros pavimentos",null,null,100,2200,10000,"material n11",{"$f":"IF(N54=\"Otro\",$A$1,VLOOKUP(N54, INDIRECT(A54),2,FALSE))","v":0.55000000000000004},0.4,null,{"$f":"IF(O54=\"Valor:\",M54*P54,M54*O54)","v":5500},{"$f":"M54-R54","v":4500}]
["CALCULO_EDIF!C4349:D174",4325,4349,174,"CALCULO_EDIF!C4325:C4349",null,null,"base de pavimento peatonal",12,null,null,2200,26400,"material n04",0.2,0.4,null,5280,21120]
["CALCULO_EDIF!C4374:D175",4350,4374,175,"CALCULO_EDIF!C4350:C4374",null,null,"peldaño granito",null,null,50,2600,50,"material n07",0.35,0.4,null,17.5,32.5]
["CALCULO_EDIF!C4399:D176",4375,4399,176,"CALCULO_EDIF!C4375:C4399",null,null,"bordillos, cunetas y alcorques",null,null,20,2400,20,"material n12",0.6,0.4,null,12,8]
[]
[{"$f":"CONCATENATE(\"CALCULO_EDIF!\",\"C\",C59,\":\",\"D\",D59)","v":"CALCULO_EDIF!C4424:D177"},{"$f":"IF(D59=1,1,(D59-1)*25)","v":4400},{"$f":"IF(D59=1,24,B59+24)","v":4424},177,{"$f":"CONCATENATE(\"CALCULO_EDIF!\",\"C\",B59,\":\",\"C\",C59)","v":"CALCULO_EDIF!C4400:C4424"},null,"RIEGO BITUMINOSOS","riego de adherencia",1,null,null,1050,{"$f":"IF(AND(ISBLANK(I59)*ISBLANK(K59)),\"-\",IF(AND(NOT(ISBLANK(I59))*NOT(ISBLANK(K59))),\"Error\",IF(ISBLANK(I59),K59,I59*L59)))","v":1050},"material n11",{"$f":"IF(N59=\"Otro\",$A$1,VLOOKUP(N59, INDIRECT(A59),2,FALSE))","v":0.55000000000000004},0.4,null,{"$f":"IF(O59=\"Valor:\",M59*P59,M59*O59)","v":577.5},{"$f":"M59-R59","v":472.5},null,{"$f":"SUM(R59:R62)/SUM(M59:M62)","v":0.62058383233532932}]
[{"$f":"CONCATENATE(\"CALCULO_EDIF!\",\"C\",C60,\":\",\"D\",D60)","v":"CALCULO_EDIF!C4449:D178"},{"$f":"IF(D60=1,1,(D60-1)*25)","v":4425},{"$f":"IF(D60=1,24,B60+24)","v":4449},178,{"$f":"CONCATENATE(\"CALCULO_EDIF!\",\"C\",B60,\":\",\"C\",C60)","v":"CALCULO_EDIF!C4425:C4449"},null,null,"riego de imprimación",2,null,null,1050,{"$f":"IF(AND(ISBLANK(I60)*ISBLANK(K60)),\"-\",IF(AND(NOT(ISBLANK(I60))*NOT(ISBLANK(K60))),\"Error\",IF(ISBLANK(I60),K60,I60*L60)))","v":2100},"material n15",{"$f":"IF(N60=\"Otro\",$A$1,VLOOKUP(N60, INDIRECT(A60),2,FALSE))","v":0.75},0.4,null,{"$f":"IF(O60=\"Valor:\",M60*P60,M60*O60)","v":1575},{"$f":"M60-R60","v":525}]
["CALCULO_EDIF!C4474:D179",4450,4474,179,"CALCULO_EDIF!C4450:C4474",null,null,"riego de curado",3,null,null,1010,{"$f":"IF(AND(ISBLANK(I61)*ISBLANK(K61)),\"-\",IF(AND(NOT(ISBLANK(I61))*NOT(ISBLANK(K61))),\"Error\",IF(ISBLANK(I61),K61,I61*L61)))","v":3030},"material n12",{"$f":"IF(N61=\"Otro\",$A$1,VLOOKUP(N61, INDIRECT(A61),2,FALSE))","v":0.6},0.4,null,{"$f":"IF(O61=\"Valor:\",M61*P61,M61*O61)","v":1818},{"$f":"M61-R61","v":1212}]
["CALCULO_EDIF!C4499:D180",4475,4499,180,"CALCULO_EDIF!C4475:C4499",null,null,"riego de penetración",null,null,500,1050,{"$f":"IF(AND(ISBLANK(I62)*ISBLANK(K62)),\"-\",IF(AND(NOT(ISBLANK(I62))*NOT(ISBLANK(K62))),\"Error\",IF(ISBLANK(I62),K62,I62*L62)))","v":500},"material n07",{"$f":"IF(N62=\"Otro\",$A$1,VLOOKUP(N62, INDIRECT(A62),2,FALSE))","v":0.35},0.4,null,{"$f":"IF(O62=\"Valor:\",M62*P62,M62*O62)","v":175},{"$f":"M62-R62","v":325}]
[]
["CALCULO_EDIF!C4524:D181",{"$f":"IF(D64=1,1,(D64-1)*25)","v":4500},{"$f":"IF(D64=1,24,B64+24)","v":4524},181,"CALCULO_EDIF!C4500:C4524",null,"TRATAMIENTOS","tratamientos especiales",2,null,null,1000,{"$f":"IF(AND(ISBLANK(I64)*ISBLANK(K64)),\"-\",IF(AND(NOT(ISBLANK(I64))*NOT(ISBLANK(K64))),\"Error\",IF(ISBLANK(I64),K64,I64*L64)))","v":2000},"material n05",{"$f":"IF(N64=\"Otro\",$A$1,VLOOKUP(N64, INDIRECT(A64),2,FALSE))","v":0.25},0.4,null,{"$f":"IF(O64=\"Valor:\",M64*P64,M64*O64)","v":500},{"$f":"M64-R64","v":1500},null,{"$f":"SUM(R64:R64)/SUM(M64:M64)","v":0.25}]
[]
[{"$f":"CONCATENATE(\"CALCULO_EDIF!\",\"C\",C66,\":\",\"D\",D66)","v":"CALCULO_EDIF!C4549:D182"},{"$f":"IF(D66=1,1,(D66-1)*25)","v":4525},{"$f":"IF(D66=1,24,B66+24)","v":4549},182,{"$f":"CONCATENATE(\"CALCULO_EDIF!\",\"C\",B66,\":\",\"C\",C66)","v":"CALCULO_EDIF!C4525:C4549"},null,"SEÑALIZACIÓN Y BALIZAMIENTO","pantallas acusticas",10,null,null,2100,{"$f":"IF(AND(ISBLANK(I66)*ISBLANK(K66)),\"-\",IF(AND(NOT(ISBLANK(I66))*NOT(ISBLANK(K66))),\"Error\",IF(ISBLANK(I66),K66,I66*L66)))","v":21000},"T SONIC- ANTONIO CASADO Y CIA, S.L.",{"$f":"IF(N66=\"Otro\",$A$1,VLOOKUP(N66, INDIRECT(A66),2,FALSE))","v":1},0.4,null,{"$f":"IF(O66=\"Valor:\",M66*P66,M66*O66)","v":21000},{"$f":"M66-R66","v":0},null,{"$f":"SUM(R66:R71)/SUM(M66:M71)","v":0.99279094928967915}]
[{"$f":"CONCATENATE(\"CALCULO_EDIF!\",\"C\",C67,\":\",\"D\",D67)","v":"CALCULO_EDIF!C4574:D183"},{"$f":"IF(D67=1,1,(D67-1)*25)","v":4550},{"$f":"IF(D67=1,24,B67+24)","v":4574},183,{"$f":"CONCATENATE(\"CALCULO_EDIF!\",\"C\",B67,\":\",\"C\",C67)","v":"CALCULO_EDIF!C4550:C4574"},null,null,"barandillas y barreras",null,null,45,2100,45,"material n10",0.5,0.4,null,22.5,22.5]
["CALCULO_EDIF!C4599:D184",4575,4599,184,"CALCULO_EDIF!C4575:C4599",null,null,"Elementos de movilidad (plataformas y balizamiento)",null,null,50,2100,50,"ZEBRA-ZICLA",1,0.4,null,50,0]
["CALCULO_EDIF!C4624:D185",4600,4624,185,"CALCULO_EDIF!C4600:C4624",null,null,"señales",null,null,65,2600,65,"material n03",0.15,0.4,null,9.75,55.25]
["CALCULO_EDIF!C4649:D186",4625,4649,186,"CALCULO_EDIF!C4625:C4649",null,null,"espejos",null,null,78,2200,78,"material n05",0.25,0.4,null,19.5,58.5]
["CALCULO_EDIF!C4674:D187",4650,4674,187,"CALCULO_EDIF!C4650:C4674",null,null,"bolardos y pilonas",null,null,20,1300,20,"material n03",0.15,0.4,null,3,17]
[]
[{"$f":"CONCATENATE(\"CALCULO_EDIF!\",\"C\",C73,\":\",\"D\",D73)","v":"CALCULO_EDIF!C4699:D188"},{"$f":"IF(D73=1,1,(D73-1)*25)","v":4675},{"$f":"IF(D73=1,24,B73+24)","v":4699},188,{"$f":"CONCATENATE(\"CALCULO_EDIF!\",\"C\",B73,\":\",\"C\",C73)","v":"CALCULO_EDIF!C4675:C4699"},null,"MOBILIARIO URBANO","bancos y mesas",10,null,null,1200,500,"ROMANTICO - ZICLA",{"$f":"IF(N73=\"Otro\",$A$1,VLOOKUP(N73, INDIRECT(A73),2,FALSE))","v":1},0.4,null,{"$f":"IF(O73=\"Valor:\",M73*P73,M73*O73)","v":500},{"$f":"M73-R73","v":0},null,{"$f":"SUM(R73:R83)/SUM(M73:M83)","v":0.91986039023181976}]
[{"$f":"CONCATENATE(\"CALCULO_EDIF!\",\"C\",C74,\":\",\"D\",D74)","v":"CALCULO_EDIF!C4724:D189"},{"$f":"IF(D74=1,1,(D74-1)*25)","v":4700},{"$f":"IF(D74=1,24,B74+24)","v":4724},189,{"$f":"CONCATENATE(\"CALCULO_EDIF!\",\"C\",B74,\":\",\"C\",C74)","v":"CALCULO_EDIF!C4700:C4724"},null,null,"fuentes",null,null,45,2100,{"$f":"IF(AND(ISBLANK(I74)*ISBLANK(K74)),\"-\",IF(AND(NOT(ISBLANK(I74))*NOT(ISBLANK(K74))),\"Error\",IF(ISBLANK(I74),K74,I74*L74)))","v":45},"material n13",0.65,0.4,null,29.25,15.75]
["CALCULO_EDIF!C4749:D190",4725,4749,190,"CALCULO_EDIF!C4725:C4749",null,null,"papeleras",null,null,50,1200,50,"SAU- Recollida i Reciclatge SL",1,0.4,null,50,0]
["CALCULO_EDIF!C4774:D191",4750,4774,191,"CALCULO_EDIF!C4750:C4774",null,null,"jardineras",null,null,65,2100,65,"GUILLERIES- Recollida i Reciclatge SL",1,0.4,null,65,0]
["CALCULO_EDIF!C4799:D192",4775,4799,192,"CALCULO_EDIF!C4775:C4799",null,null,"elementos de jardineria",null,null,20,2100,20,"Árido decorativo cerámico-ZICLA",1,0.4,null,20,0]
["CALCULO_EDIF!C4824:D193",4800,4824,193,"CALCULO_EDIF!C4800:C4824",null,null,"paseos y pasarelas",25,null,null,2400,60000,"Pasarela fija/enrollable-ZICLA",1,0.4,null,60000,0]
["CALCULO_EDIF!C4849:D194",4825,4849,194,"CALCULO_EDIF!C4825:C4849",null,null,"juegos infantiles",null,null,36,2300,36,"Otro","Valor:",0.23,null,8.2800000000000011,27.72]
["CALCULO_EDIF!C4874:D195",4850,4874,195,"CALCULO_EDIF!C4850:C4874",null,null,"alcorques",null,null,78,2200,78,"material n07",0.35,0.4,null,27.299999999999997,50.7]
["CALCULO_EDIF!C4899:D196",4875,4899,196,"CALCULO_EDIF!C4875:C4899",null,null,"protecciones",10,null,null,1400,14000,"material n10",0.5,0.4,null,7000,7000]
["CALCULO_EDIF!C4924:D197",4900,4924,197,"CALCULO_EDIF!C4900:C4924",null,null,"vallas",10,null,null,1400,{"$f":"IF(AND(ISBLANK(I82)*ISBLANK(K82)),\"-\",IF(AND(NOT(ISBLANK(I82))*NOT(ISBLANK(K82))),\"Error\",IF(ISBLANK(I82),K82,I82*L82)))","v":14000},"Huesca-ZICLA",{"$f":"IF(N82=\"Otro\",$A$1,VLOOKUP(N82, INDIRECT(A82),2,FALSE))","v":1},0.4,null,{"$f":"IF(O82=\"Valor:\",M82*P82,M82*O82)","v":14000},{"$f":"M82-R82","v":0}]
["CALCULO_EDIF!C4949:D198",4925,4949,198,"CALCULO_EDIF!C4925:C4949",null,null,"aparcabicicletas",null,null,25,2400,25,"APARCABICIS MADERA- Recollida i Reciclatge SL",0.05,0.4,null,1.25,23.75]
[]
[{"$f":"CONCATENATE(\"CALCULO_EDIF!\",\"C\",C85,\":\",\"D\",D85)","v":"CALCULO_EDIF!C4974:D199"},{"$f":"IF(D85=1,1,(D85-1)*25)","v":4950},{"$f":"IF(D85=1,24,B85+24)","v":4974},199,{"$f":"CONCATENATE(\"CALCULO_EDIF!\",\"C\",B85,\":\",\"C\",C85)","v":"CALCULO_EDIF!C4950:C4974"},null,"INSTALACIONES","red abastecimiento",10,null,null,2100,{"$f":"IF(AND(ISBLANK(I85)*ISBLANK(K85)),\"-\",IF(AND(NOT(ISBLANK(I85))*NOT(ISBLANK(K85))),\"Error\",IF(ISBLANK(I85),K85,I85*L85)))","v":21000},"PP-R PIPES- AQUATHERM GMBH ",{"$f":"IF(N85=\"Otro\",$A$1,VLOOKUP(N85, INDIRECT(A85),2,FALSE))","v":0.05},0.4,null,{"$f":"IF(O85=\"Valor:\",M85*P85,M85*O85)","v":1050},{"$f":"M85-R85","v":19950},null,{"$f":"SUM(R85:R89)/SUM(M85:M89)","v":5.2347207835012712E-2}]
["CALCULO_EDIF!C4999:D200",4975,4999,200,"CALCULO_EDIF!C4975:C4999",null,null,"red saneamiento",null,null,45,2100,45,"material n10",0.5,0.4,null,22.5,22.5]
["CALCULO_EDIF!C5024:D201",5000,5024,201,"CALCULO_EDIF!C5000:C5024",null,null,"red electricidad",null,null,50,1800,50,"material n04",0.2,0.4,null,10,40]
["CALCULO_EDIF!C5049:D202",5025,5049,202,"CALCULO_EDIF!C5025:C5049",null,null,"red gas",null,null,65,2600,65,"material n03",0.15,0.4,null,9.75,55.25]
["CALCULO_EDIF!C5074:D203",5050,5074,203,"CALCULO_EDIF!C5050:C5074",null,null,"otros",null,null,78,2200,78,"material n05",0.25,0.4,null,19.5,58.5]
[null,null,null,null,null,null,null,null,null,null,null,null,null,null,null,null,null,{"$f":"SUM(R25:R89)","v":209958.44999999998},{"$f":"SUM(S25:S89)","v":207833.55000000002},null,{"$f":"R90/(R90+S90)","v":0.5025430118336397}]

{"sheet":"resultados","index":4,"n_rows":44,"n_cols":8,"rows_kept":44,"cut":false,"hidden":false,"merged":[]}
[]
[]
[]
[]
[null,"EDIFICACIÓN",null,"Material\nReciclado\n[Kg]","Material\nno Reciclado\n[Kg]",null,"Material Reciclado\n[%]"]
[null,"ACONDICIONAMIENTO Y CIMENTACIÓN",null,{"$f":"'entrada datos Edificación'!R10","v":39778.400000000001},{"$f":"'entrada datos Edificación'!S10","v":129551.6},null,{"$f":"D6/(D6+E6)","v":0.23491643536290086}]
[null,"ESTRUCTURA",null,{"$f":"'entrada datos Edificación'!R25","v":109291.08929999999},{"$f":"'entrada datos Edificación'!S25","v":24886.910699999993},null,{"$f":"D7/(D7+E7)","v":0.8145231654965791}]
[null,"FACHADAS",null,{"$f":"'entrada datos Edificación'!R57","v":52963.75},{"$f":"'entrada datos Edificación'!S57","v":66340.25},null,0.44393943203916048]
[null,"CUBIERTAS",null,{"$f":"'entrada datos Edificación'!R77","v":12896.900000000001},{"$f":"'entrada datos Edificación'!S77","v":8405.0999999999985},null,0.60543141489062069]
[null,"AISLANTES E IMPERMEABILIZANTES",null,{"$f":"'entrada datos Edificación'!R93","v":674.09},{"$f":"'entrada datos Edificación'!S93","v":1521.9100000000003},null,0.30696265938069212]
[null,"PARTICIONES INTERIORES",null,{"$f":"'entrada datos Edificación'!R110","v":32435.79},{"$f":"'entrada datos Edificación'!S110","v":114719.20999999999},null,0.22041921783153817]
[null,"REVESTIMIENTOS",null,{"$f":"'entrada datos Edificación'!R139","v":71038.19},{"$f":"'entrada datos Edificación'!S139","v":206249.80999999997},null,0.25618919679178326]
[null,"INSTALACIONES",null,{"$f":"'entrada datos Edificación'!R172","v":8439.625},{"$f":"'entrada datos Edificación'!S172","v":75960.375},null,9.9995556872037913E-2]
[]
[null,"TOTAL EDIFICACIÓN",null,{"$f":"SUM(D6:D13)","v":327517.83429999999},{"$f":"SUM(E6:E13)","v":627635.1656999999},null,{"$f":"D15/(D15+E15)","v":0.34289567671357368}]
[]
[null,"Nº DE PARTIDAS DEL PROYECTO QUE DISPONEN DE MATERIAL RECICLADO [UD]",null,null,null,null,{"$f":"COUNTIF('entrada datos Edificación'!R3:R9,\">0\")+COUNTIF('entrada datos Edificación'!R13:R24,\">0\")+COUNTIF('entrada datos Edificación'!R28:R56,\">0\")+COUNTIF('entrada datos Edificación'!R60:R76,\">0\")+COUNTIF('entrada datos Edificación'!R80:R92,\">0\")+COUNTIF('entrada datos Edificación'!R96:R109,\">0\")+COUNTIF('entrada datos Edificación'!R113:R138,\">0\")+COUNTIF('entrada datos Edificación'!R142:R171,\">0\")","v":131}]
[null,"Nº  DE PARTIDAS CONTEMPLADAS EN EL PROYECTO [UD]",null,null,null,null,134,"<--Cambiar a mano"]
[null,null,null,null,"TOTAL EDIFICACIÓN",null,{"$f":"G17/G18","v":0.97761194029850751}]
[]
[null,"URBANIZACIÓN",null,"Material\nReciclado\n[Kg]","Material\nno Reciclado\n[Kg]",null,"Material Reciclado\n[%]"]
[null,"DRENAJE",null,{"$f":"'entrada datos Urbanizacion'!R3","v":1350},{"$f":"'entrada datos Urbanizacion'!S3","v":7650},null,{"$f":"D22/(D22+E22)","v":0.15}]
[null,"MOVIMIENTO DE TIERRAS",null,{"$f":"SUM('entrada datos Urbanizacion'!R5:R8)","v":490.3},{"$f":"SUM('entrada datos Urbanizacion'!S5:S8)","v":4359.7},null,{"$f":"D23/(D23+E23)","v":0.10109278350515465}]
[null,"SUBBASES",null,{"$f":"SUM('entrada datos Urbanizacion'!R10:R14)","v":45536.6},{"$f":"SUM('entrada datos Urbanizacion'!S10:S14)","v":135115.4},null,0.25206806456612713]
[null,"BASES",null,{"$f":"SUM('entrada datos Urbanizacion'!R16:R19)","v":57066.95},{"$f":"SUM('entrada datos Urbanizacion'!S16:S19)","v":257046.05},null,0.18167649858490414]
[null,"PAVIMENTO",null,{"$f":"'entrada datos Urbanizacion'!R21","v":30800},{"$f":"'entrada datos Urbanizacion'!S21","v":92400},null,0.25]
[null,"APLICACIONES NO LIGADAS",null,{"$f":"SUM(D22:D26)","v":135243.85},{"$f":"SUM(E22:E26)","v":496571.15},null,{"$f":"D27/(D27+E27)","v":0.21405609236881051}]
[]
[null,"DRENAJE",null,{"$f":"SUM('entrada datos Urbanizacion'!R25:R27)","v":4873.5},{"$f":"SUM('entrada datos Urbanizacion'!S25:S27)","v":9061.5},null,{"$f":"D29/(D29+E29)","v":0.34973089343379976}]
[null,"BASES",null,{"$f":"SUM('entrada datos Urbanizacion'!R29:R33)","v":5522.75},{"$f":"SUM('entrada datos Urbanizacion'!S29:S33)","v":22689.25},null,{"$f":"D30/(D30+E30)","v":0.19575889692329504}]
[null,"HORMIGONES Y MORTEROS",null,{"$f":"SUM('entrada datos Urbanizacion'!R35:R37)","v":3241},{"$f":"SUM('entrada datos Urbanizacion'!S35:S37)","v":13564},null,0.19285926807497769]
[null,"PAVIMENTO",null,{"$f":"SUM('entrada datos Urbanizacion'!R39:R57)","v":87758.12},{"$f":"SUM('entrada datos Urbanizacion'!S39:S57)","v":131086.88},null,0.40100582604126206]
[null,"RIEGO BITUMINOSO",null,{"$f":"SUM('entrada datos Urbanizacion'!R59:R62)","v":4145.5},{"$f":"SUM('entrada datos Urbanizacion'!S59:S62)","v":2534.5},null,0.62058383233532932]
[null,"TRATAMIENTOS",null,{"$f":"SUM('entrada datos Urbanizacion'!R64)","v":500},{"$f":"SUM('entrada datos Urbanizacion'!S64)","v":1500},null,0.25]
[null,"SEÑALIZACIÓN Y BALIZAMIENTO",null,{"$f":"SUM('entrada datos Urbanizacion'!R66:R71)","v":21104.75},{"$f":"SUM('entrada datos Urbanizacion'!S66:S71)","v":153.25},null,0.99279094928967915]
[null,"MOBILIARIO URBANO",null,{"$f":"SUM('entrada datos Urbanizacion'!R73:R83)","v":81701.08},{"$f":"SUM('entrada datos Urbanizacion'!S73:S83)","v":7117.92},null,0.91986039023181976]
[null,"INSTALACIONES",null,{"$f":"SUM('entrada datos Urbanizacion'!R85:R89)","v":1111.75},{"$f":"SUM('entrada datos Urbanizacion'!S85:S89)","v":20126.25},null,5.2347207835012712E-2]
[null,"APLICACIONES LIGADAS Y OTRAS",null,{"$f":"SUM(D29:D37)","v":209958.45},{"$f":"SUM(E29:E37)","v":207833.55000000002},null,{"$f":"D38/(D38+E38)","v":0.5025430118336397}]
[]
[null,"TOTAL URBANIZACIÓN",null,{"$f":"D27+D38","v":345202.30000000005},{"$f":"E27+E38","v":704404.70000000007},null,{"$f":"D40/(D40+E40)","v":0.32888719301605274}]
[]
[null,"Nº  DE PARTIDAS DEL PROYECTO QUE DISPONEN DE MATERIAL RECICLADO [UD]",null,null,null,null,{"$f":"COUNTIF('entrada datos Urbanizacion'!R3:R21,\">0\")+COUNTIF('entrada datos Urbanizacion'!R25:R89,\">0\")","v":72}]
[null,"Nº  DE PARTIDAS CONTEMPLADAS EN EL PROYECTO [UD]",null,null,null,null,76,"<--Cambiar a mano"]
[null,null,null,null,"TOTAL URBANIZACIÓN",null,{"$f":"G42/G43","v":0.94736842105263153}]

{"sheet":"CALCULO_EDIF","index":5,"n_rows":5071,"n_cols":6,"rows_kept":5071,"cut":false,"hidden":true,"merged":[[5049,0,5073,0],[5049,1,5073,1],[4974,0,4998,0],[4974,1,4998,1],[4999,0,5023,0],[4999,1,5023,1],[5024,0,5048,0],[5024,1,5048,1],[4849,0,4873,0],[4849,1,4873,1],[4874,0,4898,0],[4874,1,4898,1],[4899,0,4923,0],[4899,1,4923,1],[4924,0,4948,0],[4924,1,4948,1],[4949,0,4973,0],[4949,1,4973,1],[4249,0,4273,0],[4274,0,4298,0],[4299,0,4323,0],[4324,0,4348,0],[0,1,23,1],[24,1,48,1],[49,1,73,1],[74,1,98,1],[99,1,123,1],[124,1,148,1],[149,1,173,1],[174,1,198,1],[199,1,223,1],[224,1,248,1],[274,1,298,1],[299,1,323,1],[324,1,348,1],[349,1,373,1],[4024,0,4048,0],[4049,0,4073,0],[4074,0,4098,0],[4099,0,4123,0],[4124,0,4148,0],[4149,0,4173,0],[3774,0,3798,0],[3799,0,3823,0],[4174,0,4198,0],[4199,0,4223,0],[4224,0,4248,0],[3824,0,3848,0],[3849,0,3873,0],[3874,0,3898,0],[3899,0,3923,0],[3924,0,3948,0],[3949,0,3973,0],[3974,0,3998,0],[3999,0,4023,0],[3549,0,3573,0],[3574,0,3598,0],[3599,0,3623,0],[3624,0,3648,0],[3649,0,3673,0],[3674,0,3698,0],[3699,0,3723,0],[3724,0,3748,0],[3749,0,3773,0],[3324,0,3348,0],[3349,0,3373,0],[3374,0,3398,0],[3399,0,3423,0],[3424,0,3448,0],[3449,0,3473,0],[3474,0,3498,0],[3499,0,3523,0],[3524,0,3548,0],[2449,0,2473,0],[2474,0,2498,0],[2499,0,2523,0],[2524,0,2548,0],[2549,0,2573,0],[2574,0,2598,0],[2599,0,2623,0],[3274,0,3298,0],[3299,0,3323,0],[2624,0,2648,0],[2649,0,2673,0],[2674,0,2698,0],[2699,0,2723,0],[2724,0,2748,0],[2749,0,2773,0],[2774,0,2798,0],[2799,0,2823,0],[2824,0,2848,0],[2849,0,2873,0],[2874,0,2898,0],[2899,0,2923,0],[2924,0,2948,0],[2949,0,2973,0],[2974,0,2998,0],[2224,0,2248,0],[2249,0,2273,0],[2274,0,2298,0],[2299,0,2323,0],[2324,0,2348,0],[2349,0,2373,0],[2374,0,2398,0],[2399,0,2423,0],[2424,0,2448,0],[1974,0,1998,0],[1999,0,2023,0],[2024,0,2048,0],[2049,0,2073,0],[2099,0,2123,0],[2124,0,2148,0],[2149,0,2173,0],[2174,0,2198,0],[2199,0,2223,0],[2074,0,2098,0],[1749,0,1773,0],[1774,0,1798,0],[1799,0,1823,0],[1824,0,1848,0],[1849,0,1873,0],[1874,0,1898,0],[1899,0,1923,0],[1924,0,1948,0],[1949,0,1973,0],[1524,0,1548,0],[1549,0,1573,0],[1574,0,1598,0],[1599,0,1623,0],[1624,0,1648,0],[1649,0,1673,0],[1674,0,1698,0],[1699,0,1723,0],[1724,0,1748,0],[1299,0,1323,0],[1324,0,1348,0],[1349,0,1373,0],[1374,0,1398,0],[1399,0,1423,0],[1424,0,1448,0],[1449,0,1473,0],[1474,0,1498,0],[1499,0,1523,0],[1074,0,1098,0],[1099,0,1123,0],[1124,0,1148,0],[1149,0,1173,0],[1174,0,1198,0],[1199,0,1223,0],[1224,0,1248,0],[1249,0,1273,0],[1274,0,1298,0],[849,0,873,0],[874,0,898,0],[899,0,923,0],[924,0,948,0],[949,0,973,0],[974,0,998,0],[999,0,1023,0],[1024,0,1048,0],[1049,0,1073,0],[624,0,648,0],[649,0,673,0],[674,0,698,0],[699,0,723,0],[724,0,748,0],[749,0,773,0],[774,0,798,0],[799,0,823,0],[824,0,848,0],[399,0,423,0],[424,0,448,0],[449,0,473,0],[474,0,498,0],[499,0,523,0],[524,0,548,0],[549,0,573,0],[574,0,598,0],[599,0,623,0],[0,0,23,0],[24,0,48,0],[49,0,73,0],[74,0,98,0],[99,0,123,0],[124,0,148,0],[149,0,173,0],[174,0,198,0],[374,1,398,1],[199,0,223,0],[224,0,248,0],[274,0,298,0],[299,0,323,0],[324,0,348,0],[349,0,373,0],[374,0,398,0],[249,0,273,0],[249,1,273,1],[399,1,423,1],[424,1,448,1],[449,1,473,1],[474,1,498,1],[499,1,523,1],[524,1,548,1],[549,1,573,1],[574,1,598,1],[599,1,623,1],[624,1,648,1],[649,1,673,1],[674,1,698,1],[699,1,723,1],[724,1,748,1],[749,1,773,1],[774,1,798,1],[799,1,823,1],[824,1,848,1],[849,1,873,1],[874,1,898,1],[899,1,923,1],[924,1,948,1],[949,1,973,1],[974,1,998,1],[999,1,1023,1],[1024,1,1048,1],[1049,1,1073,1],[1074,1,1098,1],[1099,1,1123,1],[1124,1,1148,1],[1149,1,1173,1],[1174,1,1198,1],[1199,1,1223,1],[1224,1,1248,1],[1249,1,1273,1],[1274,1,1298,1],[1299,1,1323,1],[1324,1,1348,1],[1349,1,1373,1],[1374,1,1398,1],[1399,1,1423,1],[1424,1,1448,1],[1449,1,1473,1],[1474,1,1498,1],[1499,1,1523,1],[1524,1,1548,1],[1549,1,1573,1],[1574,1,1598,1],[1599,1,1623,1],[1624,1,1648,1],[1649,1,1673,1],[1674,1,1698,1],[1699,1,1723,1],[1724,1,1748,1],[1749,1,1773,1],[1774,1,1798,1],[1799,1,1823,1],[1824,1,1848,1],[1849,1,1873,1],[1874,1,1898,1],[1899,1,1923,1],[1924,1,1948,1],[1949,1,1973,1],[1974,1,1998,1],[1999,1,2023,1],[2024,1,2048,1],[2049,1,2073,1],[2099,1,2123,1],[2124,1,2148,1],[2149,1,2173,1],[2174,1,2198,1],[2199,1,2223,1],[2074,1,2098,1],[2224,1,2248,1],[2249,1,2273,1],[2274,1,2298,1],[2299,1,2323,1],[2324,1,2348,1],[2349,1,2373,1],[2374,1,2398,1],[2399,1,2423,1],[2424,1,2448,1],[2449,1,2473,1],[2474,1,2498,1],[2499,1,2523,1],[2524,1,2548,1],[2549,1,2573,1],[2574,1,2598,1],[2599,1,2623,1],[3274,1,3298,1],[3299,1,3323,1],[2624,1,2648,1],[2649,1,2673,1],[2674,1,2698,1],[2699,1,2723,1],[2724,1,2748,1],[2749,1,2773,1],[2774,1,2798,1],[2799,1,2823,1],[2824,1,2848,1],[2849,1,2873,1],[2874,1,2898,1],[2899,1,2923,1],[2924,1,2948,1],[2949,1,2973,1],[2974,1,2998,1],[3324,1,3348,1],[3349,1,3373,1],[3374,1,3398,1],[3574,1,3598,1],[3599,1,3623,1],[3624,1,3648,1],[3399,1,3423,1],[3424,1,3448,1],[3449,1,3473,1],[3474,1,3498,1],[3499,1,3523,1],[3524,1,3548,1],[3549,1,3573,1],[3649,1,3673,1],[3674,1,3698,1],[3699,1,3723,1],[3724,1,3748,1],[3749,1,3773,1],[3774,1,3798,1],[3799,1,3823,1],[3824,1,3848,1],[3849,1,3873,1],[3874,1,3898,1],[3899,1,3923,1],[3924,1,3948,1],[3949,1,3973,1],[3974,1,3998,1],[3999,1,4023,1],[4024,1,4048,1],[4049,1,4073,1],[4299,1,4323,1],[4324,1,4348,1],[4074,1,4098,1],[4099,1,4123,1],[4124,1,4148,1],[4149,1,4173,1],[4174,1,4198,1],[4199,1,4223,1],[4224,1,4248,1],[4249,1,4273,1],[4274,1,4298,1],[4349,0,4373,0],[4349,1,4373,1],[4374,0,4398,0],[4374,1,4398,1],[4399,0,4423,0],[4399,1,4423,1],[4424,0,4448,0],[4424,1,4448,1],[4449,0,4473,0],[4449,1,4473,1],[4474,0,4498,0],[4474,1,4498,1],[4499,0,4523,0],[4499,1,4523,1],[4524,0,4548,0],[4524,1,4548,1],[4549,0,4573,0],[4549,1,4573,1],[4574,0,4598,0],[4574,1,4598,1],[4599,0,4623,0],[4599,1,4623,1],[4624,0,4648,0],[4624,1,4648,1],[4649,0,4673,0],[4649,1,4673,1],[4674,0,4698,0],[4674,1,4698,1],[4699,0,4723,0],[4699,1,4723,1],[4724,0,4748,0],[4724,1,4748,1],[4749,0,4773,0],[4749,1,4773,1],[4774,0,4798,0],[4774,1,4798,1],[4799,0,4823,0],[4799,1,4823,1],[4824,0,4848,0],[4824,1,4848,1],[2999,0,3023,0],[2999,1,3023,1],[3024,0,3048,0],[3024,1,3048,1],[3049,0,3073,0],[3049,1,3073,1],[3074,0,3098,0],[3074,1,3098,1],[3224,0,3248,0],[3224,1,3248,1],[3249,0,3273,0],[3249,1,3273,1],[3099,0,3123,0],[3099,1,3123,1],[3124,0,3148,0],[3124,1,3148,1],[3149,0,3173,0],[3149,1,3173,1],[3174,0,3198,0],[3174,1,3198,1],[3199,0,3223,0],[3199,1,3223,1]]}
[1,{"$f":"\"Lista  \"  &A1& \"  \"& LOOKUP(A1,'entrada datos Edificación'!$D$3:$D$138,'entrada datos Edificación'!$H$3:$H$138)","v":"Lista  1  hormigón zapatas y pilotes"},"Sin materiall reciclado ",0]
[null,null,"Cemento CEM I-Cementos Lemona, S.A. ",0.03]
[null,null,"Cemento CEM I-Cementos Molins Industrial, S.A. ",0.03]
[null,null,"Cemento CEM I-Cementos Portland Valderrivas, S.A. ",0.03]
[null,null,"Cemento CEM I- Cementos Tudela Veguín, S.A. ",0.03]
[null,null,"Cemento CEM I-CEMEX España Operaciones, S.L.U. ",0.03]
[null,null,"Cemento CEM I-Holcim España, S.A. ",0.03]
[null,null,"Cemento CEM I-Grupo Votorantim. ",0.03]
[null,null,"Cemento CEM I-Lafarge Cementos, S.A.U. ",0.03]
[null,null,"Cemento CEM I-Sociedad Financiera y Minera, S.A",0.03]
[null,null,"Cemento CEM II-Cementos Balboa, S.A. ",0.03]
[null,null,"Cemento CEM II-Cementos Lemona, S.A. ",0.03]
[null,null,"Cemento CEM II-Cementos Molins Industrial, S.A. ",0.03]
[null,null,"Cemento CEM II-Cementos Portland Valderrivas, S.A. ",0.03]
[null,null,"Cemento CEM II-Cementos Tudela Veguín, S.A. ",0.03]
[null,null,"Cemento CEM II-CEMEX España Operaciones, S.L.U. ",0.03]
[null,null,"Cemento CEM II-Holcim España, S.A. ",0.03]
[null,null,"Cemento CEM II-Grupo Votorantim",0.03]
[null,null,"Cemento CEM II-Lafarge Cementos, S.A. ",0.03]
[null,null,"Cemento CEM II-Sociedad Financiera y Minera, S.A. ",0.03]
[null,null,"material n20",1]
[null,null,"Otro","-"]
[]
[]
[2,{"$f":"\"Lista  \"  &A25& \"  \"& LOOKUP(A25,'entrada datos Edificación'!$D$3:$D$172,'entrada datos Edificación'!$H$3:$H$172)","v":"Lista  2  hormigón losas y soleras"},"Sin materiall reciclado ",0]
[null,null,"Cemento CEM I-Cementos Lemona, S.A. ",0.03]
[null,null,"Cemento CEM I-Cementos Molins Industrial, S.A. ",0.03]
[null,null,"Cemento CEM I-Cementos Portland Valderrivas, S.A. ",0.03]
[null,null,"Cemento CEM I- Cementos Tudela Veguín, S.A. ",0.03]
[null,null,"Cemento CEM I-CEMEX España Operaciones, S.L.U. ",0.03]
[null,null,"Cemento CEM I-Holcim España, S.A. ",0.03]
[null,null,"Cemento CEM I-Grupo Votorantim. ",0.03]
[null,null,"Cemento CEM I-Lafarge Cementos, S.A.U. ",0.03]
[null,null,"Cemento CEM I-Sociedad Financiera y Minera, S.A",0.03]
[null,null,"Cemento CEM II-Cementos Balboa, S.A. ",0.03]
[null,null,"Cemento CEM II-Cementos Lemona, S.A. ",0.03]
[null,null,"Cemento CEM II-Cementos Molins Industrial, S.A. ",0.03]
[null,null,"Cemento CEM II-Cementos Portland Valderrivas, S.A. ",0.03]
[null,null,"Cemento CEM II-Cementos Tudela Veguín, S.A. ",0.03]
[null,null,"Cemento CEM II-CEMEX España Operaciones, S.L.U. ",0.03]
[null,null,"Cemento CEM II-Holcim España, S.A. ",0.03]
[null,null,"Cemento CEM II-Grupo Votorantim",0.03]
[null,null,"Cemento CEM II-Lafarge Cementos, S.A. ",0.03]
[null,null,"Cemento CEM II-Sociedad Financiera y Minera, S.A. ",0.03]
[null,null,"material n20",1]
[null,null,"Otro","-"]
[]
[]
[]
[3,{"$f":"\"Lista  \"  &A50& \"  \"& LOOKUP(A50,'entrada datos Edificación'!$D$3:$D$172,'entrada datos Edificación'!$H$3:$H$172)","v":"Lista  3  acero  armaduras"},"Sin materiall reciclado ",0]
[null,null,"Alambrón-Arcelor Mittal",0.85699999999999998]
[null,null,"Barras Corrugadas- Arcelor Mittal",0.88490000000000002]
[null,null,"material n03",0.15]
[null,null,"material n04",0.2]
[null,null,"material n05",0.25]
[null,null,"material n06",0.3]
[null,null,"material n07",0.35]
[null,null,"material n08",0.4]
[null,null,"material n09",0.45]
[null,null,"material n10",0.5]
[null,null,"material n11",0.55000000000000004]
[null,null,"material n12",0.6]
[null,null,"material n13",0.65]
[null,null,"material n14",0.7]
[null,null,"material n15",0.75]
[null,null,"material n16",0.8]
[null,null,"material n17",0.85]
[null,null,"material n18",0.9]
[null,null,"material n19",0.95]
[null,null,"material n20",1]
[null,null,"Otro","-"]
[]
[]
[]
[4,{"$f":"\"Lista  \"  &A75& \"  \"& LOOKUP(A75,'entrada datos Edificación'!$D$3:$D$172,'entrada datos Edificación'!$H$3:$H$172)","v":"Lista  4  material de explanadas, terraplenes o afines"},"Sin materiall reciclado ",0]
[null,null,"material n01",0.05]
[null,null,"material n02",0.1]
[null,null,"material n03",0.15]
[null,null,"material n04",0.2]
[null,null,"material n05",0.25]
[null,null,"material n06",0.3]
[null,null,"material n07",0.35]
[null,null,"material n08",0.4]
[null,null,"material n09",0.45]
[null,null,"material n10",0.5]
[null,null,"material n11",0.55000000000000004]
[null,null,"material n12",0.6]
[null,null,"material n13",0.65]
[null,null,"material n14",0.7]
[null,null,"material n15",0.75]
[null,null,"material n16",0.8]
[null,null,"material n17",0.85]
[null,null,"material n18",0.9]
[null,null,"material n19",0.95]
[null,null,"material n20",1]
[null,null,"Otro","-"]
[]
[]
[]
[5,{"$f":"\"Lista  \"  &A100& \"  \"& LOOKUP(A100,'entrada datos Edificación'!$D$3:$D$172,'entrada datos Edificación'!$H$3:$H$172)","v":"Lista  5  rellenos"},"Sin materiall reciclado ",0]
[null,null,"material n01",0.05]
[null,null,"material n02",0.1]
[null,null,"material n03",0.15]
[null,null,"material n04",0.2]
[null,null,"material n05",0.25]
[null,null,"material n06",0.3]
[null,null,"material n07",0.35]
[null,null,"material n08",0.4]
[null,null,"material n09",0.45]
[null,null,"material n10",0.5]
[null,null,"material n11",0.55000000000000004]
[null,null,"material n12",0.6]
[null,null,"material n13",0.65]
[null,null,"material n14",0.7]
[null,null,"material n15",0.75]
[null,null,"material n16",0.8]
[null,null,"material n17",0.85]
[null,null,"material n18",0.9]
[null,null,"material n19",0.95]
[null,null,"material n20",1]
[null,null,"Otro","-"]
[]
[]
[]
[6,{"$f":"\"Lista  \"  &A125& \"  \"& LOOKUP(A125,'entrada datos Edificación'!$D$3:$D$172,'entrada datos Edificación'!$H$3:$H$172)","v":"Lista  6  zahorras"},"Sin materiall reciclado ",0]
[null,null,"material n01",0.05]
[null,null,"material n02",0.1]
[null,null,"material n03",0.15]
[null,null,"material n04",0.2]
[null,null,"material n05",0.25]
[null,null,"material n06",0.3]
[null,null,"material n07",0.35]
[null,null,"material n08",0.4]
[null,null,"material n09",0.45]
[null,null,"material n10",0.5]
[null,null,"material n11",0.55000000000000004]
[null,null,"material n12",0.6]
[null,null,"material n13",0.65]
[null,null,"material n14",0.7]
[null,null,"material n15",0.75]
[null,null,"material n16",0.8]
[null,null,"material n17",0.85]
[null,null,"material n18",0.9]
[null,null,"material n19",0.95]
[null,null,"material n20",1]
[null,null,"Otro","-"]
[]
[]
[]
[7,{"$f":"\"Lista  \"  &A150& \"  \"& LOOKUP(A150,'entrada datos Edificación'!$D$3:$D$172,'entrada datos Edificación'!$H$3:$H$172)","v":"Lista  7  pilares, vigas y viguetas"},"Sin materiall reciclado ",0]
[null,null,"Acero estructural-CELSA Group\n",1]
[null,null,"Acero inoxidable laminado en caliente-OUTOKUMPU",0.82]
[null,null,"Productos largos de acero inox-OUTOKUMPU",0.92]
[null,null,"Barras y perfiles-ArcelorMittal",0.88980000000000004]
[null,null,"material n05",0.25]
[null,null,"material n06",0.3]
[null,null,"material n07",0.35]
[null,null,"material n08",0.4]
[null,null,"material n09",0.45]
[null,null,"material n10",0.5]
[null,null,"material n11",0.55000000000000004]
[null,null,"material n12",0.6]
[null,null,"material n13",0.65]
[null,null,"material n14",0.7]
[null,null,"material n15",0.75]
[null,null,"material n16",0.8]
[null,null,"material n17",0.85]
[null,null,"material n18",0.9]
[null,null,"material n19",0.95]
[null,null,"material n20",1]
[null,null,"Otro","-"]
[]
[]
[]
[8,{"$f":"\"Lista  \"  &A175& \"  \"& LOOKUP(A175,'entrada datos Edificación'!$D$3:$D$172,'entrada datos Edificación'!$H$3:$H$172)","v":"Lista  8  chapa metálica"},"Sin materiall reciclado ",0]
[null,null,"material n01",0.05]
[null,null,"material n02",0.1]
[null,null,"material n03",0.15]
[null,null,"material n04",0.2]
[null,null,"material n05",0.25]
[null,null,"material n06",0.3]
[null,null,"material n07",0.35]
[null,null,"material n08",0.4]
[null,null,"material n09",0.45]
[null,null,"material n10",0.5]
[null,null,"material n11",0.55000000000000004]
[null,null,"material n12",0.6]
[null,null,"material n13",0.65]
[null,null,"material n14",0.7]
[null,null,"material n15",0.75]
[null,null,"material n16",0.8]
[null,null,"material n17",0.85]
[null,null,"material n18",0.9]
[null,null,"material n19",0.95]
[null,null,"material n20",1]
[null,null,"Otro","-"]
[]
[]
[]
[9,{"$f":"\"Lista  \"  &A200& \"  \"& LOOKUP(A200,'entrada datos Edificación'!$D$3:$D$172,'entrada datos Edificación'!$H$3:$H$172)","v":"Lista  9  hormigón vigas y pilares"},"Sin materiall reciclado ",0]
[null,null,"material n01",0.05]
[null,null,"material n02",0.1]
[null,null,"material n03",0.15]
[null,null,"material n04",0.2]
[null,null,"material n05",0.25]
[null,null,"material n06",0.3]
[null,null,"material n07",0.35]
[null,null,"material n08",0.4]
[null,null,"material n09",0.45]
[null,null,"material n10",0.5]
[null,null,"material n11",0.55000000000000004]
[null,null,"material n12",0.6]
[null,null,"material n13",0.65]
[null,null,"material n14",0.7]
[null,null,"material n15",0.75]
[null,null,"material n16",0.8]
[null,null,"material n17",0.85]
[null,null,"material n18",0.9]
[null,null,"material n19",0.95]
[null,null,"material n20",1]
[null,null,"Otro","-"]
[]
[]
[]
[10,{"$f":"\"Lista  \"  &A225& \"  \"& LOOKUP(A225,'entrada datos Edificación'!$D$3:$D$172,'entrada datos Edificación'!$H$3:$H$172)","v":"Lista  10  hormigón losas y forjados"},"Sin materiall reciclado ",0]
[null,null,"material n01",0.05]
[null,null,"material n02",0.1]
[null,null,"material n03",0.15]
[null,null,"material n04",0.2]
[null,null,"material n05",0.25]
[null,null,"material n06",0.3]
[null,null,"material n07",0.35]
[null,null,"material n08",0.4]
[null,null,"material n09",0.45]
[null,null,"material n10",0.5]
[null,null,"material n11",0.55000000000000004]
[null,null,"material n12",0.6]
[null,null,"material n13",0.65]
[null,null,"material n14",0.7]
[null,null,"material n15",0.75]
[null,null,"material n16",0.8]
[null,null,"material n17",0.85]
[null,null,"material n18",0.9]
[null,null,"material n19",0.95]
[null,null,"material n20",1]
[null,null,"Otro","-"]
[]
[]
[]
[11,{"$f":"\"Lista  \"  &A250& \"  \"& LOOKUP(A250,'entrada datos Edificación'!$D$3:$D$172,'entrada datos Edificación'!$H$3:$H$172)","v":"Lista  11  soleras"},"Sin materiall reciclado ",0]
[null,null,"material n01",0.05]
[null,null,"material n02",0.1]
[null,null,"material n03",0.15]
[null,null,"material n04",0.2]
[null,null,"material n05",0.25]
[null,null,"material n06",0.3]
[null,null,"material n07",0.35]
[null,null,"material n08",0.4]
[null,null,"material n09",0.45]
[null,null,"material n10",0.5]
[null,null,"material n11",0.55000000000000004]
[null,null,"material n12",0.6]
[null,null,"material n13",0.65]
[null,null,"material n14",0.7]
[null,null,"material n15",0.75]
[null,null,"material n16",0.8]
[null,null,"material n17",0.85]
[null,null,"material n18",0.9]
[null,null,"material n19",0.95]
[null,null,"material n20",1]
[null,null,"Otro","-"]
[]
[]
[]
[12,{"$f":"\"Lista  \"  &A275& \"  \"& LOOKUP(A275,'entrada datos Edificación'!$D$3:$D$172,'entrada datos Edificación'!$H$3:$H$172)","v":"Lista  12  acero armaduras"},"Sin materiall reciclado ",0]
[null,null,"Alambrón - Arcelor Mittal",0.85750000000000004]
[null,null,"Barras Corrugadas- Arcelor Mittal",0.88500000000000001]
[null,null,"Carbon steel bar-Gerdau",1]
[null,null,"material n04",0.2]
[null,null,"material n05",0.25]
[null,null,"material n06",0.3]
[null,null,"material n07",0.35]
[null,null,"material n08",0.4]
[null,null,"material n09",0.45]
[null,null,"material n10",0.5]
[null,null,"material n11",0.55000000000000004]
[null,null,"material n12",0.6]
[null,null,"material n13",0.65]
[null,null,"material n14",0.7]
[null,null,"material n15",0.75]
[null,null,"material n16",0.8]
[null,null,"material n17",0.85]
[null,null,"material n18",0.9]
[null,null,"material n19",0.95]
[null,null,"material n20",1]
[null,null,"Otro","-"]
[]
[]
[]
[13,{"$f":"\"Lista  \"  &A300& \"  \"& LOOKUP(A300,'entrada datos Edificación'!$D$3:$D$172,'entrada datos Edificación'!$H$3:$H$172)","v":"Lista  13  viguetas prefabricadas de hormigón"},"Sin materiall reciclado ",0]
[null,null,"material n01",0.05]
[null,null,"material n02",0.1]
[null,null,"material n03",0.15]
[null,null,"material n04",0.2]
[null,null,"material n05",0.25]
[null,null,"material n06",0.3]
[null,null,"material n07",0.35]
[null,null,"material n08",0.4]
[null,null,"material n09",0.45]
[null,null,"material n10",0.5]
[null,null,"material n11",0.55000000000000004]
[null,null,"material n12",0.6]
[null,null,"material n13",0.65]
[null,null,"material n14",0.7]
[null,null,"material n15",0.75]
[null,null,"material n16",0.8]
[null,null,"material n17",0.85]
[null,null,"material n18",0.9]
[null,null,"material n19",0.95]
[null,null,"material n20",1]
[null,null,"Otro","-"]
[]
[]
[]
[14,{"$f":"\"Lista  \"  &A325& \"  \"& LOOKUP(A325,'entrada datos Edificación'!$D$3:$D$172,'entrada datos Edificación'!$H$3:$H$172)","v":"Lista  14  madera"},"Sin materiall reciclado ",0]
[null,null,"material n01",0.05]
[null,null,"material n02",0.1]
[null,null,"material n03",0.15]
[null,null,"material n04",0.2]
[null,null,"material n05",0.25]
[null,null,"material n06",0.3]
[null,null,"material n07",0.35]
[null,null,"material n08",0.4]
[null,null,"material n09",0.45]
[null,null,"material n10",0.5]
[null,null,"material n11",0.55000000000000004]
[null,null,"material n12",0.6]
[null,null,"material n13",0.65]
[null,null,"material n14",0.7]
[null,null,"material n15",0.75]
[null,null,"material n16",0.8]
[null,null,"material n17",0.85]
[null,null,"material n18",0.9]
[null,null,"material n19",0.95]
[null,null,"material n20",1]
[null,null,"Otro","-"]
[]
[]
[]
[15,{"$f":"\"Lista  \"  &A350& \"  \"& LOOKUP(A350,'entrada datos Edificación'!$D$3:$D$172,'entrada datos Edificación'!$H$3:$H$172)","v":"Lista  15  fábrica"},"Sin materiall reciclado ",0]
[null,null,"Environblock - Aggregates Industries",0.82]
[null,null,"ECOBLOC-Germans Cañet Xirgu",0.1]
[null,null,"material n03",0.15]
[null,null,"material n04",0.2]
[null,null,"material n05",0.25]
[null,null,"material n06",0.3]
[null,null,"material n07",0.35]
[null,null,"material n08",0.4]
[null,null,"material n09",0.45]
[null,null,"material n10",0.5]
[null,null,"material n11",0.55000000000000004]
[null,null,"material n12",0.6]
[null,null,"material n13",0.65]
[null,null,"material n14",0.7]
[null,null,"material n15",0.75]
[null,null,"material n16",0.8]
[null,null,"material n17",0.85]
[null,null,"material n18",0.9]
[null,null,"material n19",0.95]
[null,null,"material n20",1]
[null,null,"Otro","-"]
[]
[]
[]
[16,{"$f":"\"Lista  \"  &A375& \"  \"& LOOKUP(A375,'entrada datos Edificación'!$D$3:$D$172,'entrada datos Edificación'!$H$3:$H$172)","v":"Lista  16  ladrillo hueco doble"},"Sin materiall reciclado ",0]
[null,null,"material n01",0.05]
[null,null,"material n02",0.1]
[null,null,"material n03",0.15]
[null,null,"material n04",0.2]
[null,null,"material n05",0.25]
[null,null,"material n06",0.3]
[null,null,"material n07",0.35]
[null,null,"material n08",0.4]
[null,null,"material n09",0.45]
[null,null,"material n10",0.5]
[null,null,"material n11",0.55000000000000004]
[null,null,"material n12",0.6]
[null,null,"material n13",0.65]
[null,null,"material n14",0.7]
[null,null,"material n15",0.75]
[null,null,"material n16",0.8]
[null,null,"material n17",0.85]
[null,null,"material n18",0.9]
[null,null,"material n19",0.95]
[null,null,"material n20",1]
[null,null,"Otro","-"]
[]
[]
[]
[17,{"$f":"\"Lista  \"  &A400& \"  \"& LOOKUP(A400,'entrada datos Edificación'!$D$3:$D$172,'entrada datos Edificación'!$H$3:$H$172)","v":"Lista  17  ladrillo macizo"},"Sin materiall reciclado ",0]
[null,null,"material n01",0.05]
[null,null,"material n02",0.1]
[null,null,"material n03",0.15]
[null,null,"material n04",0.2]
[null,null,"material n05",0.25]
[null,null,"material n06",0.3]
[null,null,"material n07",0.35]
[null,null,"material n08",0.4]
[null,null,"material n09",0.45]
[null,null,"material n10",0.5]
[null,null,"material n11",0.55000000000000004]
[null,null,"material n12",0.6]
[null,null,"material n13",0.65]
[null,null,"material n14",0.7]
[null,null,"material n15",0.75]
[null,null,"material n16",0.8]
[null,null,"material n17",0.85]
[null,null,"material n18",0.9]
[null,null,"material n19",0.95]
[null,null,"material n20",1]
[null,null,"Otro","-"]
[]
[]
[]
[18,{"$f":"\"Lista  \"  &A425& \"  \"& LOOKUP(A425,'entrada datos Edificación'!$D$3:$D$172,'entrada datos Edificación'!$H$3:$H$172)","v":"Lista  18  bloques de hormigón"},"Sin materiall reciclado ",0]
[null,null,"Environblock - Aggregates Industries",0.82]
[null,null,"material n02",0.1]
[null,null,"material n03",0.15]
[null,null,"material n04",0.2]
[null,null,"material n05",0.25]
[null,null,"material n06",0.3]
[null,null,"material n07",0.35]
[null,null,"material n08",0.4]
[null,null,"material n09",0.45]
[null,null,"material n10",0.5]
[null,null,"material n11",0.55000000000000004]
[null,null,"material n12",0.6]
[null,null,"material n13",0.65]
[null,null,"material n14",0.7]
[null,null,"material n15",0.75]
[null,null,"material n16",0.8]
[null,null,"material n17",0.85]
[null,null,"material n18",0.9]
[null,null,"material n19",0.95]
[null,null,"material n20",1]
[null,null,"Otro","-"]
[]
[]
[]
[19,{"$f":"\"Lista  \"  &A450& \"  \"& LOOKUP(A450,'entrada datos Edificación'!$D$3:$D$172,'entrada datos Edificación'!$H$3:$H$172)","v":"Lista  19  bloques cerámicos"},"Sin materiall reciclado ",0]
[null,null,"material n01",0.05]
[null,null,"material n02",0.1]
[null,null,"material n03",0.15]
[null,null,"material n04",0.2]
[null,null,"material n05",0.25]
[null,null,"material n06",0.3]
[null,null,"material n07",0.35]
[null,null,"material n08",0.4]
[null,null,"material n09",0.45]
[null,null,"material n10",0.5]
[null,null,"material n11",0.55000000000000004]
[null,null,"material n12",0.6]
[null,null,"material n13",0.65]
[null,null,"material n14",0.7]
[null,null,"material n15",0.75]
[null,null,"material n16",0.8]
[null,null,"material n17",0.85]
[null,null,"material n18",0.9]
[null,null,"material n19",0.95]
[null,null,"material n20",1]
[null,null,"Otro","-"]
[]
[]
[]
[20,{"$f":"\"Lista  \"  &A475& \"  \"& LOOKUP(A475,'entrada datos Edificación'!$D$3:$D$172,'entrada datos Edificación'!$H$3:$H$172)","v":"Lista  20  bloque termoarcilla"},"Sin materiall reciclado ",0]
[null,null,"material n01",0.05]
[null,null,"material n02",0.1]
[null,null,"material n03",0.15]
[null,null,"material n04",0.2]
[null,null,"material n05",0.25]
[null,null,"material n06",0.3]
[null,null,"material n07",0.35]
[null,null,"material n08",0.4]
[null,null,"material n09",0.45]
[null,null,"material n10",0.5]
[null,null,"material n11",0.55000000000000004]
[null,null,"material n12",0.6]
[null,null,"material n13",0.65]
[null,null,"material n14",0.7]
[null,null,"material n15",0.75]
[null,null,"material n16",0.8]
[null,null,"material n17",0.85]
[null,null,"material n18",0.9]
[null,null,"material n19",0.95]
[null,null,"material n20",1]
[null,null,"Otro","-"]
[]
[]
[]
[21,{"$f":"\"Lista  \"  &A500& \"  \"& LOOKUP(A500,'entrada datos Edificación'!$D$3:$D$172,'entrada datos Edificación'!$H$3:$H$172)","v":"Lista  21  subestructura acero"},"Sin materiall reciclado ",0]
[null,null,"material n01",0.05]
[null,null,"material n02",0.1]
[null,null,"material n03",0.15]
[null,null,"material n04",0.2]
[null,null,"material n05",0.25]
[null,null,"material n06",0.3]
[null,null,"material n07",0.35]
[null,null,"material n08",0.4]
[null,null,"material n09",0.45]
[null,null,"material n10",0.5]
[null,null,"material n11",0.55000000000000004]
[null,null,"material n12",0.6]
[null,null,"material n13",0.65]
[null,null,"material n14",0.7]
[null,null,"material n15",0.75]
[null,null,"material n16",0.8]
[null,null,"material n17",0.85]
[null,null,"material n18",0.9]
[null,null,"material n19",0.95]
[null,null,"material n20",1]
[null,null,"Otro","-"]
[]
[]
[]
[22,{"$f":"\"Lista  \"  &A525& \"  \"& LOOKUP(A525,'entrada datos Edificación'!$D$3:$D$172,'entrada datos Edificación'!$H$3:$H$172)","v":"Lista  22  panel sándwich"},"Sin materiall reciclado ",0]
[null,null,"material n01",0.05]
[null,null,"material n02",0.1]
[null,null,"material n03",0.15]
[null,null,"material n04",0.2]
[null,null,"material n05",0.25]
[null,null,"material n06",0.3]
[null,null,"material n07",0.35]
[null,null,"material n08",0.4]
[null,null,"material n09",0.45]
[null,null,"material n10",0.5]
[null,null,"material n11",0.55000000000000004]
[null,null,"material n12",0.6]
[null,null,"material n13",0.65]
[null,null,"material n14",0.7]
[null,null,"material n15",0.75]
[null,null,"material n16",0.8]
[null,null,"material n17",0.85]
[null,null,"material n18",0.9]
[null,null,"material n19",0.95]
[null,null,"material n20",1]
[null,null,"Otro","-"]
[]
[]
[]
[23,{"$f":"\"Lista  \"  &A550& \"  \"& LOOKUP(A550,'entrada datos Edificación'!$D$3:$D$172,'entrada datos Edificación'!$H$3:$H$172)","v":"Lista  23  subestructura Acero"},"Sin materiall reciclado ",0]
[null,null,"material n01",0.05]
[null,null,"material n02",0.1]
[null,null,"material n03",0.15]
[null,null,"material n04",0.2]
[null,null,"material n05",0.25]
[null,null,"material n06",0.3]
[null,null,"material n07",0.35]
[null,null,"material n08",0.4]
[null,null,"material n09",0.45]
[null,null,"material n10",0.5]
[null,null,"material n11",0.55000000000000004]
[null,null,"material n12",0.6]
[null,null,"material n13",0.65]
[null,null,"material n14",0.7]
[null,null,"material n15",0.75]
[null,null,"material n16",0.8]
[null,null,"material n17",0.85]
[null,null,"material n18",0.9]
[null,null,"material n19",0.95]
[null,null,"material n20",1]
[null,null,"Otro","-"]
[]
[]
[]
[24,{"$f":"\"Lista  \"  &A575& \"  \"& LOOKUP(A575,'entrada datos Edificación'!$D$3:$D$172,'entrada datos Edificación'!$H$3:$H$172)","v":"Lista  24  panel hormigón"},"Sin materiall reciclado ",0]
[null,null,"AESTUVER Fire Protection Board-FERMACELL",0.42]
[null,null,"PowerPanel HD Building Board-FERMACELL",0.17]
[null,null,"PowerPanel H20 Building Board-FERMACELL",0.15]
[null,null,"material n04",0.2]
[null,null,"material n05",0.25]
[null,null,"material n06",0.3]
[null,null,"material n07",0.35]
[null,null,"material n08",0.4]
[null,null,"material n09",0.45]
[null,null,"material n10",0.5]
[null,null,"material n11",0.55000000000000004]
[null,null,"material n12",0.6]
[null,null,"material n13",0.65]
[null,null,"material n14",0.7]
[null,null,"material n15",0.75]
[null,null,"material n16",0.8]
[null,null,"material n17",0.85]
[null,null,"material n18",0.9]
[null,null,"material n19",0.95]
[null,null,"material n20",1]
[null,null,"Otro","-"]
[]
[]
[]
[25,{"$f":"\"Lista  \"  &A600& \"  \"& LOOKUP(A600,'entrada datos Edificación'!$D$3:$D$172,'entrada datos Edificación'!$H$3:$H$172)","v":"Lista  25  ladrillo caravista"},"Sin materiall reciclado ",0]
[null,null,"material n01",0.05]
[null,null,"material n02",0.1]
[null,null,"material n03",0.15]
[null,null,"material n04",0.2]
[null,null,"material n05",0.25]
[null,null,"material n06",0.3]
[null,null,"material n07",0.35]
[null,null,"material n08",0.4]
[null,null,"material n09",0.45]
[null,null,"material n10",0.5]
[null,null,"material n11",0.55000000000000004]
[null,null,"material n12",0.6]
[null,null,"material n13",0.65]
[null,null,"material n14",0.7]
[null,null,"material n15",0.75]
[null,null,"material n16",0.8]
[null,null,"material n17",0.85]
[null,null,"material n18",0.9]
[null,null,"material n19",0.95]
[null,null,"material n20",1]
[null,null,"Otro","-"]
[]
[]
[]
[26,{"$f":"\"Lista  \"  &A625& \"  \"& LOOKUP(A625,'entrada datos Edificación'!$D$3:$D$172,'entrada datos Edificación'!$H$3:$H$172)","v":"Lista  26  aplacado piedra"},"Sin materiall reciclado ",0]
[null,null,"material n01",0.05]
[null,null,"material n02",0.1]
[null,null,"material n03",0.15]
[null,null,"material n04",0.2]
[null,null,"material n05",0.25]
[null,null,"material n06",0.3]
[null,null,"material n07",0.35]
[null,null,"material n08",0.4]
[null,null,"material n09",0.45]
[null,null,"material n10",0.5]
[null,null,"material n11",0.55000000000000004]
[null,null,"material n12",0.6]
[null,null,"material n13",0.65]
[null,null,"material n14",0.7]
[null,null,"material n15",0.75]
[null,null,"material n16",0.8]
[null,null,"material n17",0.85]
[null,null,"material n18",0.9]
[null,null,"material n19",0.95]
[null,null,"material n20",1]
[null,null,"Otro","-"]
[]
[]
[]
[27,{"$f":"\"Lista  \"  &A650& \"  \"& LOOKUP(A650,'entrada datos Edificación'!$D$3:$D$172,'entrada datos Edificación'!$H$3:$H$172)","v":"Lista  27  hormigón polímero"},"Sin materiall reciclado ",0]
[null,null,"material n01",0.05]
[null,null,"material n02",0.1]
[null,null,"material n03",0.15]
[null,null,"material n04",0.2]
[null,null,"material n05",0.25]
[null,null,"material n06",0.3]
[null,null,"material n07",0.35]
[null,null,"material n08",0.4]
[null,null,"material n09",0.45]
[null,null,"material n10",0.5]
[null,null,"material n11",0.55000000000000004]
[null,null,"material n12",0.6]
[null,null,"material n13",0.65]
[null,null,"material n14",0.7]
[null,null,"material n15",0.75]
[null,null,"material n16",0.8]
[null,null,"material n17",0.85]
[null,null,"material n18",0.9]
[null,null,"material n19",0.95]
[null,null,"material n20",1]
[null,null,"Otro","-"]
[]
[]
[]
[28,{"$f":"\"Lista  \"  &A675& \"  \"& LOOKUP(A675,'entrada datos Edificación'!$D$3:$D$172,'entrada datos Edificación'!$H$3:$H$172)","v":"Lista  28  tableros fenólicos"},"Sin materiall reciclado ",0]
[null,null,"material n01",0.05]
[null,null,"material n02",0.1]
[null,null,"material n03",0.15]
[null,null,"material n04",0.2]
[null,null,"material n05",0.25]
[null,null,"material n06",0.3]
[null,null,"material n07",0.35]
[null,null,"material n08",0.4]
[null,null,"material n09",0.45]
[null,null,"material n10",0.5]
[null,null,"material n11",0.55000000000000004]
[null,null,"material n12",0.6]
[null,null,"material n13",0.65]
[null,null,"material n14",0.7]
[null,null,"material n15",0.75]
[null,null,"material n16",0.8]
[null,null,"material n17",0.85]
[null,null,"material n18",0.9]
[null,null,"material n19",0.95]
[null,null,"material n20",1]
[null,null,"Otro","-"]
[]
[]
[]
[29,{"$f":"\"Lista  \"  &A700& \"  \"& LOOKUP(A700,'entrada datos Edificación'!$D$3:$D$172,'entrada datos Edificación'!$H$3:$H$172)","v":"Lista  29  revestimientos metálicos"},"Sin materiall reciclado ",0]
[null,null,"material n01",0.05]
[null,null,"material n02",0.1]
[null,null,"material n03",0.15]
[null,null,"material n04",0.2]
[null,null,"material n05",0.25]
[null,null,"material n06",0.3]
[null,null,"material n07",0.35]
[null,null,"material n08",0.4]
[null,null,"material n09",0.45]
[null,null,"material n10",0.5]
[null,null,"material n11",0.55000000000000004]
[null,null,"material n12",0.6]
[null,null,"material n13",0.65]
[null,null,"material n14",0.7]
[null,null,"material n15",0.75]
[null,null,"material n16",0.8]
[null,null,"material n17",0.85]
[null,null,"material n18",0.9]
[null,null,"material n19",0.95]
[null,null,"material n20",1]
[null,null,"Otro","-"]
[]
[]
[]
[30,{"$f":"\"Lista  \"  &A725& \"  \"& LOOKUP(A725,'entrada datos Edificación'!$D$3:$D$172,'entrada datos Edificación'!$H$3:$H$172)","v":"Lista  30  mortero monocapa"},"Sin materiall reciclado ",0]
[null,null,"material n01",0.05]
[null,null,"material n02",0.1]
[null,null,"material n03",0.15]
[null,null,"material n04",0.2]
[null,null,"material n05",0.25]
[null,null,"material n06",0.3]
[null,null,"material n07",0.35]
[null,null,"material n08",0.4]
[null,null,"material n09",0.45]
[null,null,"material n10",0.5]
[null,null,"material n11",0.55000000000000004]
[null,null,"material n12",0.6]
[null,null,"material n13",0.65]
[null,null,"material n14",0.7]
[null,null,"material n15",0.75]
[null,null,"material n16",0.8]
[null,null,"material n17",0.85]
[null,null,"material n18",0.9]
[null,null,"material n19",0.95]
[null,null,"material n20",1]
[null,null,"Otro","-"]
[]
[]
[]
[31,{"$f":"\"Lista  \"  &A750& \"  \"& LOOKUP(A750,'entrada datos Edificación'!$D$3:$D$172,'entrada datos Edificación'!$H$3:$H$172)","v":"Lista  31  paneles de madera"},"Sin materiall reciclado ",0]
[null,null,"material n01",0.05]
[null,null,"material n02",0.1]
[null,null,"material n03",0.15]
[null,null,"material n04",0.2]
[null,null,"material n05",0.25]
[null,null,"material n06",0.3]
[null,null,"material n07",0.35]
[null,null,"material n08",0.4]
[null,null,"material n09",0.45]
[null,null,"material n10",0.5]
[null,null,"material n11",0.55000000000000004]
[null,null,"material n12",0.6]
[null,null,"material n13",0.65]
[null,null,"material n14",0.7]
[null,null,"material n15",0.75]
[null,null,"material n16",0.8]
[null,null,"material n17",0.85]
[null,null,"material n18",0.9]
[null,null,"material n19",0.95]
[null,null,"material n20",1]
[null,null,"Otro","-"]
[]
[]
[]
[32,{"$f":"\"Lista  \"  &A775& \"  \"& LOOKUP(A775,'entrada datos Edificación'!$D$3:$D$172,'entrada datos Edificación'!$H$3:$H$172)","v":"Lista  32  panel sándwich"},"Sin materiall reciclado ",0]
[null,null,"material n01",0.05]
[null,null,"material n02",0.1]
[null,null,"material n03",0.15]
[null,null,"material n04",0.2]
[null,null,"material n05",0.25]
[null,null,"material n06",0.3]
[null,null,"material n07",0.35]
[null,null,"material n08",0.4]
[null,null,"material n09",0.45]
[null,null,"material n10",0.5]
[null,null,"material n11",0.55000000000000004]
[null,null,"material n12",0.6]
[null,null,"material n13",0.65]
[null,null,"material n14",0.7]
[null,null,"material n15",0.75]
[null,null,"material n16",0.8]
[null,null,"material n17",0.85]
[null,null,"material n18",0.9]
[null,null,"material n19",0.95]
[null,null,"material n20",1]
[null,null,"Otro","-"]
[]
[]
[]
[33,{"$f":"\"Lista  \"  &A800& \"  \"& LOOKUP(A800,'entrada datos Edificación'!$D$3:$D$172,'entrada datos Edificación'!$H$3:$H$172)","v":"Lista  33  panel hormigón"},"Sin materiall reciclado ",0]
[null,null,"AESTUVER Fire Protection Board -FERMACELL",0.42]
[null,null,"PowerPanel HD Building Board-FERMACELL",0.17]
[null,null,"PowerPanel H20 Building Board-FERMACELL",0.15]
[null,null,"material n04",0.2]
[null,null,"material n05",0.25]
[null,null,"material n06",0.3]
[null,null,"material n07",0.35]
[null,null,"material n08",0.4]
[null,null,"material n09",0.45]
[null,null,"material n10",0.5]
[null,null,"material n11",0.55000000000000004]
[null,null,"material n12",0.6]
[null,null,"material n13",0.65]
[null,null,"material n14",0.7]
[null,null,"material n15",0.75]
[null,null,"material n16",0.8]
[null,null,"material n17",0.85]
[null,null,"material n18",0.9]
[null,null,"material n19",0.95]
[null,null,"material n20",1]
[null,null,"Otro","-"]
[]
[]
[]
[34,{"$f":"\"Lista  \"  &A825& \"  \"& LOOKUP(A825,'entrada datos Edificación'!$D$3:$D$172,'entrada datos Edificación'!$H$3:$H$172)","v":"Lista  34  carpintería metálico"},"Sin materiall reciclado ",0]
[null,null,"material n01",0.05]
[null,null,"material n02",0.1]
[null,null,"material n03",0.15]
[null,null,"material n04",0.2]
[null,null,"material n05",0.25]
[null,null,"material n06",0.3]
[null,null,"material n07",0.35]
[null,null,"material n08",0.4]
[null,null,"material n09",0.45]
[null,null,"material n10",0.5]
[null,null,"material n11",0.55000000000000004]
[null,null,"material n12",0.6]
[null,null,"material n13",0.65]
[null,null,"material n14",0.7]
[null,null,"material n15",0.75]
[null,null,"material n16",0.8]
[null,null,"material n17",0.85]
[null,null,"material n18",0.9]
[null,null,"material n19",0.95]
[null,null,"material n20",1]
[null,null,"Otro","-"]
[]
[]
[]
[35,{"$f":"\"Lista  \"  &A850& \"  \"& LOOKUP(A850,'entrada datos Edificación'!$D$3:$D$172,'entrada datos Edificación'!$H$3:$H$172)","v":"Lista  35  carpintería sintético"},"Sin materiall reciclado ",0]
[null,null,"material n01",0.05]
[null,null,"material n02",0.1]
[null,null,"material n03",0.15]
[null,null,"material n04",0.2]
[null,null,"material n05",0.25]
[null,null,"material n06",0.3]
[null,null,"material n07",0.35]
[null,null,"material n08",0.4]
[null,null,"material n09",0.45]
[null,null,"material n10",0.5]
[null,null,"material n11",0.55000000000000004]
[null,null,"material n12",0.6]
[null,null,"material n13",0.65]
[null,null,"material n14",0.7]
[null,null,"material n15",0.75]
[null,null,"material n16",0.8]
[null,null,"material n17",0.85]
[null,null,"material n18",0.9]
[null,null,"material n19",0.95]
[null,null,"material n20",1]
[null,null,"Otro","-"]
[]
[]
[]
[36,{"$f":"\"Lista  \"  &A875& \"  \"& LOOKUP(A875,'entrada datos Edificación'!$D$3:$D$172,'entrada datos Edificación'!$H$3:$H$172)","v":"Lista  36  carpintería madera"},"Sin materiall reciclado ",0]
[null,null,"material n01",0.05]
[null,null,"material n02",0.1]
[null,null,"material n03",0.15]
[null,null,"material n04",0.2]
[null,null,"material n05",0.25]
[null,null,"material n06",0.3]
[null,null,"material n07",0.35]
[null,null,"material n08",0.4]
[null,null,"material n09",0.45]
[null,null,"material n10",0.5]
[null,null,"material n11",0.55000000000000004]
[null,null,"material n12",0.6]
[null,null,"material n13",0.65]
[null,null,"material n14",0.7]
[null,null,"material n15",0.75]
[null,null,"material n16",0.8]
[null,null,"material n17",0.85]
[null,null,"material n18",0.9]
[null,null,"material n19",0.95]
[null,null,"material n20",1]
[null,null,"Otro","-"]
[]
[]
[]
[37,{"$f":"\"Lista  \"  &A900& \"  \"& LOOKUP(A900,'entrada datos Edificación'!$D$3:$D$172,'entrada datos Edificación'!$H$3:$H$172)","v":"Lista  37  vidrio"},"Sin materiall reciclado ",0]
[null,null,"Serie 100-Andersen Corporation",0.21]
[null,null,"Awning Window-Andersen Corporation",0.2]
[null,null,"Renewal Gliding Window-Andersen Corporation",0.24]
[null,null,"material n04",0.2]
[null,null,"material n05",0.25]
[null,null,"material n06",0.3]
[null,null,"material n07",0.35]
[null,null,"material n08",0.4]
[null,null,"material n09",0.45]
[null,null,"material n10",0.5]
[null,null,"material n11",0.55000000000000004]
[null,null,"material n12",0.6]
[null,null,"material n13",0.65]
[null,null,"material n14",0.7]
[null,null,"material n15",0.75]
[null,null,"material n16",0.8]
[null,null,"material n17",0.85]
[null,null,"material n18",0.9]
[null,null,"material n19",0.95]
[null,null,"material n20",1]
[null,null,"Otro","-"]
[]
[]
[]
[38,{"$f":"\"Lista  \"  &A925& \"  \"& LOOKUP(A925,'entrada datos Edificación'!$D$3:$D$172,'entrada datos Edificación'!$H$3:$H$172)","v":"Lista  38  carpintería metálica"},"Sin materiall reciclado ",0]
[null,null,"Crawford OH1042P-ASSA ABLOY",0.77590000000000003]
[null,null,"Besam SW200i-ASSA ABLOY",0.497]
[null,null,"CECO DOOR Cold Rolled product-ASSA ABLOY",0.15]
[null,null,"material n04",0.2]
[null,null,"material n05",0.25]
[null,null,"material n06",0.3]
[null,null,"material n07",0.35]
[null,null,"material n08",0.4]
[null,null,"material n09",0.45]
[null,null,"material n10",0.5]
[null,null,"material n11",0.55000000000000004]
[null,null,"material n12",0.6]
[null,null,"material n13",0.65]
[null,null,"material n14",0.7]
[null,null,"material n15",0.75]
[null,null,"material n16",0.8]
[null,null,"material n17",0.85]
[null,null,"material n18",0.9]
[null,null,"material n19",0.95]
[null,null,"material n20",1]
[null,null,"Otro","-"]
[]
[]
[]
[39,{"$f":"\"Lista  \"  &A950& \"  \"& LOOKUP(A950,'entrada datos Edificación'!$D$3:$D$172,'entrada datos Edificación'!$H$3:$H$172)","v":"Lista  39  carpintería sintético"},"Sin materiall reciclado ",0]
[null,null,"material n01",0.05]
[null,null,"material n02",0.1]
[null,null,"material n03",0.15]
[null,null,"material n04",0.2]
[null,null,"material n05",0.25]
[null,null,"material n06",0.3]
[null,null,"material n07",0.35]
[null,null,"material n08",0.4]
[null,null,"material n09",0.45]
[null,null,"material n10",0.5]
[null,null,"material n11",0.55000000000000004]
[null,null,"material n12",0.6]
[null,null,"material n13",0.65]
[null,null,"material n14",0.7]
[null,null,"material n15",0.75]
[null,null,"material n16",0.8]
[null,null,"material n17",0.85]
[null,null,"material n18",0.9]
[null,null,"material n19",0.95]
[null,null,"material n20",1]
[null,null,"Otro","-"]
[]
[]
[]
[40,{"$f":"\"Lista  \"  &A975& \"  \"& LOOKUP(A975,'entrada datos Edificación'!$D$3:$D$172,'entrada datos Edificación'!$H$3:$H$172)","v":"Lista  40  carpintería madera"},"Sin materiall reciclado ",0]
[null,null,"materiall n01",0.05]
[null,null,"material n02",0.1]
[null,null,"material n03",0.15]
[null,null,"material n04",0.2]
[null,null,"material n05",0.25]
[null,null,"material n06",0.3]
[null,null,"material n07",0.35]
[null,null,"material n08",0.4]
[null,null,"material n09",0.45]
[null,null,"material n10",0.5]
[null,null,"material n11",0.55000000000000004]
[null,null,"material n12",0.6]
[null,null,"material n13",0.65]
[null,null,"material n14",0.7]
[null,null,"material n15",0.75]
[null,null,"material n16",0.8]
[null,null,"material n17",0.85]
[null,null,"material n18",0.9]
[null,null,"material n19",0.95]
[null,null,"material n20",1]
[null,null,"Otro","-"]
[]
[]
[]
[41,{"$f":"\"Lista  \"  &A1000& \"  \"& LOOKUP(A1000,'entrada datos Edificación'!$D$3:$D$172,'entrada datos Edificación'!$H$3:$H$172)","v":"Lista  41  vidrio"},"Sin materiall reciclado ",0]
[null,null,"material n01",0.05]
[null,null,"material n02",0.1]
[null,null,"material n03",0.15]
[null,null,"material n04",0.2]
[null,null,"material n05",0.25]
[null,null,"material n06",0.3]
[null,null,"material n07",0.35]
[null,null,"material n08",0.4]
[null,null,"material n09",0.45]
[null,null,"material n10",0.5]
[null,null,"material n11",0.55000000000000004]
[null,null,"material n12",0.6]
[null,null,"material n13",0.65]
[null,null,"material n14",0.7]
[null,null,"material n15",0.75]
[null,null,"material n16",0.8]
[null,null,"material n17",0.85]
[null,null,"material n18",0.9]
[null,null,"material n19",0.95]
[null,null,"material n20",1]
[null,null,"Otro","-"]
[]
[]
[]
[42,{"$f":"\"Lista  \"  &A1025& \"  \"& LOOKUP(A1025,'entrada datos Edificación'!$D$3:$D$172,'entrada datos Edificación'!$H$3:$H$172)","v":"Lista  42  panel sándwich"},"Sin materiall reciclado ",0]
[null,null,"material n01",0.05]
[null,null,"material n02",0.1]
[null,null,"material n03",0.15]
[null,null,"material n04",0.2]
[null,null,"material n05",0.25]
[null,null,"material n06",0.3]
[null,null,"material n07",0.35]
[null,null,"material n08",0.4]
[null,null,"material n09",0.45]
[null,null,"material n10",0.5]
[null,null,"material n11",0.55000000000000004]
[null,null,"material n12",0.6]
[null,null,"material n13",0.65]
[null,null,"material n14",0.7]
[null,null,"material n15",0.75]
[null,null,"material n16",0.8]
[null,null,"material n17",0.85]
[null,null,"material n18",0.9]
[null,null,"material n19",0.95]
[null,null,"material n20",1]
[null,null,"Otro","-"]
[]
[]
[]
[43,{"$f":"\"Lista  \"  &A1050& \"  \"& LOOKUP(A1050,'entrada datos Edificación'!$D$3:$D$172,'entrada datos Edificación'!$H$3:$H$172)","v":"Lista  43  cubierta decks"},"Sin materiall reciclado ",0]
[null,null,"material n01",0.05]
[null,null,"material n02",0.1]
[null,null,"material n03",0.15]
[null,null,"material n04",0.2]
[null,null,"material n05",0.25]
[null,null,"material n06",0.3]
[null,null,"material n07",0.35]
[null,null,"material n08",0.4]
[null,null,"material n09",0.45]
[null,null,"material n10",0.5]
[null,null,"material n11",0.55000000000000004]
[null,null,"material n12",0.6]
[null,null,"material n13",0.65]
[null,null,"material n14",0.7]
[null,null,"material n15",0.75]
[null,null,"material n16",0.8]
[null,null,"material n17",0.85]
[null,null,"material n18",0.9]
[null,null,"material n19",0.95]
[null,null,"material n20",1]
[null,null,"Otro","-"]
[]
[]
[]
[44,{"$f":"\"Lista  \"  &A1075& \"  \"& LOOKUP(A1075,'entrada datos Edificación'!$D$3:$D$172,'entrada datos Edificación'!$H$3:$H$172)","v":"Lista  44  revestimiento metálico (zinc, acero, cobre, etc.…)"},"Sin materiall reciclado ",0]
[null,null,"material n01",0.05]
[null,null,"material n02",0.1]
[null,null,"material n03",0.15]
[null,null,"material n04",0.2]
[null,null,"material n05",0.25]
[null,null,"material n06",0.3]
[null,null,"material n07",0.35]
[null,null,"material n08",0.4]
[null,null,"material n09",0.45]
[null,null,"material n10",0.5]
[null,null,"material n11",0.55000000000000004]
[null,null,"material n12",0.6]
[null,null,"material n13",0.65]
[null,null,"material n14",0.7]
[null,null,"material n15",0.75]
[null,null,"material n16",0.8]
[null,null,"material n17",0.85]
[null,null,"material n18",0.9]
[null,null,"material n19",0.95]
[null,null,"material n20",1]
[null,null,"Otro","-"]
[]
[]
[]
[45,{"$f":"\"Lista  \"  &A1100& \"  \"& LOOKUP(A1100,'entrada datos Edificación'!$D$3:$D$172,'entrada datos Edificación'!$H$3:$H$172)","v":"Lista  45  pizarra"},"Sin materiall reciclado ",0]
[null,null,"material n01",0.05]
[null,null,"material n02",0.1]
[null,null,"material n03",0.15]
[null,null,"material n04",0.2]
[null,null,"material n05",0.25]
[null,null,"material n06",0.3]
[null,null,"material n07",0.35]
[null,null,"material n08",0.4]
[null,null,"material n09",0.45]
[null,null,"material n10",0.5]
[null,null,"material n11",0.55000000000000004]
[null,null,"material n12",0.6]
[null,null,"material n13",0.65]
[null,null,"material n14",0.7]
[null,null,"material n15",0.75]
[null,null,"material n16",0.8]
[null,null,"material n17",0.85]
[null,null,"material n18",0.9]
[null,null,"material n19",0.95]
[null,null,"material n20",1]
[null,null,"Otro","-"]
[]
[]
[]
[46,{"$f":"\"Lista  \"  &A1125& \"  \"& LOOKUP(A1125,'entrada datos Edificación'!$D$3:$D$172,'entrada datos Edificación'!$H$3:$H$172)","v":"Lista  46  tejas cerámicas"},"Sin materiall reciclado ",0]
[null,null,"material n01",0.05]
[null,null,"material n02",0.1]
[null,null,"material n03",0.15]
[null,null,"material n04",0.2]
[null,null,"material n05",0.25]
[null,null,"material n06",0.3]
[null,null,"material n07",0.35]
[null,null,"material n08",0.4]
[null,null,"material n09",0.45]
[null,null,"material n10",0.5]
[null,null,"material n11",0.55000000000000004]
[null,null,"material n12",0.6]
[null,null,"material n13",0.65]
[null,null,"material n14",0.7]
[null,null,"material n15",0.75]
[null,null,"material n16",0.8]
[null,null,"material n17",0.85]
[null,null,"material n18",0.9]
[null,null,"material n19",0.95]
[null,null,"material n20",1]
[null,null,"Otro","-"]
[]
[]
[]
[47,{"$f":"\"Lista  \"  &A1150& \"  \"& LOOKUP(A1150,'entrada datos Edificación'!$D$3:$D$172,'entrada datos Edificación'!$H$3:$H$172)","v":"Lista  47  tejas de hormigón"},"Sin materiall reciclado ",0]
[null,null,"material n01",0.05]
[null,null,"material n02",0.1]
[null,null,"material n03",0.15]
[null,null,"material n04",0.2]
[null,null,"material n05",0.25]
[null,null,"material n06",0.3]
[null,null,"material n07",0.35]
[null,null,"material n08",0.4]
[null,null,"material n09",0.45]
[null,null,"material n10",0.5]
[null,null,"material n11",0.55000000000000004]
[null,null,"material n12",0.6]
[null,null,"material n13",0.65]
[null,null,"material n14",0.7]
[null,null,"material n15",0.75]
[null,null,"material n16",0.8]
[null,null,"material n17",0.85]
[null,null,"material n18",0.9]
[null,null,"material n19",0.95]
[null,null,"material n20",1]
[null,null,"Otro","-"]
[]
[]
[]
[48,{"$f":"\"Lista  \"  &A1175& \"  \"& LOOKUP(A1175,'entrada datos Edificación'!$D$3:$D$172,'entrada datos Edificación'!$H$3:$H$172)","v":"Lista  48  tejas asfálticas"},"Sin materiall reciclado ",0]
[null,null,"material n01",0.05]
[null,null,"material n02",0.1]
[null,null,"material n03",0.15]
[null,null,"material n04",0.2]
[null,null,"material n05",0.25]
[null,null,"material n06",0.3]
[null,null,"material n07",0.35]
[null,null,"material n08",0.4]
[null,null,"material n09",0.45]
[null,null,"material n10",0.5]
[null,null,"material n11",0.55000000000000004]
[null,null,"material n12",0.6]
[null,null,"material n13",0.65]
[null,null,"material n14",0.7]
[null,null,"material n15",0.75]
[null,null,"material n16",0.8]
[null,null,"material n17",0.85]
[null,null,"material n18",0.9]
[null,null,"material n19",0.95]
[null,null,"material n20",1]
[null,null,"Otro","-"]
[]
[]
[]
[49,{"$f":"\"Lista  \"  &A1200& \"  \"& LOOKUP(A1200,'entrada datos Edificación'!$D$3:$D$172,'entrada datos Edificación'!$H$3:$H$172)","v":"Lista  49  grava"},"Sin materiall reciclado ",0]
[null,null,"material n01",0.05]
[null,null,"material n02",0.1]
[null,null,"material n03",0.15]
[null,null,"material n04",0.2]
[null,null,"material n05",0.25]
[null,null,"material n06",0.3]
[null,null,"material n07",0.35]
[null,null,"material n08",0.4]
[null,null,"material n09",0.45]
[null,null,"material n10",0.5]
[null,null,"material n11",0.55000000000000004]
[null,null,"material n12",0.6]
[null,null,"material n13",0.65]
[null,null,"material n14",0.7]
[null,null,"material n15",0.75]
[null,null,"material n16",0.8]
[null,null,"material n17",0.85]
[null,null,"material n18",0.9]
[null,null,"material n19",0.95]
[null,null,"material n20",1]
[null,null,"Otro","-"]
[]
[]
[]
[50,{"$f":"\"Lista  \"  &A1225& \"  \"& LOOKUP(A1225,'entrada datos Edificación'!$D$3:$D$172,'entrada datos Edificación'!$H$3:$H$172)","v":"Lista  50  cubierta verde"},"Sin materiall reciclado ",0]
[null,null,"material n01",0.05]
[null,null,"material n02",0.1]
[null,null,"material n03",0.15]
[null,null,"material n04",0.2]
[null,null,"material n05",0.25]
[null,null,"material n06",0.3]
[null,null,"material n07",0.35]
[null,null,"material n08",0.4]
[null,null,"material n09",0.45]
[null,null,"material n10",0.5]
[null,null,"material n11",0.55000000000000004]
[null,null,"material n12",0.6]
[null,null,"material n13",0.65]
[null,null,"material n14",0.7]
[null,null,"material n15",0.75]
[null,null,"material n16",0.8]
[null,null,"material n17",0.85]
[null,null,"material n18",0.9]
[null,null,"material n19",0.95]
[null,null,"material n20",1]
[null,null,"Otro","-"]
[]
[]
[]
[51,{"$f":"\"Lista  \"  &A1250& \"  \"& LOOKUP(A1250,'entrada datos Edificación'!$D$3:$D$172,'entrada datos Edificación'!$H$3:$H$172)","v":"Lista  51  losa filtrante"},"Sin materiall reciclado ",0]
[null,null,"material n01",0.05]
[null,null,"material n02",0.1]
[null,null,"material n03",0.15]
[null,null,"material n04",0.2]
[null,null,"material n05",0.25]
[null,null,"material n06",0.3]
[null,null,"material n07",0.35]
[null,null,"material n08",0.4]
[null,null,"material n09",0.45]
[null,null,"material n10",0.5]
[null,null,"material n11",0.55000000000000004]
[null,null,"material n12",0.6]
[null,null,"material n13",0.65]
[null,null,"material n14",0.7]
[null,null,"material n15",0.75]
[null,null,"material n16",0.8]
[null,null,"material n17",0.85]
[null,null,"material n18",0.9]
[null,null,"material n19",0.95]
[null,null,"material n20",1]
[null,null,"Otro","-"]
[]
[]
[]
[52,{"$f":"\"Lista  \"  &A1275& \"  \"& LOOKUP(A1275,'entrada datos Edificación'!$D$3:$D$172,'entrada datos Edificación'!$H$3:$H$172)","v":"Lista  52  baldosa"},"Sin materiall reciclado ",0,null,{"$f":"VLOOKUP(B1275,CALCULO_EDIF!E3:H136,CALCULO_EDIF!H3,FALSE)","v":{"$error":"#N/A"}}]
[null,null,"material n01",0.05]
[null,null,"material n02",0.1]
[null,null,"material n03",0.15]
[null,null,"material n04",0.2]
[null,null,"material n05",0.25]
[null,null,"material n06",0.3]
[null,null,"material n07",0.35]
[null,null,"material n08",0.4]
[null,null,"material n09",0.45]
[null,null,"material n10",0.5]
[null,null,"material n11",0.55000000000000004]
[null,null,"material n12",0.6]
[null,null,"material n13",0.65]
[null,null,"material n14",0.7]
[null,null,"material n15",0.75]
[null,null,"material n16",0.8]
[null,null,"material n17",0.85]
[null,null,"material n18",0.9]
[null,null,"material n19",0.95]
[null,null,"material n20",1]
[null,null,"Otro","-"]
[]
[]
[]
[53,{"$f":"\"Lista  \"  &A1300& \"  \"& LOOKUP(A1300,'entrada datos Edificación'!$D$3:$D$172,'entrada datos Edificación'!$H$3:$H$172)","v":"Lista  53  carpintería metálica"},"Sin materiall reciclado ",0]
[null,null,"material n01",0.05]
[null,null,"material n02",0.1]
[null,null,"material n03",0.15]
[null,null,"material n04",0.2]
[null,null,"material n05",0.25]
[null,null,"material n06",0.3]
[null,null,"material n07",0.35]
[null,null,"material n08",0.4]
[null,null,"material n09",0.45]
[null,null,"material n10",0.5]
[null,null,"material n11",0.55000000000000004]
[null,null,"material n12",0.6]
[null,null,"material n13",0.65]
[null,null,"material n14",0.7]
[null,null,"material n15",0.75]
[null,null,"material n16",0.8]
[null,null,"material n17",0.85]
[null,null,"material n18",0.9]
[null,null,"material n19",0.95]
[null,null,"material n20",1]
[null,null,"Otro","-"]
[]
[]
[]
[54,{"$f":"\"Lista  \"  &A1325& \"  \"& LOOKUP(A1325,'entrada datos Edificación'!$D$3:$D$172,'entrada datos Edificación'!$H$3:$H$172)","v":"Lista  54  carpintería sintética"},"Sin materiall reciclado ",0]
[null,null,"material n01",0.05]
[null,null,"material n02",0.1]
[null,null,"material n03",0.15]
[null,null,"material n04",0.2]
[null,null,"material n05",0.25]
[null,null,"material n06",0.3]
[null,null,"material n07",0.35]
[null,null,"material n08",0.4]
[null,null,"material n09",0.45]
[null,null,"material n10",0.5]
[null,null,"material n11",0.55000000000000004]
[null,null,"material n12",0.6]
[null,null,"material n13",0.65]
[null,null,"material n14",0.7]
[null,null,"material n15",0.75]
[null,null,"material n16",0.8]
[null,null,"material n17",0.85]
[null,null,"material n18",0.9]
[null,null,"material n19",0.95]
[null,null,"material n20",1]
[null,null,"Otro","-"]
[]
[]
[]
[55,{"$f":"\"Lista  \"  &A1350& \"  \"& LOOKUP(A1350,'entrada datos Edificación'!$D$3:$D$172,'entrada datos Edificación'!$H$3:$H$172)","v":"Lista  55  madera"},"Sin materiall reciclado ",0]
[null,null,"material n01",0.05]
[null,null,"material n02",0.1]
[null,null,"material n03",0.15]
[null,null,"material n04",0.2]
[null,null,"material n05",0.25]
[null,null,"material n06",0.3]
[null,null,"material n07",0.35]
[null,null,"material n08",0.4]
[null,null,"material n09",0.45]
[null,null,"material n10",0.5]
[null,null,"material n11",0.55000000000000004]
[null,null,"material n12",0.6]
[null,null,"material n13",0.65]
[null,null,"material n14",0.7]
[null,null,"material n15",0.75]
[null,null,"material n16",0.8]
[null,null,"material n17",0.85]
[null,null,"material n18",0.9]
[null,null,"material n19",0.95]
[null,null,"material n20",1]
[null,null,"Otro","-"]
[]
[]
[]
[56,{"$f":"\"Lista  \"  &A1375& \"  \"& LOOKUP(A1375,'entrada datos Edificación'!$D$3:$D$172,'entrada datos Edificación'!$H$3:$H$172)","v":"Lista  56  policarbonato"},"Sin materiall reciclado ",0]
[null,null,"material n01",0.05]
[null,null,"material n02",0.1]
[null,null,"material n03",0.15]
[null,null,"material n04",0.2]
[null,null,"material n05",0.25]
[null,null,"material n06",0.3]
[null,null,"material n07",0.35]
[null,null,"material n08",0.4]
[null,null,"material n09",0.45]
[null,null,"material n10",0.5]
[null,null,"material n11",0.55000000000000004]
[null,null,"material n12",0.6]
[null,null,"material n13",0.65]
[null,null,"material n14",0.7]
[null,null,"material n15",0.75]
[null,null,"material n16",0.8]
[null,null,"material n17",0.85]
[null,null,"material n18",0.9]
[null,null,"material n19",0.95]
[null,null,"material n20",1]
[null,null,"Otro","-"]
[]
[]
[]
[57,{"$f":"\"Lista  \"  &A1400& \"  \"& LOOKUP(A1400,'entrada datos Edificación'!$D$3:$D$172,'entrada datos Edificación'!$H$3:$H$172)","v":"Lista  57  vidrio"},"Sin materiall reciclado ",0]
[null,null,"material n01",0.05]
[null,null,"material n02",0.1]
[null,null,"material n03",0.15]
[null,null,"material n04",0.2]
[null,null,"material n05",0.25]
[null,null,"material n06",0.3]
[null,null,"material n07",0.35]
[null,null,"material n08",0.4]
[null,null,"material n09",0.45]
[null,null,"material n10",0.5]
[null,null,"material n11",0.55000000000000004]
[null,null,"material n12",0.6]
[null,null,"material n13",0.65]
[null,null,"material n14",0.7]
[null,null,"material n15",0.75]
[null,null,"material n16",0.8]
[null,null,"material n17",0.85]
[null,null,"material n18",0.9]
[null,null,"material n19",0.95]
[null,null,"material n20",1]
[null,null,"Otro","-"]
[]
[]
[]
[58,{"$f":"\"Lista  \"  &A1425& \"  \"& LOOKUP(A1425,'entrada datos Edificación'!$D$3:$D$172,'entrada datos Edificación'!$H$3:$H$172)","v":"Lista  58  lana mineral"},"Sin materiall reciclado ",0]
[null,null,"Acustiver P c/VN-Isover \n",0.745]
[null,null,"Acustiver P  sin Velo-Isover ",0.71]
[null,null,"Acustiver R 400 -Isover",0.75800000000000001]
[null,null,"Lana de roca de baja densidad (entre 27 kg/m³ a 60 kg/m³ ) -ROCKWOOL",0.34399999999999997]
[null,null,"Lana de roca de baja densidad (entre 61 kg/m³ to 120 kg/m³ )-ROCKWOOL",0.32500000000000001]
[null,null,"Lana de roca de alta densidad (entre 121kg/m³ a 250 kg/m³ )-ROCKWOOL",0.32500000000000001]
[null,null,"material n07",0.35]
[null,null,"material n08",0.4]
[null,null,"material n09",0.45]
[null,null,"material n10",0.5]
[null,null,"material n11",0.55000000000000004]
[null,null,"material n12",0.6]
[null,null,"material n13",0.65]
[null,null,"material n14",0.7]
[null,null,"material n15",0.75]
[null,null,"material n16",0.8]
[null,null,"material n17",0.85]
[null,null,"material n18",0.9]
[null,null,"material n19",0.95]
[null,null,"material n20",1]
[null,null,"Otro","-"]
[]
[]
[]
[59,{"$f":"\"Lista  \"  &A1450& \"  \"& LOOKUP(A1450,'entrada datos Edificación'!$D$3:$D$172,'entrada datos Edificación'!$H$3:$H$172)","v":"Lista  59  lana de vidrio"},"Sin materiall reciclado ",0]
[null,null,"Glass Mineral Wool 035 - 034 slabs with ECOSE-Knauf insulation",0.84]
[null,null,"Glass Mineral Wool 035 unfaced rolls with ECOSE-Knauf insulation",0.82599999999999996]
[null,null,"Glass Mineral Wool 040 unfaced rolls with ECOSE-Knauf insulation",0.85499999999999998]
[null,null,"Glass Mineral Wool 032 unfaced rolls with ECOSE-Knauf insulation",0.82899999999999996]
[null,null,"material n05",0.25]
[null,null,"material n06",0.3]
[null,null,"material n07",0.35]
[null,null,"material n08",0.4]
[null,null,"material n09",0.45]
[null,null,"material n10",0.5]
[null,null,"material n11",0.55000000000000004]
[null,null,"material n12",0.6]
[null,null,"material n13",0.65]
[null,null,"material n14",0.7]
[null,null,"material n15",0.75]
[null,null,"material n16",0.8]
[null,null,"material n17",0.85]
[null,null,"material n18",0.9]
[null,null,"material n19",0.95]
[null,null,"material n20",1]
[null,null,"Otro","-"]
[]
[]
[]
[60,{"$f":"\"Lista  \"  &A1475& \"  \"& LOOKUP(A1475,'entrada datos Edificación'!$D$3:$D$172,'entrada datos Edificación'!$H$3:$H$172)","v":"Lista  60  poliestireno expandido"},"Sin materiall reciclado ",0]
[null,null,"material n01",0.05]
[null,null,"material n02",0.1]
[null,null,"material n03",0.15]
[null,null,"material n04",0.2]
[null,null,"material n05",0.25]
[null,null,"material n06",0.3]
[null,null,"material n07",0.35]
[null,null,"material n08",0.4]
[null,null,"material n09",0.45]
[null,null,"material n10",0.5]
[null,null,"material n11",0.55000000000000004]
[null,null,"material n12",0.6]
[null,null,"material n13",0.65]
[null,null,"material n14",0.7]
[null,null,"material n15",0.75]
[null,null,"material n16",0.8]
[null,null,"material n17",0.85]
[null,null,"material n18",0.9]
[null,null,"material n19",0.95]
[null,null,"material n20",1]
[null,null,"Otro","-"]
[]
[]
[]
[61,{"$f":"\"Lista  \"  &A1500& \"  \"& LOOKUP(A1500,'entrada datos Edificación'!$D$3:$D$172,'entrada datos Edificación'!$H$3:$H$172)","v":"Lista  61  poliestireno extruido"},"Sin materiall reciclado ",0]
[null,null,"FOAMULAR-Owens Corning",0.2]
[null,null,"material n02",0.1]
[null,null,"material n03",0.15]
[null,null,"material n04",0.2]
[null,null,"material n05",0.25]
[null,null,"material n06",0.3]
[null,null,"material n07",0.35]
[null,null,"material n08",0.4]
[null,null,"material n09",0.45]
[null,null,"material n10",0.5]
[null,null,"material n11",0.55000000000000004]
[null,null,"material n12",0.6]
[null,null,"material n13",0.65]
[null,null,"material n14",0.7]
[null,null,"material n15",0.75]
[null,null,"material n16",0.8]
[null,null,"material n17",0.85]
[null,null,"material n18",0.9]
[null,null,"material n19",0.95]
[null,null,"material n20",1]
[null,null,"Otro","-"]
[]
[]
[]
[62,{"$f":"\"Lista  \"  &A1525& \"  \"& LOOKUP(A1525,'entrada datos Edificación'!$D$3:$D$172,'entrada datos Edificación'!$H$3:$H$172)","v":"Lista  62  espuma poliuretano"},"Sin materiall reciclado ",0]
[null,null,"material n01",0.05]
[null,null,"material n02",0.1]
[null,null,"material n03",0.15]
[null,null,"material n04",0.2]
[null,null,"material n05",0.25]
[null,null,"material n06",0.3]
[null,null,"material n07",0.35]
[null,null,"material n08",0.4]
[null,null,"material n09",0.45]
[null,null,"material n10",0.5]
[null,null,"material n11",0.55000000000000004]
[null,null,"material n12",0.6]
[null,null,"material n13",0.65]
[null,null,"material n14",0.7]
[null,null,"material n15",0.75]
[null,null,"material n16",0.8]
[null,null,"material n17",0.85]
[null,null,"material n18",0.9]
[null,null,"material n19",0.95]
[null,null,"material n20",1]
[null,null,"Otro","-"]
[]
[]
[]
[63,{"$f":"\"Lista  \"  &A1550& \"  \"& LOOKUP(A1550,'entrada datos Edificación'!$D$3:$D$172,'entrada datos Edificación'!$H$3:$H$172)","v":"Lista  63  corcho"},"Sin materiall reciclado ",0]
[null,null,"material n01",0.05]
[null,null,"material n02",0.1]
[null,null,"material n03",0.15]
[null,null,"material n04",0.2]
[null,null,"material n05",0.25]
[null,null,"material n06",0.3]
[null,null,"material n07",0.35]
[null,null,"material n08",0.4]
[null,null,"material n09",0.45]
[null,null,"material n10",0.5]
[null,null,"material n11",0.55000000000000004]
[null,null,"material n12",0.6]
[null,null,"material n13",0.65]
[null,null,"material n14",0.7]
[null,null,"material n15",0.75]
[null,null,"material n16",0.8]
[null,null,"material n17",0.85]
[null,null,"material n18",0.9]
[null,null,"material n19",0.95]
[null,null,"material n20",1]
[null,null,"Otro","-"]
[]
[]
[]
[64,{"$f":"\"Lista  \"  &A1575& \"  \"& LOOKUP(A1575,'entrada datos Edificación'!$D$3:$D$172,'entrada datos Edificación'!$H$3:$H$172)","v":"Lista  64  fibra de madera"},"Sin materiall reciclado ",0]
[null,null,"material n01",0.05]
[null,null,"material n02",0.1]
[null,null,"material n03",0.15]
[null,null,"material n04",0.2]
[null,null,"material n05",0.25]
[null,null,"material n06",0.3]
[null,null,"material n07",0.35]
[null,null,"material n08",0.4]
[null,null,"material n09",0.45]
[null,null,"material n10",0.5]
[null,null,"material n11",0.55000000000000004]
[null,null,"material n12",0.6]
[null,null,"material n13",0.65]
[null,null,"material n14",0.7]
[null,null,"material n15",0.75]
[null,null,"material n16",0.8]
[null,null,"material n17",0.85]
[null,null,"material n18",0.9]
[null,null,"material n19",0.95]
[null,null,"material n20",1]
[null,null,"Otro","-"]
[]
[]
[]
[65,{"$f":"\"Lista  \"  &A1600& \"  \"& LOOKUP(A1600,'entrada datos Edificación'!$D$3:$D$172,'entrada datos Edificación'!$H$3:$H$172)","v":"Lista  65  celulosa"},"Sin materiall reciclado ",0]
[null,null,"Ecomarc ",0.9]
[null,null,"Biocell -Biohaus Goierri sl",0.9]
[null,null,"Flexcl - HOMATHERM",0.9]
[null,null,"material n04",0.2]
[null,null,"material n05",0.25]
[null,null,"material n06",0.3]
[null,null,"material n07",0.35]
[null,null,"material n08",0.4]
[null,null,"material n09",0.45]
[null,null,"material n10",0.5]
[null,null,"material n11",0.55000000000000004]
[null,null,"material n12",0.6]
[null,null,"material n13",0.65]
[null,null,"material n14",0.7]
[null,null,"material n15",0.75]
[null,null,"material n16",0.8]
[null,null,"material n17",0.85]
[null,null,"material n18",0.9]
[null,null,"material n19",0.95]
[null,null,"material n20",1]
[null,null,"Otro","-"]
[]
[]
[]
[66,{"$f":"\"Lista  \"  &A1625& \"  \"& LOOKUP(A1625,'entrada datos Edificación'!$D$3:$D$172,'entrada datos Edificación'!$H$3:$H$172)","v":"Lista  66  vidrio celular"},"Sin materiall reciclado ",0]
[null,null,"material n01",0.05]
[null,null,"material n02",0.1]
[null,null,"material n03",0.15]
[null,null,"material n04",0.2]
[null,null,"material n05",0.25]
[null,null,"material n06",0.3]
[null,null,"material n07",0.35]
[null,null,"material n08",0.4]
[null,null,"material n09",0.45]
[null,null,"material n10",0.5]
[null,null,"material n11",0.55000000000000004]
[null,null,"material n12",0.6]
[null,null,"material n13",0.65]
[null,null,"material n14",0.7]
[null,null,"material n15",0.75]
[null,null,"material n16",0.8]
[null,null,"material n17",0.85]
[null,null,"material n18",0.9]
[null,null,"material n19",0.95]
[null,null,"material n20",1]
[null,null,"Otro","-"]
[]
[]
[]
[67,{"$f":"\"Lista  \"  &A1650& \"  \"& LOOKUP(A1650,'entrada datos Edificación'!$D$3:$D$172,'entrada datos Edificación'!$H$3:$H$172)","v":"Lista  67  otros"},"Sin materiall reciclado ",0]
[null,null,"material n01",0.05]
[null,null,"material n02",0.1]
[null,null,"material n03",0.15]
[null,null,"material n04",0.2]
[null,null,"material n05",0.25]
[null,null,"material n06",0.3]
[null,null,"material n07",0.35]
[null,null,"material n08",0.4]
[null,null,"material n09",0.45]
[null,null,"material n10",0.5]
[null,null,"material n11",0.55000000000000004]
[null,null,"material n12",0.6]
[null,null,"material n13",0.65]
[null,null,"material n14",0.7]
[null,null,"material n15",0.75]
[null,null,"material n16",0.8]
[null,null,"material n17",0.85]
[null,null,"material n18",0.9]
[null,null,"material n19",0.95]
[null,null,"material n20",1]
[null,null,"Otro","-"]
[]
[]
[]
[68,{"$f":"\"Lista  \"  &A1675& \"  \"& LOOKUP(A1675,'entrada datos Edificación'!$D$3:$D$172,'entrada datos Edificación'!$H$3:$H$172)","v":"Lista  68  láminas sintéticas"},"Sin materiall reciclado ",0]
[null,null,"Danapol-DANOSA",0.28999999999999998]
[null,null,"K-Dek PVC-KINGSPAN INSULATED PANELS ",0.27800000000000002]
[null,null,"SIKAPLAN FASTENED-SIKA",0.1]
[null,null,"material n04",0.2]
[null,null,"material n05",0.25]
[null,null,"material n06",0.3]
[null,null,"material n07",0.35]
[null,null,"material n08",0.4]
[null,null,"material n09",0.45]
[null,null,"material n10",0.5]
[null,null,"material n11",0.55000000000000004]
[null,null,"material n12",0.6]
[null,null,"material n13",0.65]
[null,null,"material n14",0.7]
[null,null,"material n15",0.75]
[null,null,"material n16",0.8]
[null,null,"material n17",0.85]
[null,null,"material n18",0.9]
[null,null,"material n19",0.95]
[null,null,"material n20",1]
[null,null,"Otro","-"]
[]
[]
[]
[69,{"$f":"\"Lista  \"  &A1700& \"  \"& LOOKUP(A1700,'entrada datos Edificación'!$D$3:$D$172,'entrada datos Edificación'!$H$3:$H$172)","v":"Lista  69  láminas asfálticas"},"Sin materiall reciclado ",0]
[null,null,"Sistema BTC-Impermeabilizantes SANI S.L.",0.11]
[null,null,"material n02",0.1]
[null,null,"material n03",0.15]
[null,null,"material n04",0.2]
[null,null,"material n05",0.25]
[null,null,"material n06",0.3]
[null,null,"material n07",0.35]
[null,null,"material n08",0.4]
[null,null,"material n09",0.45]
[null,null,"material n10",0.5]
[null,null,"material n11",0.55000000000000004]
[null,null,"material n12",0.6]
[null,null,"material n13",0.65]
[null,null,"material n14",0.7]
[null,null,"material n15",0.75]
[null,null,"material n16",0.8]
[null,null,"material n17",0.85]
[null,null,"material n18",0.9]
[null,null,"material n19",0.95]
[null,null,"material n20",1]
[null,null,"Otro","-"]
[]
[]
[]
[70,{"$f":"\"Lista  \"  &A1725& \"  \"& LOOKUP(A1725,'entrada datos Edificación'!$D$3:$D$172,'entrada datos Edificación'!$H$3:$H$172)","v":"Lista  70  LHD 1/2 pie (tabicón)"},"Sin materiall reciclado ",0]
[null,null,"material n01",0.05]
[null,null,"material n02",0.1]
[null,null,"material n03",0.15]
[null,null,"material n04",0.2]
[null,null,"material n05",0.25]
[null,null,"material n06",0.3]
[null,null,"material n07",0.35]
[null,null,"material n08",0.4]
[null,null,"material n09",0.45]
[null,null,"material n10",0.5]
[null,null,"material n11",0.55000000000000004]
[null,null,"material n12",0.6]
[null,null,"material n13",0.65]
[null,null,"material n14",0.7]
[null,null,"material n15",0.75]
[null,null,"material n16",0.8]
[null,null,"material n17",0.85]
[null,null,"material n18",0.9]
[null,null,"material n19",0.95]
[null,null,"material n20",1]
[null,null,"Otro","-"]
[]
[]
[]
[71,{"$f":"\"Lista  \"  &A1750& \"  \"& LOOKUP(A1750,'entrada datos Edificación'!$D$3:$D$172,'entrada datos Edificación'!$H$3:$H$172)","v":"Lista  71  LHD (8cm)  Machetón"},"Sin materiall reciclado ",0]
[null,null,"material n01",0.05]
[null,null,"material n02",0.1]
[null,null,"material n03",0.15]
[null,null,"material n04",0.2]
[null,null,"material n05",0.25]
[null,null,"material n06",0.3]
[null,null,"material n07",0.35]
[null,null,"material n08",0.4]
[null,null,"material n09",0.45]
[null,null,"material n10",0.5]
[null,null,"material n11",0.55000000000000004]
[null,null,"material n12",0.6]
[null,null,"material n13",0.65]
[null,null,"material n14",0.7]
[null,null,"material n15",0.75]
[null,null,"material n16",0.8]
[null,null,"material n17",0.85]
[null,null,"material n18",0.9]
[null,null,"material n19",0.95]
[null,null,"material n20",1]
[null,null,"Otro","-"]
[]
[]
[]
[72,{"$f":"\"Lista  \"  &A1775& \"  \"& LOOKUP(A1775,'entrada datos Edificación'!$D$3:$D$172,'entrada datos Edificación'!$H$3:$H$172)","v":"Lista  72  ladrillo perforado"},"Sin materiall reciclado ",0]
[null,null,"material n01",0.05]
[null,null,"material n02",0.1]
[null,null,"material n03",0.15]
[null,null,"material n04",0.2]
[null,null,"material n05",0.25]
[null,null,"material n06",0.3]
[null,null,"material n07",0.35]
[null,null,"material n08",0.4]
[null,null,"material n09",0.45]
[null,null,"material n10",0.5]
[null,null,"material n11",0.55000000000000004]
[null,null,"material n12",0.6]
[null,null,"material n13",0.65]
[null,null,"material n14",0.7]
[null,null,"material n15",0.75]
[null,null,"material n16",0.8]
[null,null,"material n17",0.85]
[null,null,"material n18",0.9]
[null,null,"material n19",0.95]
[null,null,"material n20",1]
[null,null,"Otro","-"]
[]
[]
[]
[73,{"$f":"\"Lista  \"  &A1800& \"  \"& LOOKUP(A1800,'entrada datos Edificación'!$D$3:$D$172,'entrada datos Edificación'!$H$3:$H$172)","v":"Lista  73  bloques de hormigón"},"Sin materiall reciclado ",0]
[null,null,"material n01",0.05]
[null,null,"material n02",0.1]
[null,null,"material n03",0.15]
[null,null,"material n04",0.2]
[null,null,"material n05",0.25]
[null,null,"material n06",0.3]
[null,null,"material n07",0.35]
[null,null,"material n08",0.4]
[null,null,"material n09",0.45]
[null,null,"material n10",0.5]
[null,null,"material n11",0.55000000000000004]
[null,null,"material n12",0.6]
[null,null,"material n13",0.65]
[null,null,"material n14",0.7]
[null,null,"material n15",0.75]
[null,null,"material n16",0.8]
[null,null,"material n17",0.85]
[null,null,"material n18",0.9]
[null,null,"material n19",0.95]
[null,null,"material n20",1]
[null,null,"Otro","-"]
[]
[]
[]
[74,{"$f":"\"Lista  \"  &A1825& \"  \"& LOOKUP(A1825,'entrada datos Edificación'!$D$3:$D$172,'entrada datos Edificación'!$H$3:$H$172)","v":"Lista  74  cartón yeso"},"Sin materiall reciclado ",0]
[null,null,"Gypsum fibre Board Münchenhof - FERMACELL",0.74]
[null,null,"Gupsum fibre Board Siglingen-FERMACELL",0.46]
[null,null,"Gypsum fibre Board Wijchen-FERMACELL",0.97]
[null,null,"Gypsum fibre Board- weighted average-FERMACELL",0.76]
[null,null,"material n05",0.25]
[null,null,"material n06",0.3]
[null,null,"material n07",0.35]
[null,null,"material n08",0.4]
[null,null,"material n09",0.45]
[null,null,"material n10",0.5]
[null,null,"material n11",0.55000000000000004]
[null,null,"material n12",0.6]
[null,null,"material n13",0.65]
[null,null,"material n14",0.7]
[null,null,"material n15",0.75]
[null,null,"material n16",0.8]
[null,null,"material n17",0.85]
[null,null,"material n18",0.9]
[null,null,"material n19",0.95]
[null,null,"material n20",1]
[null,null,"Otro","-"]
[]
[]
[]
[75,{"$f":"\"Lista  \"  &A1850& \"  \"& LOOKUP(A1850,'entrada datos Edificación'!$D$3:$D$172,'entrada datos Edificación'!$H$3:$H$172)","v":"Lista  75  otros"},"Sin materiall reciclado ",0]
[null,null,"material n01",0.05]
[null,null,"material n02",0.1]
[null,null,"material n03",0.15]
[null,null,"material n04",0.2]
[null,null,"material n05",0.25]
[null,null,"material n06",0.3]
[null,null,"material n07",0.35]
[null,null,"material n08",0.4]
[null,null,"material n09",0.45]
[null,null,"material n10",0.5]
[null,null,"material n11",0.55000000000000004]
[null,null,"material n12",0.6]
[null,null,"material n13",0.65]
[null,null,"material n14",0.7]
[null,null,"material n15",0.75]
[null,null,"material n16",0.8]
[null,null,"material n17",0.85]
[null,null,"material n18",0.9]
[null,null,"material n19",0.95]
[null,null,"material n20",1]
[null,null,"Otro","-"]
[]
[]
[]
[76,{"$f":"\"Lista  \"  &A1875& \"  \"& LOOKUP(A1875,'entrada datos Edificación'!$D$3:$D$172,'entrada datos Edificación'!$H$3:$H$172)","v":"Lista  76  opacas metálicas"},"Sin materiall reciclado ",0]
[null,null,"material n01",0.05]
[null,null,"material n02",0.1]
[null,null,"material n03",0.15]
[null,null,"material n04",0.2]
[null,null,"material n05",0.25]
[null,null,"material n06",0.3]
[null,null,"material n07",0.35]
[null,null,"material n08",0.4]
[null,null,"material n09",0.45]
[null,null,"material n10",0.5]
[null,null,"material n11",0.55000000000000004]
[null,null,"material n12",0.6]
[null,null,"material n13",0.65]
[null,null,"material n14",0.7]
[null,null,"material n15",0.75]
[null,null,"material n16",0.8]
[null,null,"material n17",0.85]
[null,null,"material n18",0.9]
[null,null,"material n19",0.95]
[null,null,"material n20",1]
[null,null,"Otro","-"]
[]
[]
[]
[77,{"$f":"\"Lista  \"  &A1900& \"  \"& LOOKUP(A1900,'entrada datos Edificación'!$D$3:$D$172,'entrada datos Edificación'!$H$3:$H$172)","v":"Lista  77  opacas de aglomerado"},"Sin materiall reciclado ",0]
[null,null,"material n01",0.05]
[null,null,"material n02",0.1]
[null,null,"material n03",0.15]
[null,null,"material n04",0.2]
[null,null,"material n05",0.25]
[null,null,"material n06",0.3]
[null,null,"material n07",0.35]
[null,null,"material n08",0.4]
[null,null,"material n09",0.45]
[null,null,"material n10",0.5]
[null,null,"material n11",0.55000000000000004]
[null,null,"material n12",0.6]
[null,null,"material n13",0.65]
[null,null,"material n14",0.7]
[null,null,"material n15",0.75]
[null,null,"material n16",0.8]
[null,null,"material n17",0.85]
[null,null,"material n18",0.9]
[null,null,"material n19",0.95]
[null,null,"material n20",1]
[null,null,"Otro","-"]
[]
[]
[]
[78,{"$f":"\"Lista  \"  &A1925& \"  \"& LOOKUP(A1925,'entrada datos Edificación'!$D$3:$D$172,'entrada datos Edificación'!$H$3:$H$172)","v":"Lista  78  de vidrio"},"Sin materiall reciclado ",0]
[null,null,"material n01",0.05]
[null,null,"material n02",0.1]
[null,null,"material n03",0.15]
[null,null,"material n04",0.2]
[null,null,"material n05",0.25]
[null,null,"material n06",0.3]
[null,null,"material n07",0.35]
[null,null,"material n08",0.4]
[null,null,"material n09",0.45]
[null,null,"material n10",0.5]
[null,null,"material n11",0.55000000000000004]
[null,null,"material n12",0.6]
[null,null,"material n13",0.65]
[null,null,"material n14",0.7]
[null,null,"material n15",0.75]
[null,null,"material n16",0.8]
[null,null,"material n17",0.85]
[null,null,"material n18",0.9]
[null,null,"material n19",0.95]
[null,null,"material n20",1]
[null,null,"Otro","-"]
[]
[]
[]
[79,{"$f":"\"Lista  \"  &A1950& \"  \"& LOOKUP(A1950,'entrada datos Edificación'!$D$3:$D$172,'entrada datos Edificación'!$H$3:$H$172)","v":"Lista  79  puertas madera"},"Sin materiall reciclado ",0]
[null,null,"Puertas de interior JELD-WEN ",0.56000000000000005]
[null,null,"MDF Interior Doors -TruStile Doors LLC",0.69]
[null,null,"Marshfield Doors-Masonite Architectural",0.44]
[null,null,"material n04",0.2]
[null,null,"material n05",0.25]
[null,null,"material n06",0.3]
[null,null,"material n07",0.35]
[null,null,"material n08",0.4]
[null,null,"material n09",0.45]
[null,null,"material n10",0.5]
[null,null,"material n11",0.55000000000000004]
[null,null,"material n12",0.6]
[null,null,"material n13",0.65]
[null,null,"material n14",0.7]
[null,null,"material n15",0.75]
[null,null,"material n16",0.8]
[null,null,"material n17",0.85]
[null,null,"material n18",0.9]
[null,null,"material n19",0.95]
[null,null,"material n20",1]
[null,null,"Otro","-"]
[]
[]
[]
[80,{"$f":"\"Lista  \"  &A1975& \"  \"& LOOKUP(A1975,'entrada datos Edificación'!$D$3:$D$172,'entrada datos Edificación'!$H$3:$H$172)","v":"Lista  80  puertas metálicas"},"Sin materiall reciclado ",0]
[null,null,"Crawford OH1042P-ASSA ABLOY",0.77590000000000003]
[null,null,"Besam SW200i-ASSA ABLOY",0.497]
[null,null,"CECO DOOR Cold Rolled product-ASSA ABLOY",0.61499999999999999]
[null,null,"material n04",0.2]
[null,null,"material n05",0.25]
[null,null,"material n06",0.3]
[null,null,"material n07",0.35]
[null,null,"material n08",0.4]
[null,null,"material n09",0.45]
[null,null,"material n10",0.5]
[null,null,"material n11",0.55000000000000004]
[null,null,"material n12",0.6]
[null,null,"material n13",0.65]
[null,null,"material n14",0.7]
[null,null,"material n15",0.75]
[null,null,"material n16",0.8]
[null,null,"material n17",0.85]
[null,null,"material n18",0.9]
[null,null,"material n19",0.95]
[null,null,"material n20",1]
[null,null,"Otro","-"]
[]
[]
[]
[81,{"$f":"\"Lista  \"  &A2000& \"  \"& LOOKUP(A2000,'entrada datos Edificación'!$D$3:$D$172,'entrada datos Edificación'!$H$3:$H$172)","v":"Lista  81  vidrio puertas interiores"},"Sin materiall reciclado ",0]
[null,null,"material n01",0.05]
[null,null,"material n02",0.1]
[null,null,"material n03",0.15]
[null,null,"material n04",0.2]
[null,null,"material n05",0.25]
[null,null,"material n06",0.3]
[null,null,"material n07",0.35]
[null,null,"material n08",0.4]
[null,null,"material n09",0.45]
[null,null,"material n10",0.5]
[null,null,"material n11",0.55000000000000004]
[null,null,"material n12",0.6]
[null,null,"material n13",0.65]
[null,null,"material n14",0.7]
[null,null,"material n15",0.75]
[null,null,"material n16",0.8]
[null,null,"material n17",0.85]
[null,null,"material n18",0.9]
[null,null,"material n19",0.95]
[null,null,"material n20",1]
[null,null,"Otro","-"]
[]
[]
[]
[82,{"$f":"\"Lista  \"  &A2025& \"  \"& LOOKUP(A2025,'entrada datos Edificación'!$D$3:$D$172,'entrada datos Edificación'!$H$3:$H$172)","v":"Lista  82  guarnecido y enlucido de yeso"},"Sin materiall reciclado ",0]
[null,null,"material n01",0.05]
[null,null,"material n02",0.1]
[null,null,"material n03",0.15]
[null,null,"material n04",0.2]
[null,null,"material n05",0.25]
[null,null,"material n06",0.3]
[null,null,"material n07",0.35]
[null,null,"material n08",0.4]
[null,null,"material n09",0.45]
[null,null,"material n10",0.5]
[null,null,"material n11",0.55000000000000004]
[null,null,"material n12",0.6]
[null,null,"material n13",0.65]
[null,null,"material n14",0.7]
[null,null,"material n15",0.75]
[null,null,"material n16",0.8]
[null,null,"material n17",0.85]
[null,null,"material n18",0.9]
[null,null,"material n19",0.95]
[null,null,"material n20",1]
[null,null,"Otro","-"]
[]
[]
[]
[83,{"$f":"\"Lista  \"  &A2050& \"  \"& LOOKUP(A2050,'entrada datos Edificación'!$D$3:$D$172,'entrada datos Edificación'!$H$3:$H$172)","v":"Lista  83  enfoscado"},"Sin materiall reciclado ",0]
[null,null,"material n01",0.05]
[null,null,"material n02",0.1]
[null,null,"material n03",0.15]
[null,null,"material n04",0.2]
[null,null,"material n05",0.25]
[null,null,"material n06",0.3]
[null,null,"material n07",0.35]
[null,null,"material n08",0.4]
[null,null,"material n09",0.45]
[null,null,"material n10",0.5]
[null,null,"material n11",0.55000000000000004]
[null,null,"material n12",0.6]
[null,null,"material n13",0.65]
[null,null,"material n14",0.7]
[null,null,"material n15",0.75]
[null,null,"material n16",0.8]
[null,null,"material n17",0.85]
[null,null,"material n18",0.9]
[null,null,"material n19",0.95]
[null,null,"material n20",1]
[null,null,"Otro","-"]
[]
[]
[]
[84,{"$f":"\"Lista  \"  &A2075& \"  \"& LOOKUP(A2075,'entrada datos Edificación'!$D$3:$D$172,'entrada datos Edificación'!$H$3:$H$172)","v":"Lista  84  morteros"},"Sin materiall reciclado ",0]
[null,null,"ECOSCREED Deco-Verde - ECOSSCREEN",0.98]
[null,null,"ECOSCREED Alpha-Flex ST-ECOSSCREEN",0.98]
[null,null,"ECOSCREED Alpha-Flex ST-ECOSSCREEN",0.98]
[null,null,"material n04",0.2]
[null,null,"material n05",0.25]
[null,null,"material n06",0.3]
[null,null,"material n07",0.35]
[null,null,"material n08",0.4]
[null,null,"material n09",0.45]
[null,null,"material n10",0.5]
[null,null,"material n11",0.55000000000000004]
[null,null,"material n12",0.6]
[null,null,"material n13",0.65]
[null,null,"material n14",0.7]
[null,null,"material n15",0.75]
[null,null,"material n16",0.8]
[null,null,"material n17",0.85]
[null,null,"material n18",0.9]
[null,null,"material n19",0.95]
[null,null,"material n20",1]
[null,null,"Otro","-"]
[]
[]
[]
[85,{"$f":"\"Lista  \"  &A2100& \"  \"& LOOKUP(A2100,'entrada datos Edificación'!$D$3:$D$172,'entrada datos Edificación'!$H$3:$H$172)","v":"Lista  85  tableros de partículas de madera"},"Sin materiall reciclado ",0]
[null,null,"Tableros MEDITE FR-Roseburg Forest Products",0.82]
[null,null,"Tableros RESINDECK-CORNESTONE",0.72]
[null,null,"Puertas de interior JELD-WEN-JELD-WEN",0.56000000000000005]
[null,null,"material n04",0.2]
[null,null,"material n05",0.25]
[null,null,"material n06",0.3]
[null,null,"material n07",0.35]
[null,null,"material n08",0.4]
[null,null,"material n09",0.45]
[null,null,"material n10",0.5]
[null,null,"material n11",0.55000000000000004]
[null,null,"material n12",0.6]
[null,null,"material n13",0.65]
[null,null,"material n14",0.7]
[null,null,"material n15",0.75]
[null,null,"material n16",0.8]
[null,null,"material n17",0.85]
[null,null,"material n18",0.9]
[null,null,"material n19",0.95]
[null,null,"material n20",1]
[null,null,"Otro","-"]
[]
[]
[]
[86,{"$f":"\"Lista  \"  &A2125& \"  \"& LOOKUP(A2125,'entrada datos Edificación'!$D$3:$D$172,'entrada datos Edificación'!$H$3:$H$172)","v":"Lista  86  tableros de madera natural"},"Sin materiall reciclado ",0]
[null,null,"material n01",0.05]
[null,null,"material n02",0.1]
[null,null,"material n03",0.15]
[null,null,"material n04",0.2]
[null,null,"material n05",0.25]
[null,null,"material n06",0.3]
[null,null,"material n07",0.35]
[null,null,"material n08",0.4]
[null,null,"material n09",0.45]
[null,null,"material n10",0.5]
[null,null,"material n11",0.55000000000000004]
[null,null,"material n12",0.6]
[null,null,"material n13",0.65]
[null,null,"material n14",0.7]
[null,null,"material n15",0.75]
[null,null,"material n16",0.8]
[null,null,"material n17",0.85]
[null,null,"material n18",0.9]
[null,null,"material n19",0.95]
[null,null,"material n20",1]
[null,null,"Otro","-"]
[]
[]
[]
[87,{"$f":"\"Lista  \"  &A2150& \"  \"& LOOKUP(A2150,'entrada datos Edificación'!$D$3:$D$172,'entrada datos Edificación'!$H$3:$H$172)","v":"Lista  87  alicatado cerámico"},"Sin materiall reciclado ",0]
[null,null,"Ecotech-Floor Gres",0.4]
[null,null,"Chromtech-Floor Gres",0.4]
[null,null,"Lithoverde-Alfredo Salvatori SRL",0.99]
[null,null,"material n04",0.2]
[null,null,"material n05",0.25]
[null,null,"material n06",0.3]
[null,null,"material n07",0.35]
[null,null,"material n08",0.4]
[null,null,"material n09",0.45]
[null,null,"material n10",0.5]
[null,null,"material n11",0.55000000000000004]
[null,null,"material n12",0.6]
[null,null,"material n13",0.65]
[null,null,"material n14",0.7]
[null,null,"material n15",0.75]
[null,null,"material n16",0.8]
[null,null,"material n17",0.85]
[null,null,"material n18",0.9]
[null,null,"material n19",0.95]
[null,null,"material n20",1]
[null,null,"Otro","-"]
[]
[]
[]
[88,{"$f":"\"Lista  \"  &A2175& \"  \"& LOOKUP(A2175,'entrada datos Edificación'!$D$3:$D$172,'entrada datos Edificación'!$H$3:$H$172)","v":"Lista  88  gres"},"Sin materiall reciclado ",0]
[null,null,"material n01",0.05]
[null,null,"material n02",0.1]
[null,null,"material n03",0.15]
[null,null,"material n04",0.2]
[null,null,"material n05",0.25]
[null,null,"material n06",0.3]
[null,null,"material n07",0.35]
[null,null,"material n08",0.4]
[null,null,"material n09",0.45]
[null,null,"material n10",0.5]
[null,null,"material n11",0.55000000000000004]
[null,null,"material n12",0.6]
[null,null,"material n13",0.65]
[null,null,"material n14",0.7]
[null,null,"material n15",0.75]
[null,null,"material n16",0.8]
[null,null,"material n17",0.85]
[null,null,"material n18",0.9]
[null,null,"material n19",0.95]
[null,null,"material n20",1]
[null,null,"Otro","-"]
[]
[]
[]
[89,{"$f":"\"Lista  \"  &A2200& \"  \"& LOOKUP(A2200,'entrada datos Edificación'!$D$3:$D$172,'entrada datos Edificación'!$H$3:$H$172)","v":"Lista  89  revestimientos sintéticos"},"Sin materiall reciclado ",0]
[null,null,"material n01",0.05]
[null,null,"material n02",0.1]
[null,null,"material n03",0.15]
[null,null,"material n04",0.2]
[null,null,"material n05",0.25]
[null,null,"material n06",0.3]
[null,null,"material n07",0.35]
[null,null,"material n08",0.4]
[null,null,"material n09",0.45]
[null,null,"material n10",0.5]
[null,null,"material n11",0.55000000000000004]
[null,null,"material n12",0.6]
[null,null,"material n13",0.65]
[null,null,"material n14",0.7]
[null,null,"material n15",0.75]
[null,null,"material n16",0.8]
[null,null,"material n17",0.85]
[null,null,"material n18",0.9]
[null,null,"material n19",0.95]
[null,null,"material n20",1]
[null,null,"Otro","-"]
[]
[]
[]
[90,{"$f":"\"Lista  \"  &A2225& \"  \"& LOOKUP(A2225,'entrada datos Edificación'!$D$3:$D$172,'entrada datos Edificación'!$H$3:$H$172)","v":"Lista  90  papel"},"Sin materiall reciclado ",0]
[null,null,"material n01",0.05]
[null,null,"material n02",0.1]
[null,null,"material n03",0.15]
[null,null,"material n04",0.2]
[null,null,"material n05",0.25]
[null,null,"material n06",0.3]
[null,null,"material n07",0.35]
[null,null,"material n08",0.4]
[null,null,"material n09",0.45]
[null,null,"material n10",0.5]
[null,null,"material n11",0.55000000000000004]
[null,null,"material n12",0.6]
[null,null,"material n13",0.65]
[null,null,"material n14",0.7]
[null,null,"material n15",0.75]
[null,null,"material n16",0.8]
[null,null,"material n17",0.85]
[null,null,"material n18",0.9]
[null,null,"material n19",0.95]
[null,null,"material n20",1]
[null,null,"Otro","-"]
[]
[]
[]
[91,{"$f":"\"Lista  \"  &A2250& \"  \"& LOOKUP(A2250,'entrada datos Edificación'!$D$3:$D$172,'entrada datos Edificación'!$H$3:$H$172)","v":"Lista  91  pintura"},"Sin materiall reciclado ",0]
[null,null,"material n01",0.05]
[null,null,"material n02",0.1]
[null,null,"material n03",0.15]
[null,null,"material n04",0.2]
[null,null,"material n05",0.25]
[null,null,"material n06",0.3]
[null,null,"material n07",0.35]
[null,null,"material n08",0.4]
[null,null,"material n09",0.45]
[null,null,"material n10",0.5]
[null,null,"material n11",0.55000000000000004]
[null,null,"material n12",0.6]
[null,null,"material n13",0.65]
[null,null,"material n14",0.7]
[null,null,"material n15",0.75]
[null,null,"material n16",0.8]
[null,null,"material n17",0.85]
[null,null,"material n18",0.9]
[null,null,"material n19",0.95]
[null,null,"material n20",1]
[null,null,"Otro","-"]
[]
[]
[]
[92,{"$f":"\"Lista  \"  &A2275& \"  \"& LOOKUP(A2275,'entrada datos Edificación'!$D$3:$D$172,'entrada datos Edificación'!$H$3:$H$172)","v":"Lista  92  otros"},"Sin materiall reciclado ",0]
[null,null,"Glass Mosaic Ocean-Ezarri",0.97299999999999998]
[null,null,"Mosaico UNICOLOR 103-Hisbalit",0.95099999999999996]
[null,null,"Mosaico Luxe  504-Hisbalit",0.93600000000000005]
[null,null,"material n04",0.2]
[null,null,"material n05",0.25]
[null,null,"material n06",0.3]
[null,null,"material n07",0.35]
[null,null,"material n08",0.4]
[null,null,"material n09",0.45]
[null,null,"material n10",0.5]
[null,null,"material n11",0.55000000000000004]
[null,null,"material n12",0.6]
[null,null,"material n13",0.65]
[null,null,"material n14",0.7]
[null,null,"material n15",0.75]
[null,null,"material n16",0.8]
[null,null,"material n17",0.85]
[null,null,"material n18",0.9]
[null,null,"material n19",0.95]
[null,null,"material n20",1]
[null,null,"Otro","-"]
[]
[]
[]
[93,{"$f":"\"Lista  \"  &A2300& \"  \"& LOOKUP(A2300,'entrada datos Edificación'!$D$3:$D$172,'entrada datos Edificación'!$H$3:$H$172)","v":"Lista  93  terrazo"},"Sin materiall reciclado ",0]
[null,null,"material n01",0.05]
[null,null,"material n02",0.1]
[null,null,"material n03",0.15]
[null,null,"material n04",0.2]
[null,null,"material n05",0.25]
[null,null,"material n06",0.3]
[null,null,"material n07",0.35]
[null,null,"material n08",0.4]
[null,null,"material n09",0.45]
[null,null,"material n10",0.5]
[null,null,"material n11",0.55000000000000004]
[null,null,"material n12",0.6]
[null,null,"material n13",0.65]
[null,null,"material n14",0.7]
[null,null,"material n15",0.75]
[null,null,"material n16",0.8]
[null,null,"material n17",0.85]
[null,null,"material n18",0.9]
[null,null,"material n19",0.95]
[null,null,"material n20",1]
[null,null,"Otro","-"]
[]
[]
[]
[94,{"$f":"\"Lista  \"  &A2325& \"  \"& LOOKUP(A2325,'entrada datos Edificación'!$D$3:$D$172,'entrada datos Edificación'!$H$3:$H$172)","v":"Lista  94  baldosa cerámica"},"Sin materiall reciclado ",0]
[null,null,"material n01",0.05]
[null,null,"material n02",0.1]
[null,null,"material n03",0.15]
[null,null,"material n04",0.2]
[null,null,"material n05",0.25]
[null,null,"material n06",0.3]
[null,null,"material n07",0.35]
[null,null,"material n08",0.4]
[null,null,"material n09",0.45]
[null,null,"material n10",0.5]
[null,null,"material n11",0.55000000000000004]
[null,null,"material n12",0.6]
[null,null,"material n13",0.65]
[null,null,"material n14",0.7]
[null,null,"material n15",0.75]
[null,null,"material n16",0.8]
[null,null,"material n17",0.85]
[null,null,"material n18",0.9]
[null,null,"material n19",0.95]
[null,null,"material n20",1]
[null,null,"Otro","-"]
[]
[]
[]
[95,{"$f":"\"Lista  \"  &A2350& \"  \"& LOOKUP(A2350,'entrada datos Edificación'!$D$3:$D$172,'entrada datos Edificación'!$H$3:$H$172)","v":"Lista  95  piedra"},"Sin materiall reciclado ",0]
[null,null,"material n01",0.05]
[null,null,"material n02",0.1]
[null,null,"material n03",0.15]
[null,null,"material n04",0.2]
[null,null,"material n05",0.25]
[null,null,"material n06",0.3]
[null,null,"material n07",0.35]
[null,null,"material n08",0.4]
[null,null,"material n09",0.45]
[null,null,"material n10",0.5]
[null,null,"material n11",0.55000000000000004]
[null,null,"material n12",0.6]
[null,null,"material n13",0.65]
[null,null,"material n14",0.7]
[null,null,"material n15",0.75]
[null,null,"material n16",0.8]
[null,null,"material n17",0.85]
[null,null,"material n18",0.9]
[null,null,"material n19",0.95]
[null,null,"material n20",1]
[null,null,"Otro","-"]
[]
[]
[]
[96,{"$f":"\"Lista  \"  &A2375& \"  \"& LOOKUP(A2375,'entrada datos Edificación'!$D$3:$D$172,'entrada datos Edificación'!$H$3:$H$172)","v":"Lista  96  madera "},"Sin materiall reciclado ",0]
[null,null,"material n01",0.05]
[null,null,"material n02",0.1]
[null,null,"material n03",0.15]
[null,null,"material n04",0.2]
[null,null,"material n05",0.25]
[null,null,"material n06",0.3]
[null,null,"material n07",0.35]
[null,null,"material n08",0.4]
[null,null,"material n09",0.45]
[null,null,"material n10",0.5]
[null,null,"material n11",0.55000000000000004]
[null,null,"material n12",0.6]
[null,null,"material n13",0.65]
[null,null,"material n14",0.7]
[null,null,"material n15",0.75]
[null,null,"material n16",0.8]
[null,null,"material n17",0.85]
[null,null,"material n18",0.9]
[null,null,"material n19",0.95]
[null,null,"material n20",1]
[null,null,"Otro","-"]
[]
[]
[]
[97,{"$f":"\"Lista  \"  &A2400& \"  \"& LOOKUP(A2400,'entrada datos Edificación'!$D$3:$D$172,'entrada datos Edificación'!$H$3:$H$172)","v":"Lista  97  suelos sintéticos "},"Sin materiall reciclado ",0]
[null,null,"Marmoleum - Forbo flooring systems",0.43]
[null,null,"PREMIUM PLUS: Alterna™ Luxury Tile-Armstrong World Industries, Inc.",0.4]
[null,null,"PREMIUM PLUS: Migrations® BBT™ Bio-Flooring-Armstrong World Industries, Inc.",0.4]
[null,null,"PREMIUM: Excelon® Feature™ Tile-Armstrong World Industries, Inc.",0.4]
[null,null,"PREMIUM: Striations BBT™ Bio-Flooring-Armstrong World Industries, Inc.",0.4]
[null,null,"material n06",0.3]
[null,null,"material n07",0.35]
[null,null,"material n08",0.4]
[null,null,"material n09",0.45]
[null,null,"material n10",0.5]
[null,null,"material n11",0.55000000000000004]
[null,null,"material n12",0.6]
[null,null,"material n13",0.65]
[null,null,"material n14",0.7]
[null,null,"material n15",0.75]
[null,null,"material n16",0.8]
[null,null,"material n17",0.85]
[null,null,"material n18",0.9]
[null,null,"material n19",0.95]
[null,null,"material n20",1]
[null,null,"Otro","-"]
[]
[]
[]
[98,{"$f":"\"Lista  \"  &A2425& \"  \"& LOOKUP(A2425,'entrada datos Edificación'!$D$3:$D$172,'entrada datos Edificación'!$H$3:$H$172)","v":"Lista  98  suelo técnico"},"Sin materiall reciclado ",0]
[null,null,"material n01",0.05]
[null,null,"material n02",0.1]
[null,null,"material n03",0.15]
[null,null,"material n04",0.2]
[null,null,"material n05",0.25]
[null,null,"material n06",0.3]
[null,null,"material n07",0.35]
[null,null,"material n08",0.4]
[null,null,"material n09",0.45]
[null,null,"material n10",0.5]
[null,null,"material n11",0.55000000000000004]
[null,null,"material n12",0.6]
[null,null,"material n13",0.65]
[null,null,"material n14",0.7]
[null,null,"material n15",0.75]
[null,null,"material n16",0.8]
[null,null,"material n17",0.85]
[null,null,"material n18",0.9]
[null,null,"material n19",0.95]
[null,null,"material n20",1]
[null,null,"Otro","-"]
[]
[]
[]
[99,{"$f":"\"Lista  \"  &A2450& \"  \"& LOOKUP(A2450,'entrada datos Edificación'!$D$3:$D$172,'entrada datos Edificación'!$H$3:$H$172)","v":"Lista  99  moquetas"},"Sin materiall reciclado ",0]
[null,null,"Madritum, Madritum, Histonium, Hydropolis, Urban Retreat 303, Monochrome, Cellular, Net Effect B603, Net Effect B701, Concrete Mix, , Heuga 725, Human Nature 820-Interface",0.61299999999999999]
[null,null,"Biosfera-Bouclé - Interface",0.6]
[null,null,"Cap and Blazer-Interface",0.60499999999999998]
[null,null,"material n04",0.2]
[null,null,"material n05",0.25]
[null,null,"material n06",0.3]
[null,null,"material n07",0.35]
[null,null,"material n08",0.4]
[null,null,"material n09",0.45]
[null,null,"material n10",0.5]
[null,null,"material n11",0.55000000000000004]
[null,null,"material n12",0.6]
[null,null,"material n13",0.65]
[null,null,"material n14",0.7]
[null,null,"material n15",0.75]
[null,null,"material n16",0.8]
[null,null,"material n17",0.85]
[null,null,"material n18",0.9]
[null,null,"material n19",0.95]
[null,null,"material n20",1]
[null,null,"Otro","-"]
[]
[]
[]
[100,{"$f":"\"Lista  \"  &A2475& \"  \"& LOOKUP(A2475,'entrada datos Edificación'!$D$3:$D$172,'entrada datos Edificación'!$H$3:$H$172)","v":"Lista  100  otros"},"Sin materiall reciclado ",0]
[null,null,"Geolam-Maderas GAMIZ",0.94]
[null,null,"Century Laminates EPO 50-Century Plyboards",0.5]
[null,null,"Century Laminates EPO25/EP35-Century Plyboards",0.25]
[null,null,"material n04",0.2]
[null,null,"material n05",0.25]
[null,null,"material n06",0.3]
[null,null,"material n07",0.35]
[null,null,"material n08",0.4]
[null,null,"material n09",0.45]
[null,null,"material n10",0.5]
[null,null,"material n11",0.55000000000000004]
[null,null,"material n12",0.6]
[null,null,"material n13",0.65]
[null,null,"material n14",0.7]
[null,null,"material n15",0.75]
[null,null,"material n16",0.8]
[null,null,"material n17",0.85]
[null,null,"material n18",0.9]
[null,null,"material n19",0.95]
[null,null,"material n20",1]
[null,null,"Otro","-"]
[]
[]
[]
[101,{"$f":"\"Lista  \"  &A2500& \"  \"& LOOKUP(A2500,'entrada datos Edificación'!$D$3:$D$172,'entrada datos Edificación'!$H$3:$H$172)","v":"Lista  101  paneles metálicos"},"Sin materiall reciclado ",0]
[null,null,"Ultra Microperforated Rg 0501-ARMSTRONG ",0.3]
[null,null,"Standard perforated-ARMSTRONG",0.3]
[null,null,"Plain (Unperforated)-ARMSTRONG",0.3]
[null,null,"Premium B15-ARMSTRONG ",0.4]
[null,null,"Premium OP19-ARMSTRONG ",0.34]
[null,null,"Interlude HRC-ARMSTRONG ",0.63]
[null,null,"material n07",0.35]
[null,null,"material n08",0.4]
[null,null,"material n09",0.45]
[null,null,"material n10",0.5]
[null,null,"material n11",0.55000000000000004]
[null,null,"material n12",0.6]
[null,null,"material n13",0.65]
[null,null,"material n14",0.7]
[null,null,"material n15",0.75]
[null,null,"material n16",0.8]
[null,null,"material n17",0.85]
[null,null,"material n18",0.9]
[null,null,"material n19",0.95]
[null,null,"material n20",1]
[null,null,"Otro","-"]
[]
[]
[]
[102,{"$f":"\"Lista  \"  &A2525& \"  \"& LOOKUP(A2525,'entrada datos Edificación'!$D$3:$D$172,'entrada datos Edificación'!$H$3:$H$172)","v":"Lista  102  paneles de fibra de madera"},"Sin materiall reciclado ",0]
[null,null,"material n01",0.05]
[null,null,"material n02",0.1]
[null,null,"material n03",0.15]
[null,null,"material n04",0.2]
[null,null,"material n05",0.25]
[null,null,"material n06",0.3]
[null,null,"material n07",0.35]
[null,null,"material n08",0.4]
[null,null,"material n09",0.45]
[null,null,"material n10",0.5]
[null,null,"material n11",0.55000000000000004]
[null,null,"material n12",0.6]
[null,null,"material n13",0.65]
[null,null,"material n14",0.7]
[null,null,"material n15",0.75]
[null,null,"material n16",0.8]
[null,null,"material n17",0.85]
[null,null,"material n18",0.9]
[null,null,"material n19",0.95]
[null,null,"material n20",1]
[null,null,"Otro","-"]
[]
[]
[]
[103,{"$f":"\"Lista  \"  &A2550& \"  \"& LOOKUP(A2550,'entrada datos Edificación'!$D$3:$D$172,'entrada datos Edificación'!$H$3:$H$172)","v":"Lista  103  paneles sintéticos"},"Sin materiall reciclado ",0]
[null,null,"material n01",0.05]
[null,null,"material n02",0.1]
[null,null,"material n03",0.15]
[null,null,"material n04",0.2]
[null,null,"material n05",0.25]
[null,null,"material n06",0.3]
[null,null,"material n07",0.35]
[null,null,"material n08",0.4]
[null,null,"material n09",0.45]
[null,null,"material n10",0.5]
[null,null,"material n11",0.55000000000000004]
[null,null,"material n12",0.6]
[null,null,"material n13",0.65]
[null,null,"material n14",0.7]
[null,null,"material n15",0.75]
[null,null,"material n16",0.8]
[null,null,"material n17",0.85]
[null,null,"material n18",0.9]
[null,null,"material n19",0.95]
[null,null,"material n20",1]
[null,null,"Otro","-"]
[]
[]
[]
[104,{"$f":"\"Lista  \"  &A2575& \"  \"& LOOKUP(A2575,'entrada datos Edificación'!$D$3:$D$172,'entrada datos Edificación'!$H$3:$H$172)","v":"Lista  104  paneles de lana mineral"},"Sin materiall reciclado ",0]
[null,null,"Ultima \"+\" - ARMSTRONG ",0.5]
[null,null,"Ultima + dB - ARMSTRONG",0.64]
[null,null,"Perla-ARMSTRONG",0.5]
[null,null,"Perla dB-ARMSTRONG",0.64]
[null,null,"Perla OP 0.95- ARMSTRONG",0.52]
[null,null,"material n06",0.3]
[null,null,"material n07",0.35]
[null,null,"material n08",0.4]
[null,null,"material n09",0.45]
[null,null,"material n10",0.5]
[null,null,"material n11",0.55000000000000004]
[null,null,"material n12",0.6]
[null,null,"material n13",0.65]
[null,null,"material n14",0.7]
[null,null,"material n15",0.75]
[null,null,"material n16",0.8]
[null,null,"material n17",0.85]
[null,null,"material n18",0.9]
[null,null,"material n19",0.95]
[null,null,"material n20",1]
[null,null,"Otro","-"]
[]
[]
[]
[105,{"$f":"\"Lista  \"  &A2600& \"  \"& LOOKUP(A2600,'entrada datos Edificación'!$D$3:$D$172,'entrada datos Edificación'!$H$3:$H$172)","v":"Lista  105  enlucido de yeso"},"Sin materiall reciclado ",0]
[null,null,"material n01",0.05]
[null,null,"material n02",0.1]
[null,null,"material n03",0.15]
[null,null,"material n04",0.2]
[null,null,"material n05",0.25]
[null,null,"material n06",0.3]
[null,null,"material n07",0.35]
[null,null,"material n08",0.4]
[null,null,"material n09",0.45]
[null,null,"material n10",0.5]
[null,null,"material n11",0.55000000000000004]
[null,null,"material n12",0.6]
[null,null,"material n13",0.65]
[null,null,"material n14",0.7]
[null,null,"material n15",0.75]
[null,null,"material n16",0.8]
[null,null,"material n17",0.85]
[null,null,"material n18",0.9]
[null,null,"material n19",0.95]
[null,null,"material n20",1]
[null,null,"Otro","-"]
[]
[]
[]
[106,{"$f":"\"Lista  \"  &A2625& \"  \"& LOOKUP(A2625,'entrada datos Edificación'!$D$3:$D$172,'entrada datos Edificación'!$H$3:$H$172)","v":"Lista  106  redes"},"Sin materiall reciclado ",0]
[null,null,"material n01",0.05]
[null,null,"material n02",0.1]
[null,null,"material n03",0.15]
[null,null,"material n04",0.2]
[null,null,"material n05",0.25]
[null,null,"material n06",0.3]
[null,null,"material n07",0.35]
[null,null,"material n08",0.4]
[null,null,"material n09",0.45]
[null,null,"material n10",0.5]
[null,null,"material n11",0.55000000000000004]
[null,null,"material n12",0.6]
[null,null,"material n13",0.65]
[null,null,"material n14",0.7]
[null,null,"material n15",0.75]
[null,null,"material n16",0.8]
[null,null,"material n17",0.85]
[null,null,"material n18",0.9]
[null,null,"material n19",0.95]
[null,null,"material n20",1]
[null,null,"Otro","-"]
[]
[]
[]
[107,{"$f":"\"Lista  \"  &A2650& \"  \"& LOOKUP(A2650,'entrada datos Edificación'!$D$3:$D$172,'entrada datos Edificación'!$H$3:$H$172)","v":"Lista  107  protección y control"},"Sin materiall reciclado ",0]
[null,null,"material n01",0.05]
[null,null,"material n02",0.1]
[null,null,"material n03",0.15]
[null,null,"material n04",0.2]
[null,null,"material n05",0.25]
[null,null,"material n06",0.3]
[null,null,"material n07",0.35]
[null,null,"material n08",0.4]
[null,null,"material n09",0.45]
[null,null,"material n10",0.5]
[null,null,"material n11",0.55000000000000004]
[null,null,"material n12",0.6]
[null,null,"material n13",0.65]
[null,null,"material n14",0.7]
[null,null,"material n15",0.75]
[null,null,"material n16",0.8]
[null,null,"material n17",0.85]
[null,null,"material n18",0.9]
[null,null,"material n19",0.95]
[null,null,"material n20",1]
[null,null,"Otro","-"]
[]
[]
[]
[108,{"$f":"\"Lista  \"  &A2675& \"  \"& LOOKUP(A2675,'entrada datos Edificación'!$D$3:$D$172,'entrada datos Edificación'!$H$3:$H$172)","v":"Lista  108  domotica"},"Sin materiall reciclado ",0]
[null,null,"material n01",0.05]
[null,null,"material n02",0.1]
[null,null,"material n03",0.15]
[null,null,"material n04",0.2]
[null,null,"material n05",0.25]
[null,null,"material n06",0.3]
[null,null,"material n07",0.35]
[null,null,"material n08",0.4]
[null,null,"material n09",0.45]
[null,null,"material n10",0.5]
[null,null,"material n11",0.55000000000000004]
[null,null,"material n12",0.6]
[null,null,"material n13",0.65]
[null,null,"material n14",0.7]
[null,null,"material n15",0.75]
[null,null,"material n16",0.8]
[null,null,"material n17",0.85]
[null,null,"material n18",0.9]
[null,null,"material n19",0.95]
[null,null,"material n20",1]
[null,null,"Otro","-"]
[]
[]
[]
[109,{"$f":"\"Lista  \"  &A2700& \"  \"& LOOKUP(A2700,'entrada datos Edificación'!$D$3:$D$172,'entrada datos Edificación'!$H$3:$H$172)","v":"Lista  109  alumbrado"},"Sin materiall reciclado ",0]
[null,null,"SUPER E1 1/4W LED840 700MA SP WH-Zumtobel",0.05]
[null,null,"LFE E MINI LED1400-840 M625Q LDE KA SER-Zumtobel",7.5999999999999998E-2]
[null,null,"ML5 EM 1/40W TC-L M600 LDE TBL-Zumtobel",0.15279999999999999]
[null,null,"ML5 EM 1/28W T16 M600 TBL-Zumtobel",0.16159999999999999]
[null,null,"MIREL-O NIV LED2400-840 M625L EVG KA-Zumtobel",6.0499999999999998E-2]
[null,null,"MIREL-O NIV LED2200-830 M625Q LDO KA-Zumtobel",6.0699999999999997E-2]
[null,null,"MIREL-L A LED3600-830 L1200 LDO-Zumtobel",8.6599999999999996E-2]
[null,null,"MIREL-L A LED2800-830 L1200 EVG-Zumtobel",8.5000000000000006E-2]
[null,null,"LFE A LED4200-830-60 Q LDE SER-Zumtobel",6.2899999999999998E-2]
[null,null,"OPURA-S A L 38/64W LED830 SC WH SR2-Zumtobel",0.1366]
[null,null,"SFERA-S 33/33W LED840 SC WH SR2-Zumtobel",0.1147]
[null,null,"material n12",0.6]
[null,null,"material n13",0.65]
[null,null,"material n14",0.7]
[null,null,"material n15",0.75]
[null,null,"material n16",0.8]
[null,null,"material n17",0.85]
[null,null,"material n18",0.9]
[null,null,"material n19",0.95]
[null,null,"material n20",1]
[null,null,"Otro","-"]
[]
[]
[]
[110,{"$f":"\"Lista  \"  &A2725& \"  \"& LOOKUP(A2725,'entrada datos Edificación'!$D$3:$D$172,'entrada datos Edificación'!$H$3:$H$172)","v":"Lista  110  otros"},"Sin materiall reciclado ",0]
[null,null,"material n01",0.05]
[null,null,"material n02",0.1]
[null,null,"material n03",0.15]
[null,null,"material n04",0.2]
[null,null,"material n05",0.25]
[null,null,"material n06",0.3]
[null,null,"material n07",0.35]
[null,null,"material n08",0.4]
[null,null,"material n09",0.45]
[null,null,"material n10",0.5]
[null,null,"material n11",0.55000000000000004]
[null,null,"material n12",0.6]
[null,null,"material n13",0.65]
[null,null,"material n14",0.7]
[null,null,"material n15",0.75]
[null,null,"material n16",0.8]
[null,null,"material n17",0.85]
[null,null,"material n18",0.9]
[null,null,"material n19",0.95]
[null,null,"material n20",1]
[null,null,"Otro","-"]
[]
[]
[]
[111,{"$f":"\"Lista  \"  &A2750& \"  \"& LOOKUP(A2750,'entrada datos Edificación'!$D$3:$D$172,'entrada datos Edificación'!$H$3:$H$172)","v":"Lista  111  bombas"},"Sin materiall reciclado ",0]
[null,null,"material n01",0.05]
[null,null,"material n02",0.1]
[null,null,"material n03",0.15]
[null,null,"material n04",0.2]
[null,null,"material n05",0.25]
[null,null,"material n06",0.3]
[null,null,"material n07",0.35]
[null,null,"material n08",0.4]
[null,null,"material n09",0.45]
[null,null,"material n10",0.5]
[null,null,"material n11",0.55000000000000004]
[null,null,"material n12",0.6]
[null,null,"material n13",0.65]
[null,null,"material n14",0.7]
[null,null,"material n15",0.75]
[null,null,"material n16",0.8]
[null,null,"material n17",0.85]
[null,null,"material n18",0.9]
[null,null,"material n19",0.95]
[null,null,"material n20",1]
[null,null,"Otro","-"]
[]
[]
[]
[112,{"$f":"\"Lista  \"  &A2775& \"  \"& LOOKUP(A2775,'entrada datos Edificación'!$D$3:$D$172,'entrada datos Edificación'!$H$3:$H$172)","v":"Lista  112  fontanería"},"Sin materiall reciclado ",0]
[null,null,"material n01",0.05]
[null,null,"material n02",0.1]
[null,null,"material n03",0.15]
[null,null,"material n04",0.2]
[null,null,"material n05",0.25]
[null,null,"material n06",0.3]
[null,null,"material n07",0.35]
[null,null,"material n08",0.4]
[null,null,"material n09",0.45]
[null,null,"material n10",0.5]
[null,null,"material n11",0.55000000000000004]
[null,null,"material n12",0.6]
[null,null,"material n13",0.65]
[null,null,"material n14",0.7]
[null,null,"material n15",0.75]
[null,null,"material n16",0.8]
[null,null,"material n17",0.85]
[null,null,"material n18",0.9]
[null,null,"material n19",0.95]
[null,null,"material n20",1]
[null,null,"Otro","-"]
[]
[]
[]
[113,{"$f":"\"Lista  \"  &A2800& \"  \"& LOOKUP(A2800,'entrada datos Edificación'!$D$3:$D$172,'entrada datos Edificación'!$H$3:$H$172)","v":"Lista  113  tuberías, valvulas y griferías"},"Sin materiall reciclado ",0]
[null,null,"material n01",0.05]
[null,null,"material n02",0.1]
[null,null,"material n03",0.15]
[null,null,"material n04",0.2]
[null,null,"material n05",0.25]
[null,null,"material n06",0.3]
[null,null,"material n07",0.35]
[null,null,"material n08",0.4]
[null,null,"material n09",0.45]
[null,null,"material n10",0.5]
[null,null,"material n11",0.55000000000000004]
[null,null,"material n12",0.6]
[null,null,"material n13",0.65]
[null,null,"material n14",0.7]
[null,null,"material n15",0.75]
[null,null,"material n16",0.8]
[null,null,"material n17",0.85]
[null,null,"material n18",0.9]
[null,null,"material n19",0.95]
[null,null,"material n20",1]
[null,null,"Otro","-"]
[]
[]
[]
[114,{"$f":"\"Lista  \"  &A2825& \"  \"& LOOKUP(A2825,'entrada datos Edificación'!$D$3:$D$172,'entrada datos Edificación'!$H$3:$H$172)","v":"Lista  114  aparatos sanitarios"},"Sin materiall reciclado ",0]
[null,null,"material n01",0.05]
[null,null,"material n02",0.1]
[null,null,"material n03",0.15]
[null,null,"material n04",0.2]
[null,null,"material n05",0.25]
[null,null,"material n06",0.3]
[null,null,"material n07",0.35]
[null,null,"material n08",0.4]
[null,null,"material n09",0.45]
[null,null,"material n10",0.5]
[null,null,"material n11",0.55000000000000004]
[null,null,"material n12",0.6]
[null,null,"material n13",0.65]
[null,null,"material n14",0.7]
[null,null,"material n15",0.75]
[null,null,"material n16",0.8]
[null,null,"material n17",0.85]
[null,null,"material n18",0.9]
[null,null,"material n19",0.95]
[null,null,"material n20",1]
[null,null,"Otro","-"]
[]
[]
[]
[115,{"$f":"\"Lista  \"  &A2850& \"  \"& LOOKUP(A2850,'entrada datos Edificación'!$D$3:$D$172,'entrada datos Edificación'!$H$3:$H$172)","v":"Lista  115  otros"},"Sin materiall reciclado ",0]
[null,null,"material n01",0.05]
[null,null,"material n02",0.1]
[null,null,"material n03",0.15]
[null,null,"material n04",0.2]
[null,null,"material n05",0.25]
[null,null,"material n06",0.3]
[null,null,"material n07",0.35]
[null,null,"material n08",0.4]
[null,null,"material n09",0.45]
[null,null,"material n10",0.5]
[null,null,"material n11",0.55000000000000004]
[null,null,"material n12",0.6]
[null,null,"material n13",0.65]
[null,null,"material n14",0.7]
[null,null,"material n15",0.75]
[null,null,"material n16",0.8]
[null,null,"material n17",0.85]
[null,null,"material n18",0.9]
[null,null,"material n19",0.95]
[null,null,"material n20",1]
[null,null,"Otro","-"]
[]
[]
[]
[116,{"$f":"\"Lista  \"  &A2875& \"  \"& LOOKUP(A2875,'entrada datos Edificación'!$D$3:$D$172,'entrada datos Edificación'!$H$3:$H$172)","v":"Lista  116  calefacción"},"Sin materiall reciclado ",0]
[null,null,"material n01",0.05]
[null,null,"material n02",0.1]
[null,null,"material n03",0.15]
[null,null,"material n04",0.2]
[null,null,"material n05",0.25]
[null,null,"material n06",0.3]
[null,null,"material n07",0.35]
[null,null,"material n08",0.4]
[null,null,"material n09",0.45]
[null,null,"material n10",0.5]
[null,null,"material n11",0.55000000000000004]
[null,null,"material n12",0.6]
[null,null,"material n13",0.65]
[null,null,"material n14",0.7]
[null,null,"material n15",0.75]
[null,null,"material n16",0.8]
[null,null,"material n17",0.85]
[null,null,"material n18",0.9]
[null,null,"material n19",0.95]
[null,null,"material n20",1]
[null,null,"Otro","-"]
[]
[]
[]
[117,{"$f":"\"Lista  \"  &A2900& \"  \"& LOOKUP(A2900,'entrada datos Edificación'!$D$3:$D$172,'entrada datos Edificación'!$H$3:$H$172)","v":"Lista  117  aire acondicionado"},"Sin materiall reciclado ",0]
[null,null,"material n01",0.05]
[null,null,"material n02",0.1]
[null,null,"material n03",0.15]
[null,null,"material n04",0.2]
[null,null,"material n05",0.25]
[null,null,"material n06",0.3]
[null,null,"material n07",0.35]
[null,null,"material n08",0.4]
[null,null,"material n09",0.45]
[null,null,"material n10",0.5]
[null,null,"material n11",0.55000000000000004]
[null,null,"material n12",0.6]
[null,null,"material n13",0.65]
[null,null,"material n14",0.7]
[null,null,"material n15",0.75]
[null,null,"material n16",0.8]
[null,null,"material n17",0.85]
[null,null,"material n18",0.9]
[null,null,"material n19",0.95]
[null,null,"material n20",1]
[null,null,"Otro","-"]
[]
[]
[]
[118,{"$f":"\"Lista  \"  &A2925& \"  \"& LOOKUP(A2925,'entrada datos Edificación'!$D$3:$D$172,'entrada datos Edificación'!$H$3:$H$172)","v":"Lista  118  tuberías y valvulas"},"Sin materiall reciclado ",0]
[null,null,"material n01",0.05]
[null,null,"material n02",0.1]
[null,null,"material n03",0.15]
[null,null,"material n04",0.2]
[null,null,"material n05",0.25]
[null,null,"material n06",0.3]
[null,null,"material n07",0.35]
[null,null,"material n08",0.4]
[null,null,"material n09",0.45]
[null,null,"material n10",0.5]
[null,null,"material n11",0.55000000000000004]
[null,null,"material n12",0.6]
[null,null,"material n13",0.65]
[null,null,"material n14",0.7]
[null,null,"material n15",0.75]
[null,null,"material n16",0.8]
[null,null,"material n17",0.85]
[null,null,"material n18",0.9]
[null,null,"material n19",0.95]
[null,null,"material n20",1]
[null,null,"Otro","-"]
[]
[]
[]
[119,{"$f":"\"Lista  \"  &A2950& \"  \"& LOOKUP(A2950,'entrada datos Edificación'!$D$3:$D$172,'entrada datos Edificación'!$H$3:$H$172)","v":"Lista  119  otros"},"Sin materiall reciclado ",0]
[null,null,"material n01",0.05]
[null,null,"material n02",0.1]
[null,null,"material n03",0.15]
[null,null,"material n04",0.2]
[null,null,"material n05",0.25]
[null,null,"material n06",0.3]
[null,null,"material n07",0.35]
[null,null,"material n08",0.4]
[null,null,"material n09",0.45]
[null,null,"material n10",0.5]
[null,null,"material n11",0.55000000000000004]
[null,null,"material n12",0.6]
[null,null,"material n13",0.65]
[null,null,"material n14",0.7]
[null,null,"material n15",0.75]
[null,null,"material n16",0.8]
[null,null,"material n17",0.85]
[null,null,"material n18",0.9]
[null,null,"material n19",0.95]
[null,null,"material n20",1]
[null,null,"Otro","-"]
[]
[]
[]
[120,{"$f":"\"Lista  \"  &A2975& \"  \"& LOOKUP(A2975,'entrada datos Edificación'!$D$3:$D$172,'entrada datos Edificación'!$H$3:$H$172)","v":"Lista  120  bajantes"},"Sin materiall reciclado ",0]
[null,null,"material n01",0.05]
[null,null,"material n02",0.1]
[null,null,"material n03",0.15]
[null,null,"material n04",0.2]
[null,null,"material n05",0.25]
[null,null,"material n06",0.3]
[null,null,"material n07",0.35]
[null,null,"material n08",0.4]
[null,null,"material n09",0.45]
[null,null,"material n10",0.5]
[null,null,"material n11",0.55000000000000004]
[null,null,"material n12",0.6]
[null,null,"material n13",0.65]
[null,null,"material n14",0.7]
[null,null,"material n15",0.75]
[null,null,"material n16",0.8]
[null,null,"material n17",0.85]
[null,null,"material n18",0.9]
[null,null,"material n19",0.95]
[null,null,"material n20",1]
[null,null,"Otro","-"]
[]
[]
[]
[121,{"$f":"\"Lista  \"  &A3000& \"  \"& LOOKUP(A3000,'entrada datos Edificación'!$D$3:$D$172,'entrada datos Edificación'!$H$3:$H$172)","v":"Lista  121  depuración"},"Sin materiall reciclado ",0]
[null,null,"material n01",0.05]
[null,null,"material n02",0.1]
[null,null,"material n03",0.15]
[null,null,"material n04",0.2]
[null,null,"material n05",0.25]
[null,null,"material n06",0.3]
[null,null,"material n07",0.35]
[null,null,"material n08",0.4]
[null,null,"material n09",0.45]
[null,null,"material n10",0.5]
[null,null,"material n11",0.55000000000000004]
[null,null,"material n12",0.6]
[null,null,"material n13",0.65]
[null,null,"material n14",0.7]
[null,null,"material n15",0.75]
[null,null,"material n16",0.8]
[null,null,"material n17",0.85]
[null,null,"material n18",0.9]
[null,null,"material n19",0.95]
[null,null,"material n20",1]
[null,null,"Otro","-"]
[]
[]
[]
[122,{"$f":"\"Lista  \"  &A3025& \"  \"& LOOKUP(A3025,'entrada datos Edificación'!$D$3:$D$172,'entrada datos Edificación'!$H$3:$H$172)","v":"Lista  122  humos y gases"},"Sin materiall reciclado ",0]
[null,null,"material n01",0.05]
[null,null,"material n02",0.1]
[null,null,"material n03",0.15]
[null,null,"material n04",0.2]
[null,null,"material n05",0.25]
[null,null,"material n06",0.3]
[null,null,"material n07",0.35]
[null,null,"material n08",0.4]
[null,null,"material n09",0.45]
[null,null,"material n10",0.5]
[null,null,"material n11",0.55000000000000004]
[null,null,"material n12",0.6]
[null,null,"material n13",0.65]
[null,null,"material n14",0.7]
[null,null,"material n15",0.75]
[null,null,"material n16",0.8]
[null,null,"material n17",0.85]
[null,null,"material n18",0.9]
[null,null,"material n19",0.95]
[null,null,"material n20",1]
[null,null,"Otro","-"]
[]
[]
[]
[123,{"$f":"\"Lista  \"  &A3050& \"  \"& LOOKUP(A3050,'entrada datos Edificación'!$D$3:$D$172,'entrada datos Edificación'!$H$3:$H$172)","v":"Lista  123  saneamiento"},"Sin materiall reciclado ",0]
[null,null,"material n01",0.05]
[null,null,"material n02",0.1]
[null,null,"material n03",0.15]
[null,null,"material n04",0.2]
[null,null,"material n05",0.25]
[null,null,"material n06",0.3]
[null,null,"material n07",0.35]
[null,null,"material n08",0.4]
[null,null,"material n09",0.45]
[null,null,"material n10",0.5]
[null,null,"material n11",0.55000000000000004]
[null,null,"material n12",0.6]
[null,null,"material n13",0.65]
[null,null,"material n14",0.7]
[null,null,"material n15",0.75]
[null,null,"material n16",0.8]
[null,null,"material n17",0.85]
[null,null,"material n18",0.9]
[null,null,"material n19",0.95]
[null,null,"material n20",1]
[null,null,"Otro","-"]
[]
[]
[]
[124,{"$f":"\"Lista  \"  &A3075& \"  \"& LOOKUP(A3075,'entrada datos Edificación'!$D$3:$D$172,'entrada datos Edificación'!$H$3:$H$172)","v":"Lista  124  ventilación"},"Sin materiall reciclado ",0]
[null,null,"material n01",0.05]
[null,null,"material n02",0.1]
[null,null,"material n03",0.15]
[null,null,"material n04",0.2]
[null,null,"material n05",0.25]
[null,null,"material n06",0.3]
[null,null,"material n07",0.35]
[null,null,"material n08",0.4]
[null,null,"material n09",0.45]
[null,null,"material n10",0.5]
[null,null,"material n11",0.55000000000000004]
[null,null,"material n12",0.6]
[null,null,"material n13",0.65]
[null,null,"material n14",0.7]
[null,null,"material n15",0.75]
[null,null,"material n16",0.8]
[null,null,"material n17",0.85]
[null,null,"material n18",0.9]
[null,null,"material n19",0.95]
[null,null,"material n20",1]
[null,null,"Otro","-"]
[]
[]
[]
[125,{"$f":"\"Lista  \"  &A3100& \"  \"& LOOKUP(A3100,'entrada datos Edificación'!$D$3:$D$172,'entrada datos Edificación'!$H$3:$H$172)","v":"Lista  125  otros"},"Sin materiall reciclado ",0]
[null,null,"material n01",0.05]
[null,null,"material n02",0.1]
[null,null,"material n03",0.15]
[null,null,"material n04",0.2]
[null,null,"material n05",0.25]
[null,null,"material n06",0.3]
[null,null,"material n07",0.35]
[null,null,"material n08",0.4]
[null,null,"material n09",0.45]
[null,null,"material n10",0.5]
[null,null,"material n11",0.55000000000000004]
[null,null,"material n12",0.6]
[null,null,"material n13",0.65]
[null,null,"material n14",0.7]
[null,null,"material n15",0.75]
[null,null,"material n16",0.8]
[null,null,"material n17",0.85]
[null,null,"material n18",0.9]
[null,null,"material n19",0.95]
[null,null,"material n20",1]
[null,null,"Otro","-"]
[]
[]
[]
[126,{"$f":"\"Lista  \"  &A3125& \"  \"& LOOKUP(A3125,'entrada datos Edificación'!$D$3:$D$172,'entrada datos Edificación'!$H$3:$H$172)","v":"Lista  126  paneles"},"Sin materiall reciclado ",0]
[null,null,"material n01",0.05]
[null,null,"material n02",0.1]
[null,null,"material n03",0.15]
[null,null,"material n04",0.2]
[null,null,"material n05",0.25]
[null,null,"material n06",0.3]
[null,null,"material n07",0.35]
[null,null,"material n08",0.4]
[null,null,"material n09",0.45]
[null,null,"material n10",0.5]
[null,null,"material n11",0.55000000000000004]
[null,null,"material n12",0.6]
[null,null,"material n13",0.65]
[null,null,"material n14",0.7]
[null,null,"material n15",0.75]
[null,null,"material n16",0.8]
[null,null,"material n17",0.85]
[null,null,"material n18",0.9]
[null,null,"material n19",0.95]
[null,null,"material n20",1]
[null,null,"Otro","-"]
[]
[]
[]
[127,{"$f":"\"Lista  \"  &A3150& \"  \"& LOOKUP(A3150,'entrada datos Edificación'!$D$3:$D$172,'entrada datos Edificación'!$H$3:$H$172)","v":"Lista  127  acumuladores"},"Sin materiall reciclado ",0]
[null,null,"material n01",0.05]
[null,null,"material n02",0.1]
[null,null,"material n03",0.15]
[null,null,"material n04",0.2]
[null,null,"material n05",0.25]
[null,null,"material n06",0.3]
[null,null,"material n07",0.35]
[null,null,"material n08",0.4]
[null,null,"material n09",0.45]
[null,null,"material n10",0.5]
[null,null,"material n11",0.55000000000000004]
[null,null,"material n12",0.6]
[null,null,"material n13",0.65]
[null,null,"material n14",0.7]
[null,null,"material n15",0.75]
[null,null,"material n16",0.8]
[null,null,"material n17",0.85]
[null,null,"material n18",0.9]
[null,null,"material n19",0.95]
[null,null,"material n20",1]
[null,null,"Otro","-"]
[]
[]
[]
[128,{"$f":"\"Lista  \"  &A3175& \"  \"& LOOKUP(A3175,'entrada datos Edificación'!$D$3:$D$172,'entrada datos Edificación'!$H$3:$H$172)","v":"Lista  128  bombas, valvulas y tuberias"},"Sin materiall reciclado ",0]
[null,null,"material n01",0.05]
[null,null,"material n02",0.1]
[null,null,"material n03",0.15]
[null,null,"material n04",0.2]
[null,null,"material n05",0.25]
[null,null,"material n06",0.3]
[null,null,"material n07",0.35]
[null,null,"material n08",0.4]
[null,null,"material n09",0.45]
[null,null,"material n10",0.5]
[null,null,"material n11",0.55000000000000004]
[null,null,"material n12",0.6]
[null,null,"material n13",0.65]
[null,null,"material n14",0.7]
[null,null,"material n15",0.75]
[null,null,"material n16",0.8]
[null,null,"material n17",0.85]
[null,null,"material n18",0.9]
[null,null,"material n19",0.95]
[null,null,"material n20",1]
[null,null,"Otro","-"]
[]
[]
[]
[129,{"$f":"\"Lista  \"  &A3200& \"  \"& LOOKUP(A3200,'entrada datos Edificación'!$D$3:$D$172,'entrada datos Edificación'!$H$3:$H$172)","v":"Lista  129  red electrica"},"Sin materiall reciclado ",0]
[null,null,"material n01",0.05]
[null,null,"material n02",0.1]
[null,null,"material n03",0.15]
[null,null,"material n04",0.2]
[null,null,"material n05",0.25]
[null,null,"material n06",0.3]
[null,null,"material n07",0.35]
[null,null,"material n08",0.4]
[null,null,"material n09",0.45]
[null,null,"material n10",0.5]
[null,null,"material n11",0.55000000000000004]
[null,null,"material n12",0.6]
[null,null,"material n13",0.65]
[null,null,"material n14",0.7]
[null,null,"material n15",0.75]
[null,null,"material n16",0.8]
[null,null,"material n17",0.85]
[null,null,"material n18",0.9]
[null,null,"material n19",0.95]
[null,null,"material n20",1]
[null,null,"Otro","-"]
[]
[]
[]
[130,{"$f":"\"Lista  \"  &A3225& \"  \"& LOOKUP(A3225,'entrada datos Edificación'!$D$3:$D$172,'entrada datos Edificación'!$H$3:$H$172)","v":"Lista  130  baterias"},"Sin materiall reciclado ",0]
[null,null,"material n01",0.05]
[null,null,"material n02",0.1]
[null,null,"material n03",0.15]
[null,null,"material n04",0.2]
[null,null,"material n05",0.25]
[null,null,"material n06",0.3]
[null,null,"material n07",0.35]
[null,null,"material n08",0.4]
[null,null,"material n09",0.45]
[null,null,"material n10",0.5]
[null,null,"material n11",0.55000000000000004]
[null,null,"material n12",0.6]
[null,null,"material n13",0.65]
[null,null,"material n14",0.7]
[null,null,"material n15",0.75]
[null,null,"material n16",0.8]
[null,null,"material n17",0.85]
[null,null,"material n18",0.9]
[null,null,"material n19",0.95]
[null,null,"material n20",1]
[null,null,"Otro","-"]
[]
[]
[]
[131,{"$f":"\"Lista  \"  &A3250& \"  \"& LOOKUP(A3250,'entrada datos Edificación'!$D$3:$D$172,'entrada datos Edificación'!$H$3:$H$172)","v":"Lista  131  otros"},"Sin materiall reciclado ",0]
[null,null,"material n01",0.05]
[null,null,"material n02",0.1]
[null,null,"material n03",0.15]
[null,null,"material n04",0.2]
[null,null,"material n05",0.25]
[null,null,"material n06",0.3]
[null,null,"material n07",0.35]
[null,null,"material n08",0.4]
[null,null,"material n09",0.45]
[null,null,"material n10",0.5]
[null,null,"material n11",0.55000000000000004]
[null,null,"material n12",0.6]
[null,null,"material n13",0.65]
[null,null,"material n14",0.7]
[null,null,"material n15",0.75]
[null,null,"material n16",0.8]
[null,null,"material n17",0.85]
[null,null,"material n18",0.9]
[null,null,"material n19",0.95]
[null,null,"material n20",1]
[null,null,"Otro","-"]
[]
[]
[]
[132,{"$f":"\"Lista  \"  &A3275& \"  \"& LOOKUP(A3275,'entrada datos Urbanizacion'!$D$3:$D$89,'entrada datos Urbanizacion'!$H$3:$H$89)","v":"Lista  132  drenaje de grava"},"Sin materiall reciclado ",0,null,"URBANIZACIÖN"]
[null,null,"material n01",0.05]
[null,null,"material n02",0.1]
[null,null,"material n03",0.15]
[null,null,"material n04",0.2]
[null,null,"material n05",0.25]
[null,null,"material n06",0.3]
[null,null,"material n07",0.35]
[null,null,"material n08",0.4]
[null,null,"material n09",0.45]
[null,null,"material n10",0.5]
[null,null,"material n11",0.55000000000000004]
[null,null,"material n12",0.6]
[null,null,"material n13",0.65]
[null,null,"material n14",0.7]
[null,null,"material n15",0.75]
[null,null,"material n16",0.8]
[null,null,"material n17",0.85]
[null,null,"material n18",0.9]
[null,null,"material n19",0.95]
[null,null,"material n20",1]
[null,null,"Otro","-"]
[]
[]
[]
[133,{"$f":"\"Lista  \"  &A3300& \"  \"& LOOKUP(A3300,'entrada datos Urbanizacion'!$D$3:$D$89,'entrada datos Urbanizacion'!$H$3:$H$89)","v":"Lista  133  material de explanadas"},"Sin materiall reciclado ",0]
[null,null,"material n01",0.05]
[null,null,"material n02",0.1]
[null,null,"material n03",0.15]
[null,null,"material n04",0.2]
[null,null,"material n05",0.25]
[null,null,"material n06",0.3]
[null,null,"material n07",0.35]
[null,null,"material n08",0.4]
[null,null,"material n09",0.45]
[null,null,"material n10",0.5]
[null,null,"material n11",0.55000000000000004]
[null,null,"material n12",0.6]
[null,null,"material n13",0.65]
[null,null,"material n14",0.7]
[null,null,"material n15",0.75]
[null,null,"material n16",0.8]
[null,null,"material n17",0.85]
[null,null,"material n18",0.9]
[null,null,"material n19",0.95]
[null,null,"material n20",1]
[null,null,"Otro","-"]
[]
[]
[]
[134,{"$f":"\"Lista  \"  &A3325& \"  \"& LOOKUP(A3325,'entrada datos Urbanizacion'!$D$3:$D$89,'entrada datos Urbanizacion'!$H$3:$H$89)","v":"Lista  134  material de terraplenes o afines"},"Sin materiall reciclado ",0]
[null,null,"material n01",0.05]
[null,null,"material n02",0.1]
[null,null,"material n03",0.15]
[null,null,"material n04",0.2]
[null,null,"material n05",0.25]
[null,null,"material n06",0.3]
[null,null,"material n07",0.35]
[null,null,"material n08",0.4]
[null,null,"material n09",0.45]
[null,null,"material n10",0.5]
[null,null,"material n11",0.55000000000000004]
[null,null,"material n12",0.6]
[null,null,"material n13",0.65]
[null,null,"material n14",0.7]
[null,null,"material n15",0.75]
[null,null,"material n16",0.8]
[null,null,"material n17",0.85]
[null,null,"material n18",0.9]
[null,null,"material n19",0.95]
[null,null,"material n20",1]
[null,null,"Otro","-"]
[]
[]
[]
[135,{"$f":"\"Lista  \"  &A3350& \"  \"& LOOKUP(A3350,'entrada datos Urbanizacion'!$D$3:$D$89,'entrada datos Urbanizacion'!$H$3:$H$89)","v":"Lista  135  material para urbanizaciones y rellenos"},"Sin materiall reciclado ",0]
[null,null,"material n01",0.05]
[null,null,"material n02",0.1]
[null,null,"material n03",0.15]
[null,null,"material n04",0.2]
[null,null,"material n05",0.25]
[null,null,"material n06",0.3]
[null,null,"material n07",0.35]
[null,null,"material n08",0.4]
[null,null,"material n09",0.45]
[null,null,"material n10",0.5]
[null,null,"material n11",0.55000000000000004]
[null,null,"material n12",0.6]
[null,null,"material n13",0.65]
[null,null,"material n14",0.7]
[null,null,"material n15",0.75]
[null,null,"material n16",0.8]
[null,null,"material n17",0.85]
[null,null,"material n18",0.9]
[null,null,"material n19",0.95]
[null,null,"material n20",1]
[null,null,"Otro","-"]
[]
[]
[]
[136,{"$f":"\"Lista  \"  &A3375& \"  \"& LOOKUP(A3375,'entrada datos Urbanizacion'!$D$3:$D$89,'entrada datos Urbanizacion'!$H$3:$H$89)","v":"Lista  136  zanjas y pozos"},"Sin materiall reciclado ",0]
[null,null,"material n01",0.05]
[null,null,"material n02",0.1]
[null,null,"material n03",0.15]
[null,null,"material n04",0.2]
[null,null,"material n05",0.25]
[null,null,"material n06",0.3]
[null,null,"material n07",0.35]
[null,null,"material n08",0.4]
[null,null,"material n09",0.45]
[null,null,"material n10",0.5]
[null,null,"material n11",0.55000000000000004]
[null,null,"material n12",0.6]
[null,null,"material n13",0.65]
[null,null,"material n14",0.7]
[null,null,"material n15",0.75]
[null,null,"material n16",0.8]
[null,null,"material n17",0.85]
[null,null,"material n18",0.9]
[null,null,"material n19",0.95]
[null,null,"material n20",1]
[null,null,"Otro","-"]
[]
[]
[]
[137,{"$f":"\"Lista  \"  &A3400& \"  \"& LOOKUP(A3400,'entrada datos Urbanizacion'!$D$3:$D$89,'entrada datos Urbanizacion'!$H$3:$H$89)","v":"Lista  137  granular"},"Sin materiall reciclado ",0]
[null,null,"material n01",0.05]
[null,null,"material n02",0.1]
[null,null,"material n03",0.15]
[null,null,"material n04",0.2]
[null,null,"material n05",0.25]
[null,null,"material n06",0.3]
[null,null,"material n07",0.35]
[null,null,"material n08",0.4]
[null,null,"material n09",0.45]
[null,null,"material n10",0.5]
[null,null,"material n11",0.55000000000000004]
[null,null,"material n12",0.6]
[null,null,"material n13",0.65]
[null,null,"material n14",0.7]
[null,null,"material n15",0.75]
[null,null,"material n16",0.8]
[null,null,"material n17",0.85]
[null,null,"material n18",0.9]
[null,null,"material n19",0.95]
[null,null,"material n20",1]
[null,null,"Otro","-"]
[]
[]
[]
[138,{"$f":"\"Lista  \"  &A3425& \"  \"& LOOKUP(A3425,'entrada datos Urbanizacion'!$D$3:$D$89,'entrada datos Urbanizacion'!$H$3:$H$89)","v":"Lista  138  suelo-cemento"},"Sin materiall reciclado ",0]
[null,null,"material n01",0.05]
[null,null,"material n02",0.1]
[null,null,"material n03",0.15]
[null,null,"material n04",0.2]
[null,null,"material n05",0.25]
[null,null,"material n06",0.3]
[null,null,"material n07",0.35]
[null,null,"material n08",0.4]
[null,null,"material n09",0.45]
[null,null,"material n10",0.5]
[null,null,"material n11",0.55000000000000004]
[null,null,"material n12",0.6]
[null,null,"material n13",0.65]
[null,null,"material n14",0.7]
[null,null,"material n15",0.75]
[null,null,"material n16",0.8]
[null,null,"material n17",0.85]
[null,null,"material n18",0.9]
[null,null,"material n19",0.95]
[null,null,"material n20",1]
[null,null,"Otro","-"]
[]
[]
[]
[139,{"$f":"\"Lista  \"  &A3450& \"  \"& LOOKUP(A3450,'entrada datos Urbanizacion'!$D$3:$D$89,'entrada datos Urbanizacion'!$H$3:$H$89)","v":"Lista  139  grava-emulsión"},"Sin materiall reciclado ",0]
[null,null,"material n01",0.05]
[null,null,"material n02",0.1]
[null,null,"material n03",0.15]
[null,null,"material n04",0.2]
[null,null,"material n05",0.25]
[null,null,"material n06",0.3]
[null,null,"material n07",0.35]
[null,null,"material n08",0.4]
[null,null,"material n09",0.45]
[null,null,"material n10",0.5]
[null,null,"material n11",0.55000000000000004]
[null,null,"material n12",0.6]
[null,null,"material n13",0.65]
[null,null,"material n14",0.7]
[null,null,"material n15",0.75]
[null,null,"material n16",0.8]
[null,null,"material n17",0.85]
[null,null,"material n18",0.9]
[null,null,"material n19",0.95]
[null,null,"material n20",1]
[null,null,"Otro","-"]
[]
[]
[]
[140,{"$f":"\"Lista  \"  &A3475& \"  \"& LOOKUP(A3475,'entrada datos Urbanizacion'!$D$3:$D$89,'entrada datos Urbanizacion'!$H$3:$H$89)","v":"Lista  140  grava-cemento"},"Sin materiall reciclado ",0]
[null,null,"material n01",0.05]
[null,null,"material n02",0.1]
[null,null,"material n03",0.15]
[null,null,"material n04",0.2]
[null,null,"material n05",0.25]
[null,null,"material n06",0.3]
[null,null,"material n07",0.35]
[null,null,"material n08",0.4]
[null,null,"material n09",0.45]
[null,null,"material n10",0.5]
[null,null,"material n11",0.55000000000000004]
[null,null,"material n12",0.6]
[null,null,"material n13",0.65]
[null,null,"material n14",0.7]
[null,null,"material n15",0.75]
[null,null,"material n16",0.8]
[null,null,"material n17",0.85]
[null,null,"material n18",0.9]
[null,null,"material n19",0.95]
[null,null,"material n20",1]
[null,null,"Otro","-"]
[]
[]
[]
[141,{"$f":"\"Lista  \"  &A3500& \"  \"& LOOKUP(A3500,'entrada datos Urbanizacion'!$D$3:$D$89,'entrada datos Urbanizacion'!$H$3:$H$89)","v":"Lista  141  sablón"},"Sin materiall reciclado ",0]
[null,null,"material n01",0.05]
[null,null,"material n02",0.1]
[null,null,"material n03",0.15]
[null,null,"material n04",0.2]
[null,null,"material n05",0.25]
[null,null,"material n06",0.3]
[null,null,"material n07",0.35]
[null,null,"material n08",0.4]
[null,null,"material n09",0.45]
[null,null,"material n10",0.5]
[null,null,"material n11",0.55000000000000004]
[null,null,"material n12",0.6]
[null,null,"material n13",0.65]
[null,null,"material n14",0.7]
[null,null,"material n15",0.75]
[null,null,"material n16",0.8]
[null,null,"material n17",0.85]
[null,null,"material n18",0.9]
[null,null,"material n19",0.95]
[null,null,"material n20",1]
[null,null,"Otro","-"]
[]
[]
[]
[142,{"$f":"\"Lista  \"  &A3525& \"  \"& LOOKUP(A3525,'entrada datos Urbanizacion'!$D$3:$D$89,'entrada datos Urbanizacion'!$H$3:$H$89)","v":"Lista  142  grava-escoria"},"Sin materiall reciclado ",0]
[null,null,"material n01",0.05]
[null,null,"material n02",0.1]
[null,null,"material n03",0.15]
[null,null,"material n04",0.2]
[null,null,"material n05",0.25]
[null,null,"material n06",0.3]
[null,null,"material n07",0.35]
[null,null,"material n08",0.4]
[null,null,"material n09",0.45]
[null,null,"material n10",0.5]
[null,null,"material n11",0.55000000000000004]
[null,null,"material n12",0.6]
[null,null,"material n13",0.65]
[null,null,"material n14",0.7]
[null,null,"material n15",0.75]
[null,null,"material n16",0.8]
[null,null,"material n17",0.85]
[null,null,"material n18",0.9]
[null,null,"material n19",0.95]
[null,null,"material n20",1]
[null,null,"Otro","-"]
[]
[]
[]
[143,{"$f":"\"Lista  \"  &A3550& \"  \"& LOOKUP(A3550,'entrada datos Urbanizacion'!$D$3:$D$89,'entrada datos Urbanizacion'!$H$3:$H$89)","v":"Lista  143  todo-uno"},"Sin materiall reciclado ",0]
[null,null,"material n01",0.05]
[null,null,"material n02",0.1]
[null,null,"material n03",0.15]
[null,null,"material n04",0.2]
[null,null,"material n05",0.25]
[null,null,"material n06",0.3]
[null,null,"material n07",0.35]
[null,null,"material n08",0.4]
[null,null,"material n09",0.45]
[null,null,"material n10",0.5]
[null,null,"material n11",0.55000000000000004]
[null,null,"material n12",0.6]
[null,null,"material n13",0.65]
[null,null,"material n14",0.7]
[null,null,"material n15",0.75]
[null,null,"material n16",0.8]
[null,null,"material n17",0.85]
[null,null,"material n18",0.9]
[null,null,"material n19",0.95]
[null,null,"material n20",1]
[null,null,"Otro","-"]
[]
[]
[]
[144,{"$f":"\"Lista  \"  &A3575& \"  \"& LOOKUP(A3575,'entrada datos Urbanizacion'!$D$3:$D$89,'entrada datos Urbanizacion'!$H$3:$H$89)","v":"Lista  144  macadam"},"Sin materiall reciclado ",0]
[null,null,"material n01",0.05]
[null,null,"material n02",0.1]
[null,null,"material n03",0.15]
[null,null,"material n04",0.2]
[null,null,"material n05",0.25]
[null,null,"material n06",0.3]
[null,null,"material n07",0.35]
[null,null,"material n08",0.4]
[null,null,"material n09",0.45]
[null,null,"material n10",0.5]
[null,null,"material n11",0.55000000000000004]
[null,null,"material n12",0.6]
[null,null,"material n13",0.65]
[null,null,"material n14",0.7]
[null,null,"material n15",0.75]
[null,null,"material n16",0.8]
[null,null,"material n17",0.85]
[null,null,"material n18",0.9]
[null,null,"material n19",0.95]
[null,null,"material n20",1]
[null,null,"Otro","-"]
[]
[]
[]
[145,{"$f":"\"Lista  \"  &A3600& \"  \"& LOOKUP(A3600,'entrada datos Urbanizacion'!$D$3:$D$89,'entrada datos Urbanizacion'!$H$3:$H$89)","v":"Lista  145  zahorra"},"Sin materiall reciclado ",0]
[null,null,"material n01",0.05]
[null,null,"material n02",0.1]
[null,null,"material n03",0.15]
[null,null,"material n04",0.2]
[null,null,"material n05",0.25]
[null,null,"material n06",0.3]
[null,null,"material n07",0.35]
[null,null,"material n08",0.4]
[null,null,"material n09",0.45]
[null,null,"material n10",0.5]
[null,null,"material n11",0.55000000000000004]
[null,null,"material n12",0.6]
[null,null,"material n13",0.65]
[null,null,"material n14",0.7]
[null,null,"material n15",0.75]
[null,null,"material n16",0.8]
[null,null,"material n17",0.85]
[null,null,"material n18",0.9]
[null,null,"material n19",0.95]
[null,null,"material n20",1]
[null,null,"Otro","-"]
[]
[]
[]
[146,{"$f":"\"Lista  \"  &A3625& \"  \"& LOOKUP(A3625,'entrada datos Urbanizacion'!$D$3:$D$89,'entrada datos Urbanizacion'!$H$3:$H$89)","v":"Lista  146  pavimento de zahorra"},"Sin materiall reciclado ",0]
[null,null,"material n01",0.05]
[null,null,"material n02",0.1]
[null,null,"material n03",0.15]
[null,null,"material n04",0.2]
[null,null,"material n05",0.25]
[null,null,"material n06",0.3]
[null,null,"material n07",0.35]
[null,null,"material n08",0.4]
[null,null,"material n09",0.45]
[null,null,"material n10",0.5]
[null,null,"material n11",0.55000000000000004]
[null,null,"material n12",0.6]
[null,null,"material n13",0.65]
[null,null,"material n14",0.7]
[null,null,"material n15",0.75]
[null,null,"material n16",0.8]
[null,null,"material n17",0.85]
[null,null,"material n18",0.9]
[null,null,"material n19",0.95]
[null,null,"material n20",1]
[null,null,"Otro","-"]
[]
[]
[]
[147,{"$f":"\"Lista  \"  &A3650& \"  \"& LOOKUP(A3650,'entrada datos Urbanizacion'!$D$3:$D$89,'entrada datos Urbanizacion'!$H$3:$H$89)","v":"Lista  147  drenaje con tubo de PVC"},"Sin materiall reciclado ",0]
[null,null,"material n01",0.05]
[null,null,"material n02",0.1]
[null,null,"material n03",0.15]
[null,null,"material n04",0.2]
[null,null,"material n05",0.25]
[null,null,"material n06",0.3]
[null,null,"material n07",0.35]
[null,null,"material n08",0.4]
[null,null,"material n09",0.45]
[null,null,"material n10",0.5]
[null,null,"material n11",0.55000000000000004]
[null,null,"material n12",0.6]
[null,null,"material n13",0.65]
[null,null,"material n14",0.7]
[null,null,"material n15",0.75]
[null,null,"material n16",0.8]
[null,null,"material n17",0.85]
[null,null,"material n18",0.9]
[null,null,"material n19",0.95]
[null,null,"material n20",1]
[null,null,"Otro","-"]
[]
[]
[]
[148,{"$f":"\"Lista  \"  &A3675& \"  \"& LOOKUP(A3675,'entrada datos Urbanizacion'!$D$3:$D$89,'entrada datos Urbanizacion'!$H$3:$H$89)","v":"Lista  148  drenaje con tubo de hormigón"},"Sin materiall reciclado ",0]
[null,null,"material n01",0.05]
[null,null,"material n02",0.1]
[null,null,"material n03",0.15]
[null,null,"material n04",0.2]
[null,null,"material n05",0.25]
[null,null,"material n06",0.3]
[null,null,"material n07",0.35]
[null,null,"material n08",0.4]
[null,null,"material n09",0.45]
[null,null,"material n10",0.5]
[null,null,"material n11",0.55000000000000004]
[null,null,"material n12",0.6]
[null,null,"material n13",0.65]
[null,null,"material n14",0.7]
[null,null,"material n15",0.75]
[null,null,"material n16",0.8]
[null,null,"material n17",0.85]
[null,null,"material n18",0.9]
[null,null,"material n19",0.95]
[null,null,"material n20",1]
[null,null,"Otro","-"]
[]
[]
[]
[149,{"$f":"\"Lista  \"  &A3700& \"  \"& LOOKUP(A3700,'entrada datos Urbanizacion'!$D$3:$D$89,'entrada datos Urbanizacion'!$H$3:$H$89)","v":"Lista  149  geotextil"},"Sin materiall reciclado ",0]
[null,null,"material n01",0.05]
[null,null,"material n02",0.1]
[null,null,"material n03",0.15]
[null,null,"material n04",0.2]
[null,null,"material n05",0.25]
[null,null,"material n06",0.3]
[null,null,"material n07",0.35]
[null,null,"material n08",0.4]
[null,null,"material n09",0.45]
[null,null,"material n10",0.5]
[null,null,"material n11",0.55000000000000004]
[null,null,"material n12",0.6]
[null,null,"material n13",0.65]
[null,null,"material n14",0.7]
[null,null,"material n15",0.75]
[null,null,"material n16",0.8]
[null,null,"material n17",0.85]
[null,null,"material n18",0.9]
[null,null,"material n19",0.95]
[null,null,"material n20",1]
[null,null,"Otro","-"]
[]
[]
[]
[150,{"$f":"\"Lista  \"  &A3725& \"  \"& LOOKUP(A3725,'entrada datos Urbanizacion'!$D$3:$D$89,'entrada datos Urbanizacion'!$H$3:$H$89)","v":"Lista  150  hormigón magro"},"Sin materiall reciclado ",0]
[null,null,"material n01",0.05]
[null,null,"material n02",0.1]
[null,null,"material n03",0.15]
[null,null,"material n04",0.2]
[null,null,"material n05",0.25]
[null,null,"material n06",0.3]
[null,null,"material n07",0.35]
[null,null,"material n08",0.4]
[null,null,"material n09",0.45]
[null,null,"material n10",0.5]
[null,null,"material n11",0.55000000000000004]
[null,null,"material n12",0.6]
[null,null,"material n13",0.65]
[null,null,"material n14",0.7]
[null,null,"material n15",0.75]
[null,null,"material n16",0.8]
[null,null,"material n17",0.85]
[null,null,"material n18",0.9]
[null,null,"material n19",0.95]
[null,null,"material n20",1]
[null,null,"Otro","-"]
[]
[]
[]
[151,{"$f":"\"Lista  \"  &A3750& \"  \"& LOOKUP(A3750,'entrada datos Urbanizacion'!$D$3:$D$89,'entrada datos Urbanizacion'!$H$3:$H$89)","v":"Lista  151  hormigón compactado"},"Sin materiall reciclado ",0]
[null,null,"material n01",0.05]
[null,null,"material n02",0.1]
[null,null,"material n03",0.15]
[null,null,"material n04",0.2]
[null,null,"material n05",0.25]
[null,null,"material n06",0.3]
[null,null,"material n07",0.35]
[null,null,"material n08",0.4]
[null,null,"material n09",0.45]
[null,null,"material n10",0.5]
[null,null,"material n11",0.55000000000000004]
[null,null,"material n12",0.6]
[null,null,"material n13",0.65]
[null,null,"material n14",0.7]
[null,null,"material n15",0.75]
[null,null,"material n16",0.8]
[null,null,"material n17",0.85]
[null,null,"material n18",0.9]
[null,null,"material n19",0.95]
[null,null,"material n20",1]
[null,null,"Otro","-"]
[]
[]
[]
[152,{"$f":"\"Lista  \"  &A3775& \"  \"& LOOKUP(A3775,'entrada datos Urbanizacion'!$D$3:$D$89,'entrada datos Urbanizacion'!$H$3:$H$89)","v":"Lista  152  suelo-cemento"},"Sin materiall reciclado ",0]
[null,null,"material n01",0.05]
[null,null,"material n02",0.1]
[null,null,"material n03",0.15]
[null,null,"material n04",0.2]
[null,null,"material n05",0.25]
[null,null,"material n06",0.3]
[null,null,"material n07",0.35]
[null,null,"material n08",0.4]
[null,null,"material n09",0.45]
[null,null,"material n10",0.5]
[null,null,"material n11",0.55000000000000004]
[null,null,"material n12",0.6]
[null,null,"material n13",0.65]
[null,null,"material n14",0.7]
[null,null,"material n15",0.75]
[null,null,"material n16",0.8]
[null,null,"material n17",0.85]
[null,null,"material n18",0.9]
[null,null,"material n19",0.95]
[null,null,"material n20",1]
[null,null,"Otro","-"]
[]
[]
[]
[153,{"$f":"\"Lista  \"  &A3800& \"  \"& LOOKUP(A3800,'entrada datos Urbanizacion'!$D$3:$D$89,'entrada datos Urbanizacion'!$H$3:$H$89)","v":"Lista  153  grava-cemento"},"Sin materiall reciclado ",0]
[null,null,"material n01",0.05]
[null,null,"material n02",0.1]
[null,null,"material n03",0.15]
[null,null,"material n04",0.2]
[null,null,"material n05",0.25]
[null,null,"material n06",0.3]
[null,null,"material n07",0.35]
[null,null,"material n08",0.4]
[null,null,"material n09",0.45]
[null,null,"material n10",0.5]
[null,null,"material n11",0.55000000000000004]
[null,null,"material n12",0.6]
[null,null,"material n13",0.65]
[null,null,"material n14",0.7]
[null,null,"material n15",0.75]
[null,null,"material n16",0.8]
[null,null,"material n17",0.85]
[null,null,"material n18",0.9]
[null,null,"material n19",0.95]
[null,null,"material n20",1]
[null,null,"Otro","-"]
[]
[]
[]
[154,{"$f":"\"Lista  \"  &A3825& \"  \"& LOOKUP(A3825,'entrada datos Urbanizacion'!$D$3:$D$89,'entrada datos Urbanizacion'!$H$3:$H$89)","v":"Lista  154  grava-emulsión"},"Sin materiall reciclado ",0]
[null,null,"material n01",0.05]
[null,null,"material n02",0.1]
[null,null,"material n03",0.15]
[null,null,"material n04",0.2]
[null,null,"material n05",0.25]
[null,null,"material n06",0.3]
[null,null,"material n07",0.35]
[null,null,"material n08",0.4]
[null,null,"material n09",0.45]
[null,null,"material n10",0.5]
[null,null,"material n11",0.55000000000000004]
[null,null,"material n12",0.6]
[null,null,"material n13",0.65]
[null,null,"material n14",0.7]
[null,null,"material n15",0.75]
[null,null,"material n16",0.8]
[null,null,"material n17",0.85]
[null,null,"material n18",0.9]
[null,null,"material n19",0.95]
[null,null,"material n20",1]
[null,null,"Otro","-"]
[]
[]
[]
[155,{"$f":"\"Lista  \"  &A3850& \"  \"& LOOKUP(A3850,'entrada datos Urbanizacion'!$D$3:$D$89,'entrada datos Urbanizacion'!$H$3:$H$89)","v":"Lista  155  hormigones estructurales"},"Sin materiall reciclado ",0]
[null,null,"material n01",0.05]
[null,null,"material n02",0.1]
[null,null,"material n03",0.15]
[null,null,"material n04",0.2]
[null,null,"material n05",0.25]
[null,null,"material n06",0.3]
[null,null,"material n07",0.35]
[null,null,"material n08",0.4]
[null,null,"material n09",0.45]
[null,null,"material n10",0.5]
[null,null,"material n11",0.55000000000000004]
[null,null,"material n12",0.6]
[null,null,"material n13",0.65]
[null,null,"material n14",0.7]
[null,null,"material n15",0.75]
[null,null,"material n16",0.8]
[null,null,"material n17",0.85]
[null,null,"material n18",0.9]
[null,null,"material n19",0.95]
[null,null,"material n20",1]
[null,null,"Otro","-"]
[]
[]
[]
[156,{"$f":"\"Lista  \"  &A3875& \"  \"& LOOKUP(A3875,'entrada datos Urbanizacion'!$D$3:$D$89,'entrada datos Urbanizacion'!$H$3:$H$89)","v":"Lista  156  hormigones no estructurales "},"Sin materiall reciclado ",0]
[null,null,"material n01",0.05]
[null,null,"material n02",0.1]
[null,null,"material n03",0.15]
[null,null,"material n04",0.2]
[null,null,"material n05",0.25]
[null,null,"material n06",0.3]
[null,null,"material n07",0.35]
[null,null,"material n08",0.4]
[null,null,"material n09",0.45]
[null,null,"material n10",0.5]
[null,null,"material n11",0.55000000000000004]
[null,null,"material n12",0.6]
[null,null,"material n13",0.65]
[null,null,"material n14",0.7]
[null,null,"material n15",0.75]
[null,null,"material n16",0.8]
[null,null,"material n17",0.85]
[null,null,"material n18",0.9]
[null,null,"material n19",0.95]
[null,null,"material n20",1]
[null,null,"Otro","-"]
[]
[]
[]
[157,{"$f":"\"Lista  \"  &A3900& \"  \"& LOOKUP(A3900,'entrada datos Urbanizacion'!$D$3:$D$89,'entrada datos Urbanizacion'!$H$3:$H$89)","v":"Lista  157  morteros"},"Sin materiall reciclado ",0]
[null,null,"material n01",0.05]
[null,null,"material n02",0.1]
[null,null,"material n03",0.15]
[null,null,"material n04",0.2]
[null,null,"material n05",0.25]
[null,null,"material n06",0.3]
[null,null,"material n07",0.35]
[null,null,"material n08",0.4]
[null,null,"material n09",0.45]
[null,null,"material n10",0.5]
[null,null,"material n11",0.55000000000000004]
[null,null,"material n12",0.6]
[null,null,"material n13",0.65]
[null,null,"material n14",0.7]
[null,null,"material n15",0.75]
[null,null,"material n16",0.8]
[null,null,"material n17",0.85]
[null,null,"material n18",0.9]
[null,null,"material n19",0.95]
[null,null,"material n20",1]
[null,null,"Otro","-"]
[]
[]
[]
[158,{"$f":"\"Lista  \"  &A3925& \"  \"& LOOKUP(A3925,'entrada datos Urbanizacion'!$D$3:$D$89,'entrada datos Urbanizacion'!$H$3:$H$89)","v":"Lista  158  bituminosos"},"Sin materiall reciclado ",0]
[null,null,"material n01",0.05]
[null,null,"material n02",0.1]
[null,null,"material n03",0.15]
[null,null,"material n04",0.2]
[null,null,"material n05",0.25]
[null,null,"material n06",0.3]
[null,null,"material n07",0.35]
[null,null,"material n08",0.4]
[null,null,"material n09",0.45]
[null,null,"material n10",0.5]
[null,null,"material n11",0.55000000000000004]
[null,null,"material n12",0.6]
[null,null,"material n13",0.65]
[null,null,"material n14",0.7]
[null,null,"material n15",0.75]
[null,null,"material n16",0.8]
[null,null,"material n17",0.85]
[null,null,"material n18",0.9]
[null,null,"material n19",0.95]
[null,null,"material n20",1]
[null,null,"Otro","-"]
[]
[]
[]
[159,{"$f":"\"Lista  \"  &A3950& \"  \"& LOOKUP(A3950,'entrada datos Urbanizacion'!$D$3:$D$89,'entrada datos Urbanizacion'!$H$3:$H$89)","v":"Lista  159  loseta hidráulica"},"Sin materiall reciclado ",0]
[null,null,"material n01",0.05]
[null,null,"material n02",0.1]
[null,null,"material n03",0.15]
[null,null,"material n04",0.2]
[null,null,"material n05",0.25]
[null,null,"material n06",0.3]
[null,null,"material n07",0.35]
[null,null,"material n08",0.4]
[null,null,"material n09",0.45]
[null,null,"material n10",0.5]
[null,null,"material n11",0.55000000000000004]
[null,null,"material n12",0.6]
[null,null,"material n13",0.65]
[null,null,"material n14",0.7]
[null,null,"material n15",0.75]
[null,null,"material n16",0.8]
[null,null,"material n17",0.85]
[null,null,"material n18",0.9]
[null,null,"material n19",0.95]
[null,null,"material n20",1]
[null,null,"Otro","-"]
[]
[]
[]
[160,{"$f":"\"Lista  \"  &A3975& \"  \"& LOOKUP(A3975,'entrada datos Urbanizacion'!$D$3:$D$89,'entrada datos Urbanizacion'!$H$3:$H$89)","v":"Lista  160  loseta terrazo"},"Sin materiall reciclado ",0]
[null,null,"material n01",0.05]
[null,null,"material n02",0.1]
[null,null,"material n03",0.15]
[null,null,"material n04",0.2]
[null,null,"material n05",0.25]
[null,null,"material n06",0.3]
[null,null,"material n07",0.35]
[null,null,"material n08",0.4]
[null,null,"material n09",0.45]
[null,null,"material n10",0.5]
[null,null,"material n11",0.55000000000000004]
[null,null,"material n12",0.6]
[null,null,"material n13",0.65]
[null,null,"material n14",0.7]
[null,null,"material n15",0.75]
[null,null,"material n16",0.8]
[null,null,"material n17",0.85]
[null,null,"material n18",0.9]
[null,null,"material n19",0.95]
[null,null,"material n20",1]
[null,null,"Otro","-"]
[]
[]
[]
[161,{"$f":"\"Lista  \"  &A4000& \"  \"& LOOKUP(A4000,'entrada datos Urbanizacion'!$D$3:$D$89,'entrada datos Urbanizacion'!$H$3:$H$89)","v":"Lista  161  losa granito"},"Sin materiall reciclado ",0]
[null,null,"material n01",0.05]
[null,null,"material n02",0.1]
[null,null,"material n03",0.15]
[null,null,"material n04",0.2]
[null,null,"material n05",0.25]
[null,null,"material n06",0.3]
[null,null,"material n07",0.35]
[null,null,"material n08",0.4]
[null,null,"material n09",0.45]
[null,null,"material n10",0.5]
[null,null,"material n11",0.55000000000000004]
[null,null,"material n12",0.6]
[null,null,"material n13",0.65]
[null,null,"material n14",0.7]
[null,null,"material n15",0.75]
[null,null,"material n16",0.8]
[null,null,"material n17",0.85]
[null,null,"material n18",0.9]
[null,null,"material n19",0.95]
[null,null,"material n20",1]
[null,null,"Otro","-"]
[]
[]
[]
[162,{"$f":"\"Lista  \"  &A4025& \"  \"& LOOKUP(A4025,'entrada datos Urbanizacion'!$D$3:$D$89,'entrada datos Urbanizacion'!$H$3:$H$89)","v":"Lista  162  baldosa de asfalto"},"Sin materiall reciclado ",0]
[null,null,"material n01",0.05]
[null,null,"material n02",0.1]
[null,null,"material n03",0.15]
[null,null,"material n04",0.2]
[null,null,"material n05",0.25]
[null,null,"material n06",0.3]
[null,null,"material n07",0.35]
[null,null,"material n08",0.4]
[null,null,"material n09",0.45]
[null,null,"material n10",0.5]
[null,null,"material n11",0.55000000000000004]
[null,null,"material n12",0.6]
[null,null,"material n13",0.65]
[null,null,"material n14",0.7]
[null,null,"material n15",0.75]
[null,null,"material n16",0.8]
[null,null,"material n17",0.85]
[null,null,"material n18",0.9]
[null,null,"material n19",0.95]
[null,null,"material n20",1]
[null,null,"Otro","-"]
[]
[]
[]
[163,{"$f":"\"Lista  \"  &A4050& \"  \"& LOOKUP(A4050,'entrada datos Urbanizacion'!$D$3:$D$89,'entrada datos Urbanizacion'!$H$3:$H$89)","v":"Lista  163  adoquín de hormigón"},"Sin materiall reciclado ",0]
[null,null,"material n01",0.05]
[null,null,"material n02",0.1]
[null,null,"material n03",0.15]
[null,null,"material n04",0.2]
[null,null,"material n05",0.25]
[null,null,"material n06",0.3]
[null,null,"material n07",0.35]
[null,null,"material n08",0.4]
[null,null,"material n09",0.45]
[null,null,"material n10",0.5]
[null,null,"material n11",0.55000000000000004]
[null,null,"material n12",0.6]
[null,null,"material n13",0.65]
[null,null,"material n14",0.7]
[null,null,"material n15",0.75]
[null,null,"material n16",0.8]
[null,null,"material n17",0.85]
[null,null,"material n18",0.9]
[null,null,"material n19",0.95]
[null,null,"material n20",1]
[null,null,"Otro","-"]
[]
[]
[]
[164,{"$f":"\"Lista  \"  &A4075& \"  \"& LOOKUP(A4075,'entrada datos Urbanizacion'!$D$3:$D$89,'entrada datos Urbanizacion'!$H$3:$H$89)","v":"Lista  164  adoquín de granito"},"Sin materiall reciclado ",0]
[null,null,"material n01",0.05]
[null,null,"material n02",0.1]
[null,null,"material n03",0.15]
[null,null,"material n04",0.2]
[null,null,"material n05",0.25]
[null,null,"material n06",0.3]
[null,null,"material n07",0.35]
[null,null,"material n08",0.4]
[null,null,"material n09",0.45]
[null,null,"material n10",0.5]
[null,null,"material n11",0.55000000000000004]
[null,null,"material n12",0.6]
[null,null,"material n13",0.65]
[null,null,"material n14",0.7]
[null,null,"material n15",0.75]
[null,null,"material n16",0.8]
[null,null,"material n17",0.85]
[null,null,"material n18",0.9]
[null,null,"material n19",0.95]
[null,null,"material n20",1]
[null,null,"Otro","-"]
[]
[]
[]
[165,{"$f":"\"Lista  \"  &A4100& \"  \"& LOOKUP(A4100,'entrada datos Urbanizacion'!$D$3:$D$89,'entrada datos Urbanizacion'!$H$3:$H$89)","v":"Lista  165  adoquín cerámico"},"Sin materiall reciclado ",0]
[null,null,"material n01",0.05]
[null,null,"material n02",0.1]
[null,null,"material n03",0.15]
[null,null,"material n04",0.2]
[null,null,"material n05",0.25]
[null,null,"material n06",0.3]
[null,null,"material n07",0.35]
[null,null,"material n08",0.4]
[null,null,"material n09",0.45]
[null,null,"material n10",0.5]
[null,null,"material n11",0.55000000000000004]
[null,null,"material n12",0.6]
[null,null,"material n13",0.65]
[null,null,"material n14",0.7]
[null,null,"material n15",0.75]
[null,null,"material n16",0.8]
[null,null,"material n17",0.85]
[null,null,"material n18",0.9]
[null,null,"material n19",0.95]
[null,null,"material n20",1]
[null,null,"Otro","-"]
[]
[]
[]
[166,{"$f":"\"Lista  \"  &A4125& \"  \"& LOOKUP(A4125,'entrada datos Urbanizacion'!$D$3:$D$89,'entrada datos Urbanizacion'!$H$3:$H$89)","v":"Lista  166  baldosa Hormigón pref"},"Sin materiall reciclado ",0]
[null,null,"material n01",0.05]
[null,null,"material n02",0.1]
[null,null,"material n03",0.15]
[null,null,"material n04",0.2]
[null,null,"material n05",0.25]
[null,null,"material n06",0.3]
[null,null,"material n07",0.35]
[null,null,"material n08",0.4]
[null,null,"material n09",0.45]
[null,null,"material n10",0.5]
[null,null,"material n11",0.55000000000000004]
[null,null,"material n12",0.6]
[null,null,"material n13",0.65]
[null,null,"material n14",0.7]
[null,null,"material n15",0.75]
[null,null,"material n16",0.8]
[null,null,"material n17",0.85]
[null,null,"material n18",0.9]
[null,null,"material n19",0.95]
[null,null,"material n20",1]
[null,null,"Otro","-"]
[]
[]
[]
[167,{"$f":"\"Lista  \"  &A4150& \"  \"& LOOKUP(A4150,'entrada datos Urbanizacion'!$D$3:$D$89,'entrada datos Urbanizacion'!$H$3:$H$89)","v":"Lista  167  pavimento sintético"},"Sin materiall reciclado ",0]
[null,null,"ECOsilenc",0.2]
[null,null,"GRANZA DE CAUCHO-GMN",1]
[null,null,"LOSETAS FLEXIBLES - ZICLA",1]
[null,null,"material n04",0.2]
[null,null,"material n05",0.25]
[null,null,"material n06",0.3]
[null,null,"material n07",0.35]
[null,null,"material n08",0.4]
[null,null,"material n09",0.45]
[null,null,"material n10",0.5]
[null,null,"material n11",0.55000000000000004]
[null,null,"material n12",0.6]
[null,null,"material n13",0.65]
[null,null,"material n14",0.7]
[null,null,"material n15",0.75]
[null,null,"material n16",0.8]
[null,null,"material n17",0.85]
[null,null,"material n18",0.9]
[null,null,"material n19",0.95]
[null,null,"material n20",1]
[null,null,"Otro","-"]
[]
[]
[]
[168,{"$f":"\"Lista  \"  &A4175& \"  \"& LOOKUP(A4175,'entrada datos Urbanizacion'!$D$3:$D$89,'entrada datos Urbanizacion'!$H$3:$H$89)","v":"Lista  168  pavimento continuo slurry"},"Sin materiall reciclado ",0]
[null,null,"material n01",0.05]
[null,null,"material n02",0.1]
[null,null,"material n03",0.15]
[null,null,"material n04",0.2]
[null,null,"material n05",0.25]
[null,null,"material n06",0.3]
[null,null,"material n07",0.35]
[null,null,"material n08",0.4]
[null,null,"material n09",0.45]
[null,null,"material n10",0.5]
[null,null,"material n11",0.55000000000000004]
[null,null,"material n12",0.6]
[null,null,"material n13",0.65]
[null,null,"material n14",0.7]
[null,null,"material n15",0.75]
[null,null,"material n16",0.8]
[null,null,"material n17",0.85]
[null,null,"material n18",0.9]
[null,null,"material n19",0.95]
[null,null,"material n20",1]
[null,null,"Otro","-"]
[]
[]
[]
[169,{"$f":"\"Lista  \"  &A4200& \"  \"& LOOKUP(A4200,'entrada datos Urbanizacion'!$D$3:$D$89,'entrada datos Urbanizacion'!$H$3:$H$89)","v":"Lista  169  hormigón impreso"},"Sin materiall reciclado ",0]
[null,null,"material n01",0.05]
[null,null,"material n02",0.1]
[null,null,"material n03",0.15]
[null,null,"material n04",0.2]
[null,null,"material n05",0.25]
[null,null,"material n06",0.3]
[null,null,"material n07",0.35]
[null,null,"material n08",0.4]
[null,null,"material n09",0.45]
[null,null,"material n10",0.5]
[null,null,"material n11",0.55000000000000004]
[null,null,"material n12",0.6]
[null,null,"material n13",0.65]
[null,null,"material n14",0.7]
[null,null,"material n15",0.75]
[null,null,"material n16",0.8]
[null,null,"material n17",0.85]
[null,null,"material n18",0.9]
[null,null,"material n19",0.95]
[null,null,"material n20",1]
[null,null,"Otro","-"]
[]
[]
[]
[170,{"$f":"\"Lista  \"  &A4225& \"  \"& LOOKUP(A4225,'entrada datos Urbanizacion'!$D$3:$D$89,'entrada datos Urbanizacion'!$H$3:$H$89)","v":"Lista  170  pavimento de garbancillo"},"Sin materiall reciclado ",0]
[null,null,"material n01",0.05]
[null,null,"material n02",0.1]
[null,null,"material n03",0.15]
[null,null,"material n04",0.2]
[null,null,"material n05",0.25]
[null,null,"material n06",0.3]
[null,null,"material n07",0.35]
[null,null,"material n08",0.4]
[null,null,"material n09",0.45]
[null,null,"material n10",0.5]
[null,null,"material n11",0.55000000000000004]
[null,null,"material n12",0.6]
[null,null,"material n13",0.65]
[null,null,"material n14",0.7]
[null,null,"material n15",0.75]
[null,null,"material n16",0.8]
[null,null,"material n17",0.85]
[null,null,"material n18",0.9]
[null,null,"material n19",0.95]
[null,null,"material n20",1]
[null,null,"Otro","-"]
[]
[]
[]
[171,{"$f":"\"Lista  \"  &A4250& \"  \"& LOOKUP(A4250,'entrada datos Urbanizacion'!$D$3:$D$89,'entrada datos Urbanizacion'!$H$3:$H$89)","v":"Lista  171  pavimento hormigón prefabricado"},"Sin materiall reciclado ",0]
[null,null,"ANDOVER- AGGREGATE INDUSTRIES",0.15]
[null,null,"CHARCON ECOKERB-AGGREGATE INDUSTRIES",0.2]
[null,null,"ECODRAIN-ICA – GRUPO  SORIGUE",0.5]
[null,null,"material n04",0.2]
[null,null,"material n05",0.25]
[null,null,"material n06",0.3]
[null,null,"material n07",0.35]
[null,null,"material n08",0.4]
[null,null,"material n09",0.45]
[null,null,"material n10",0.5]
[null,null,"material n11",0.55000000000000004]
[null,null,"material n12",0.6]
[null,null,"material n13",0.65]
[null,null,"material n14",0.7]
[null,null,"material n15",0.75]
[null,null,"material n16",0.8]
[null,null,"material n17",0.85]
[null,null,"material n18",0.9]
[null,null,"material n19",0.95]
[null,null,"material n20",1]
[null,null,"Otro","-"]
[]
[]
[]
[172,{"$f":"\"Lista  \"  &A4275& \"  \"& LOOKUP(A4275,'entrada datos Urbanizacion'!$D$3:$D$89,'entrada datos Urbanizacion'!$H$3:$H$89)","v":"Lista  172  pavimento de madera"},"Sin materiall reciclado ",0]
[null,null,"Baldosas con perfiles de plástico reciclado- ZICLA",1]
[null,null,"Pasarela TOSSA MAR- Recollida i Reciclatge SL",1]
[null,null,"Pasarela fija/enrollable-ZICLA",1]
[null,null,"material n04",0.2]
[null,null,"material n05",0.25]
[null,null,"material n06",0.3]
[null,null,"material n07",0.35]
[null,null,"material n08",0.4]
[null,null,"material n09",0.45]
[null,null,"material n10",0.5]
[null,null,"material n11",0.55000000000000004]
[null,null,"material n12",0.6]
[null,null,"material n13",0.65]
[null,null,"material n14",0.7]
[null,null,"material n15",0.75]
[null,null,"material n16",0.8]
[null,null,"material n17",0.85]
[null,null,"material n18",0.9]
[null,null,"material n19",0.95]
[null,null,"material n20",1]
[null,null,"Otro","-"]
[]
[]
[]
[173,{"$f":"\"Lista  \"  &A4300& \"  \"& LOOKUP(A4300,'entrada datos Urbanizacion'!$D$3:$D$89,'entrada datos Urbanizacion'!$H$3:$H$89)","v":"Lista  173  otros pavimentos"},"Sin materiall reciclado ",0]
[null,null,"material n01",0.05]
[null,null,"material n02",0.1]
[null,null,"material n03",0.15]
[null,null,"material n04",0.2]
[null,null,"material n05",0.25]
[null,null,"material n06",0.3]
[null,null,"material n07",0.35]
[null,null,"material n08",0.4]
[null,null,"material n09",0.45]
[null,null,"material n10",0.5]
[null,null,"material n11",0.55000000000000004]
[null,null,"material n12",0.6]
[null,null,"material n13",0.65]
[null,null,"material n14",0.7]
[null,null,"material n15",0.75]
[null,null,"material n16",0.8]
[null,null,"material n17",0.85]
[null,null,"material n18",0.9]
[null,null,"material n19",0.95]
[null,null,"material n20",1]
[null,null,"Otro","-"]
[]
[]
[]
[174,{"$f":"\"Lista  \"  &A4325& \"  \"& LOOKUP(A4325,'entrada datos Urbanizacion'!$D$3:$D$89,'entrada datos Urbanizacion'!$H$3:$H$89)","v":"Lista  174  base de pavimento peatonal"},"Sin materiall reciclado ",0]
[null,null,"material n01",0.05]
[null,null,"material n02",0.1]
[null,null,"material n03",0.15]
[null,null,"material n04",0.2]
[null,null,"material n05",0.25]
[null,null,"material n06",0.3]
[null,null,"material n07",0.35]
[null,null,"material n08",0.4]
[null,null,"material n09",0.45]
[null,null,"material n10",0.5]
[null,null,"material n11",0.55000000000000004]
[null,null,"material n12",0.6]
[null,null,"material n13",0.65]
[null,null,"material n14",0.7]
[null,null,"material n15",0.75]
[null,null,"material n16",0.8]
[null,null,"material n17",0.85]
[null,null,"material n18",0.9]
[null,null,"material n19",0.95]
[null,null,"material n20",1]
[null,null,"Otro","-"]
[]
[]
[]
[175,{"$f":"\"Lista  \"  &A4350& \"  \"& LOOKUP(A4350,'entrada datos Urbanizacion'!$D$3:$D$89,'entrada datos Urbanizacion'!$H$3:$H$89)","v":"Lista  175  peldaño granito"},"Sin materiall reciclado ",0]
[null,null,"material n01",0.05]
[null,null,"material n02",0.1]
[null,null,"material n03",0.15]
[null,null,"material n04",0.2]
[null,null,"material n05",0.25]
[null,null,"material n06",0.3]
[null,null,"material n07",0.35]
[null,null,"material n08",0.4]
[null,null,"material n09",0.45]
[null,null,"material n10",0.5]
[null,null,"material n11",0.55000000000000004]
[null,null,"material n12",0.6]
[null,null,"material n13",0.65]
[null,null,"material n14",0.7]
[null,null,"material n15",0.75]
[null,null,"material n16",0.8]
[null,null,"material n17",0.85]
[null,null,"material n18",0.9]
[null,null,"material n19",0.95]
[null,null,"material n20",1]
[null,null,"Otro","-"]
[]
[]
[]
[176,{"$f":"\"Lista  \"  &A4375& \"  \"& LOOKUP(A4375,'entrada datos Urbanizacion'!$D$3:$D$89,'entrada datos Urbanizacion'!$H$3:$H$89)","v":"Lista  176  bordillos, cunetas y alcorques"},"Sin materiall reciclado ",0]
[null,null,"material n01",0.05]
[null,null,"material n02",0.1]
[null,null,"material n03",0.15]
[null,null,"material n04",0.2]
[null,null,"material n05",0.25]
[null,null,"material n06",0.3]
[null,null,"material n07",0.35]
[null,null,"material n08",0.4]
[null,null,"material n09",0.45]
[null,null,"material n10",0.5]
[null,null,"material n11",0.55000000000000004]
[null,null,"material n12",0.6]
[null,null,"material n13",0.65]
[null,null,"material n14",0.7]
[null,null,"material n15",0.75]
[null,null,"material n16",0.8]
[null,null,"material n17",0.85]
[null,null,"material n18",0.9]
[null,null,"material n19",0.95]
[null,null,"material n20",1]
[null,null,"Otro","-"]
[]
[]
[]
[177,{"$f":"\"Lista  \"  &A4400& \"  \"& LOOKUP(A4400,'entrada datos Urbanizacion'!$D$3:$D$89,'entrada datos Urbanizacion'!$H$3:$H$89)","v":"Lista  177  riego de adherencia"},"Sin materiall reciclado ",0]
[null,null,"material n01",0.05]
[null,null,"material n02",0.1]
[null,null,"material n03",0.15]
[null,null,"material n04",0.2]
[null,null,"material n05",0.25]
[null,null,"material n06",0.3]
[null,null,"material n07",0.35]
[null,null,"material n08",0.4]
[null,null,"material n09",0.45]
[null,null,"material n10",0.5]
[null,null,"material n11",0.55000000000000004]
[null,null,"material n12",0.6]
[null,null,"material n13",0.65]
[null,null,"material n14",0.7]
[null,null,"material n15",0.75]
[null,null,"material n16",0.8]
[null,null,"material n17",0.85]
[null,null,"material n18",0.9]
[null,null,"material n19",0.95]
[null,null,"material n20",1]
[null,null,"Otro","-"]
[]
[]
[]
[178,{"$f":"\"Lista  \"  &A4425& \"  \"& LOOKUP(A4425,'entrada datos Urbanizacion'!$D$3:$D$89,'entrada datos Urbanizacion'!$H$3:$H$89)","v":"Lista  178  riego de imprimación"},"Sin materiall reciclado ",0]
[null,null,"material n01",0.05]
[null,null,"material n02",0.1]
[null,null,"material n03",0.15]
[null,null,"material n04",0.2]
[null,null,"material n05",0.25]
[null,null,"material n06",0.3]
[null,null,"material n07",0.35]
[null,null,"material n08",0.4]
[null,null,"material n09",0.45]
[null,null,"material n10",0.5]
[null,null,"material n11",0.55000000000000004]
[null,null,"material n12",0.6]
[null,null,"material n13",0.65]
[null,null,"material n14",0.7]
[null,null,"material n15",0.75]
[null,null,"material n16",0.8]
[null,null,"material n17",0.85]
[null,null,"material n18",0.9]
[null,null,"material n19",0.95]
[null,null,"material n20",1]
[null,null,"Otro","-"]
[]
[]
[]
[179,{"$f":"\"Lista  \"  &A4450& \"  \"& LOOKUP(A4450,'entrada datos Urbanizacion'!$D$3:$D$89,'entrada datos Urbanizacion'!$H$3:$H$89)","v":"Lista  179  riego de curado"},"Sin materiall reciclado ",0]
[null,null,"material n01",0.05]
[null,null,"material n02",0.1]
[null,null,"material n03",0.15]
[null,null,"material n04",0.2]
[null,null,"material n05",0.25]
[null,null,"material n06",0.3]
[null,null,"material n07",0.35]
[null,null,"material n08",0.4]
[null,null,"material n09",0.45]
[null,null,"material n10",0.5]
[null,null,"material n11",0.55000000000000004]
[null,null,"material n12",0.6]
[null,null,"material n13",0.65]
[null,null,"material n14",0.7]
[null,null,"material n15",0.75]
[null,null,"material n16",0.8]
[null,null,"material n17",0.85]
[null,null,"material n18",0.9]
[null,null,"material n19",0.95]
[null,null,"material n20",1]
[null,null,"Otro","-"]
[]
[]
[]
[180,{"$f":"\"Lista  \"  &A4475& \"  \"& LOOKUP(A4475,'entrada datos Urbanizacion'!$D$3:$D$89,'entrada datos Urbanizacion'!$H$3:$H$89)","v":"Lista  180  riego de penetración"},"Sin materiall reciclado ",0]
[null,null,"material n01",0.05]
[null,null,"material n02",0.1]
[null,null,"material n03",0.15]
[null,null,"material n04",0.2]
[null,null,"material n05",0.25]
[null,null,"material n06",0.3]
[null,null,"material n07",0.35]
[null,null,"material n08",0.4]
[null,null,"material n09",0.45]
[null,null,"material n10",0.5]
[null,null,"material n11",0.55000000000000004]
[null,null,"material n12",0.6]
[null,null,"material n13",0.65]
[null,null,"material n14",0.7]
[null,null,"material n15",0.75]
[null,null,"material n16",0.8]
[null,null,"material n17",0.85]
[null,null,"material n18",0.9]
[null,null,"material n19",0.95]
[null,null,"material n20",1]
[null,null,"Otro","-"]
[]
[]
[]
[181,{"$f":"\"Lista  \"  &A4500& \"  \"& LOOKUP(A4500,'entrada datos Urbanizacion'!$D$3:$D$89,'entrada datos Urbanizacion'!$H$3:$H$89)","v":"Lista  181  tratamientos especiales"},"Sin materiall reciclado ",0]
[null,null,"material n01",0.05]
[null,null,"material n02",0.1]
[null,null,"material n03",0.15]
[null,null,"material n04",0.2]
[null,null,"material n05",0.25]
[null,null,"material n06",0.3]
[null,null,"material n07",0.35]
[null,null,"material n08",0.4]
[null,null,"material n09",0.45]
[null,null,"material n10",0.5]
[null,null,"material n11",0.55000000000000004]
[null,null,"material n12",0.6]
[null,null,"material n13",0.65]
[null,null,"material n14",0.7]
[null,null,"material n15",0.75]
[null,null,"material n16",0.8]
[null,null,"material n17",0.85]
[null,null,"material n18",0.9]
[null,null,"material n19",0.95]
[null,null,"material n20",1]
[null,null,"Otro","-"]
[]
[]
[]
[182,{"$f":"\"Lista  \"  &A4525& \"  \"& LOOKUP(A4525,'entrada datos Urbanizacion'!$D$3:$D$89,'entrada datos Urbanizacion'!$H$3:$H$89)","v":"Lista  182  pantallas acusticas"},"Sin materiall reciclado ",0]
[null,null,"T SONIC- ANTONIO CASADO Y CIA, S.L.",1]
[null,null,"ECOPLACK- ZICLA",1]
[null,null,"material n03",0.15]
[null,null,"material n04",0.2]
[null,null,"material n05",0.25]
[null,null,"material n06",0.3]
[null,null,"material n07",0.35]
[null,null,"material n08",0.4]
[null,null,"material n09",0.45]
[null,null,"material n10",0.5]
[null,null,"material n11",0.55000000000000004]
[null,null,"material n12",0.6]
[null,null,"material n13",0.65]
[null,null,"material n14",0.7]
[null,null,"material n15",0.75]
[null,null,"material n16",0.8]
[null,null,"material n17",0.85]
[null,null,"material n18",0.9]
[null,null,"material n19",0.95]
[null,null,"material n20",1]
[null,null,"Otro","-"]
[]
[]
[]
[183,{"$f":"\"Lista  \"  &A4550& \"  \"& LOOKUP(A4550,'entrada datos Urbanizacion'!$D$3:$D$89,'entrada datos Urbanizacion'!$H$3:$H$89)","v":"Lista  183  barandillas y barreras"},"Sin materiall reciclado ",0]
[null,null,"material n01",0.05]
[null,null,"material n02",0.1]
[null,null,"material n03",0.15]
[null,null,"material n04",0.2]
[null,null,"material n05",0.25]
[null,null,"material n06",0.3]
[null,null,"material n07",0.35]
[null,null,"material n08",0.4]
[null,null,"material n09",0.45]
[null,null,"material n10",0.5]
[null,null,"material n11",0.55000000000000004]
[null,null,"material n12",0.6]
[null,null,"material n13",0.65]
[null,null,"material n14",0.7]
[null,null,"material n15",0.75]
[null,null,"material n16",0.8]
[null,null,"material n17",0.85]
[null,null,"material n18",0.9]
[null,null,"material n19",0.95]
[null,null,"material n20",1]
[null,null,"Otro","-"]
[]
[]
[]
[184,{"$f":"\"Lista  \"  &A4575& \"  \"& LOOKUP(A4575,'entrada datos Urbanizacion'!$D$3:$D$89,'entrada datos Urbanizacion'!$H$3:$H$89)","v":"Lista  184  Elementos de movilidad (plataformas y balizamiento)"},"Sin materiall reciclado ",0]
[null,null,"ZEBRA-ZICLA",1]
[null,null,"Plataforma Bus-ZICLA",1]
[null,null,"material n03",0.15]
[null,null,"material n04",0.2]
[null,null,"material n05",0.25]
[null,null,"material n06",0.3]
[null,null,"material n07",0.35]
[null,null,"material n08",0.4]
[null,null,"material n09",0.45]
[null,null,"material n10",0.5]
[null,null,"material n11",0.55000000000000004]
[null,null,"material n12",0.6]
[null,null,"material n13",0.65]
[null,null,"material n14",0.7]
[null,null,"material n15",0.75]
[null,null,"material n16",0.8]
[null,null,"material n17",0.85]
[null,null,"material n18",0.9]
[null,null,"material n19",0.95]
[null,null,"material n20",1]
[null,null,"Otro","-"]
[]
[]
[]
[185,{"$f":"\"Lista  \"  &A4600& \"  \"& LOOKUP(A4600,'entrada datos Urbanizacion'!$D$3:$D$89,'entrada datos Urbanizacion'!$H$3:$H$89)","v":"Lista  185  señales"},"Sin materiall reciclado ",0]
[null,null,"material n01",0.05]
[null,null,"material n02",0.1]
[null,null,"material n03",0.15]
[null,null,"material n04",0.2]
[null,null,"material n05",0.25]
[null,null,"material n06",0.3]
[null,null,"material n07",0.35]
[null,null,"material n08",0.4]
[null,null,"material n09",0.45]
[null,null,"material n10",0.5]
[null,null,"material n11",0.55000000000000004]
[null,null,"material n12",0.6]
[null,null,"material n13",0.65]
[null,null,"material n14",0.7]
[null,null,"material n15",0.75]
[null,null,"material n16",0.8]
[null,null,"material n17",0.85]
[null,null,"material n18",0.9]
[null,null,"material n19",0.95]
[null,null,"material n20",1]
[null,null,"Otro","-"]
[]
[]
[]
[186,{"$f":"\"Lista  \"  &A4625& \"  \"& LOOKUP(A4625,'entrada datos Urbanizacion'!$D$3:$D$89,'entrada datos Urbanizacion'!$H$3:$H$89)","v":"Lista  186  espejos"},"Sin materiall reciclado ",0]
[null,null,"material n01",0.05]
[null,null,"material n02",0.1]
[null,null,"material n03",0.15]
[null,null,"material n04",0.2]
[null,null,"material n05",0.25]
[null,null,"material n06",0.3]
[null,null,"material n07",0.35]
[null,null,"material n08",0.4]
[null,null,"material n09",0.45]
[null,null,"material n10",0.5]
[null,null,"material n11",0.55000000000000004]
[null,null,"material n12",0.6]
[null,null,"material n13",0.65]
[null,null,"material n14",0.7]
[null,null,"material n15",0.75]
[null,null,"material n16",0.8]
[null,null,"material n17",0.85]
[null,null,"material n18",0.9]
[null,null,"material n19",0.95]
[null,null,"material n20",1]
[null,null,"Otro","-"]
[]
[]
[]
[187,{"$f":"\"Lista  \"  &A4650& \"  \"& LOOKUP(A4650,'entrada datos Urbanizacion'!$D$3:$D$89,'entrada datos Urbanizacion'!$H$3:$H$89)","v":"Lista  187  bolardos y pilonas"},"Sin materiall reciclado ",0]
[null,null,"material n01",0.05]
[null,null,"material n02",0.1]
[null,null,"material n03",0.15]
[null,null,"material n04",0.2]
[null,null,"material n05",0.25]
[null,null,"material n06",0.3]
[null,null,"material n07",0.35]
[null,null,"material n08",0.4]
[null,null,"material n09",0.45]
[null,null,"material n10",0.5]
[null,null,"material n11",0.55000000000000004]
[null,null,"material n12",0.6]
[null,null,"material n13",0.65]
[null,null,"material n14",0.7]
[null,null,"material n15",0.75]
[null,null,"material n16",0.8]
[null,null,"material n17",0.85]
[null,null,"material n18",0.9]
[null,null,"material n19",0.95]
[null,null,"material n20",1]
[null,null,"Otro","-"]
[]
[]
[]
[188,{"$f":"\"Lista  \"  &A4675& \"  \"& LOOKUP(A4675,'entrada datos Urbanizacion'!$D$3:$D$89,'entrada datos Urbanizacion'!$H$3:$H$89)","v":"Lista  188  bancos y mesas"},"Sin materiall reciclado ",0]
[null,null,"ROMANTICO - ZICLA",1]
[null,null,"VICTORIA-ZICLA",1]
[null,null,"Mesa Picnic TONA - Recollida i Reciclatge SL",1]
[null,null,"material n04",0.2]
[null,null,"material n05",0.25]
[null,null,"material n06",0.3]
[null,null,"material n07",0.35]
[null,null,"material n08",0.4]
[null,null,"material n09",0.45]
[null,null,"material n10",0.5]
[null,null,"material n11",0.55000000000000004]
[null,null,"material n12",0.6]
[null,null,"material n13",0.65]
[null,null,"material n14",0.7]
[null,null,"material n15",0.75]
[null,null,"material n16",0.8]
[null,null,"material n17",0.85]
[null,null,"material n18",0.9]
[null,null,"material n19",0.95]
[null,null,"material n20",1]
[null,null,"Otro","-"]
[]
[]
[]
[189,{"$f":"\"Lista  \"  &A4700& \"  \"& LOOKUP(A4700,'entrada datos Urbanizacion'!$D$3:$D$89,'entrada datos Urbanizacion'!$H$3:$H$89)","v":"Lista  189  fuentes"},"Sin materiall reciclado ",0]
[null,null,"material n01",0.05]
[null,null,"material n02",0.1]
[null,null,"material n03",0.15]
[null,null,"material n04",0.2]
[null,null,"material n05",0.25]
[null,null,"material n06",0.3]
[null,null,"material n07",0.35]
[null,null,"material n08",0.4]
[null,null,"material n09",0.45]
[null,null,"material n10",0.5]
[null,null,"material n11",0.55000000000000004]
[null,null,"material n12",0.6]
[null,null,"material n13",0.65]
[null,null,"material n14",0.7]
[null,null,"material n15",0.75]
[null,null,"material n16",0.8]
[null,null,"material n17",0.85]
[null,null,"material n18",0.9]
[null,null,"material n19",0.95]
[null,null,"material n20",1]
[null,null,"Otro","-"]
[]
[]
[]
[190,{"$f":"\"Lista  \"  &A4725& \"  \"& LOOKUP(A4725,'entrada datos Urbanizacion'!$D$3:$D$89,'entrada datos Urbanizacion'!$H$3:$H$89)","v":"Lista  190  papeleras"},"Sin materiall reciclado ",0]
[null,null,"Barcelona, Capri, Elche-ZICLA",1]
[null,null,"SAU- Recollida i Reciclatge SL",1]
[null,null,"SUSQUEDA-Recollida i Reciclatge SL",1]
[null,null,"material n04",0.2]
[null,null,"material n05",0.25]
[null,null,"material n06",0.3]
[null,null,"material n07",0.35]
[null,null,"material n08",0.4]
[null,null,"material n09",0.45]
[null,null,"material n10",0.5]
[null,null,"material n11",0.55000000000000004]
[null,null,"material n12",0.6]
[null,null,"material n13",0.65]
[null,null,"material n14",0.7]
[null,null,"material n15",0.75]
[null,null,"material n16",0.8]
[null,null,"material n17",0.85]
[null,null,"material n18",0.9]
[null,null,"material n19",0.95]
[null,null,"material n20",1]
[null,null,"Otro","-"]
[]
[]
[]
[191,{"$f":"\"Lista  \"  &A4750& \"  \"& LOOKUP(A4750,'entrada datos Urbanizacion'!$D$3:$D$89,'entrada datos Urbanizacion'!$H$3:$H$89)","v":"Lista  191  jardineras"},"Sin materiall reciclado ",0]
[null,null,"TAVERTET- Recollida i Reciclatge SL",1]
[null,null,"GUILLERIES- Recollida i Reciclatge SL",1]
[null,null,"LA PLANA- Recollida i Reciclatge SL",1]
[null,null,"material n04",0.2]
[null,null,"material n05",0.25]
[null,null,"material n06",0.3]
[null,null,"material n07",0.35]
[null,null,"material n08",0.4]
[null,null,"material n09",0.45]
[null,null,"material n10",0.5]
[null,null,"material n11",0.55000000000000004]
[null,null,"material n12",0.6]
[null,null,"material n13",0.65]
[null,null,"material n14",0.7]
[null,null,"material n15",0.75]
[null,null,"material n16",0.8]
[null,null,"material n17",0.85]
[null,null,"material n18",0.9]
[null,null,"material n19",0.95]
[null,null,"material n20",1]
[null,null,"Otro","-"]
[]
[]
[]
[192,{"$f":"\"Lista  \"  &A4775& \"  \"& LOOKUP(A4775,'entrada datos Urbanizacion'!$D$3:$D$89,'entrada datos Urbanizacion'!$H$3:$H$89)","v":"Lista  192  elementos de jardineria"},"Sin materiall reciclado ",0]
[null,null,"BORDURA TAURO-ZICLA",1]
[null,null,"Árido decorativo cerámico-ZICLA",1]
[null,null,"MULCH inorgánico procedente de caucho de neumático-ZICLA",1]
[null,null,"Recydren-ZICLA",1]
[null,null,"TOT-ú (árido cerámico)-ZICLA",1]
[null,null,"material n06",0.3]
[null,null,"material n07",0.35]
[null,null,"material n08",0.4]
[null,null,"material n09",0.45]
[null,null,"material n10",0.5]
[null,null,"material n11",0.55000000000000004]
[null,null,"material n12",0.6]
[null,null,"material n13",0.65]
[null,null,"material n14",0.7]
[null,null,"material n15",0.75]
[null,null,"material n16",0.8]
[null,null,"material n17",0.85]
[null,null,"material n18",0.9]
[null,null,"material n19",0.95]
[null,null,"material n20",1]
[null,null,"Otro","-"]
[]
[]
[]
[193,{"$f":"\"Lista  \"  &A4800& \"  \"& LOOKUP(A4800,'entrada datos Urbanizacion'!$D$3:$D$89,'entrada datos Urbanizacion'!$H$3:$H$89)","v":"Lista  193  paseos y pasarelas"},"Sin materiall reciclado ",0]
[null,null,"Pasarela TOSSA MAR- Recollida i Reciclatge SL",1]
[null,null,"Pasarela fija/enrollable-ZICLA",1]
[null,null,"material n03",0.15]
[null,null,"material n04",0.2]
[null,null,"material n05",0.25]
[null,null,"material n06",0.3]
[null,null,"material n07",0.35]
[null,null,"material n08",0.4]
[null,null,"material n09",0.45]
[null,null,"material n10",0.5]
[null,null,"material n11",0.55000000000000004]
[null,null,"material n12",0.6]
[null,null,"material n13",0.65]
[null,null,"material n14",0.7]
[null,null,"material n15",0.75]
[null,null,"material n16",0.8]
[null,null,"material n17",0.85]
[null,null,"material n18",0.9]
[null,null,"material n19",0.95]
[null,null,"material n20",1]
[null,null,"Otro","-"]
[]
[]
[]
[194,{"$f":"\"Lista  \"  &A4825& \"  \"& LOOKUP(A4825,'entrada datos Urbanizacion'!$D$3:$D$89,'entrada datos Urbanizacion'!$H$3:$H$89)","v":"Lista  194  juegos infantiles"},"Sin materiall reciclado ",0]
[null,null,"material n01",0.05]
[null,null,"material n02",0.1]
[null,null,"material n03",0.15]
[null,null,"material n04",0.2]
[null,null,"material n05",0.25]
[null,null,"material n06",0.3]
[null,null,"material n07",0.35]
[null,null,"material n08",0.4]
[null,null,"material n09",0.45]
[null,null,"material n10",0.5]
[null,null,"material n11",0.55000000000000004]
[null,null,"material n12",0.6]
[null,null,"material n13",0.65]
[null,null,"material n14",0.7]
[null,null,"material n15",0.75]
[null,null,"material n16",0.8]
[null,null,"material n17",0.85]
[null,null,"material n18",0.9]
[null,null,"material n19",0.95]
[null,null,"material n20",1]
[null,null,"Otro","-"]
[]
[]
[]
[195,{"$f":"\"Lista  \"  &A4850& \"  \"& LOOKUP(A4850,'entrada datos Urbanizacion'!$D$3:$D$89,'entrada datos Urbanizacion'!$H$3:$H$89)","v":"Lista  195  alcorques"},"Sin materiall reciclado ",0]
[null,null,"material n01",0.05]
[null,null,"material n02",0.1]
[null,null,"material n03",0.15]
[null,null,"material n04",0.2]
[null,null,"material n05",0.25]
[null,null,"material n06",0.3]
[null,null,"material n07",0.35]
[null,null,"material n08",0.4]
[null,null,"material n09",0.45]
[null,null,"material n10",0.5]
[null,null,"material n11",0.55000000000000004]
[null,null,"material n12",0.6]
[null,null,"material n13",0.65]
[null,null,"material n14",0.7]
[null,null,"material n15",0.75]
[null,null,"material n16",0.8]
[null,null,"material n17",0.85]
[null,null,"material n18",0.9]
[null,null,"material n19",0.95]
[null,null,"material n20",1]
[null,null,"Otro","-"]
[]
[]
[]
[196,{"$f":"\"Lista  \"  &A4875& \"  \"& LOOKUP(A4875,'entrada datos Urbanizacion'!$D$3:$D$89,'entrada datos Urbanizacion'!$H$3:$H$89)","v":"Lista  196  protecciones"},"Sin materiall reciclado ",0]
[null,null,"material n01",0.05]
[null,null,"material n02",0.1]
[null,null,"material n03",0.15]
[null,null,"material n04",0.2]
[null,null,"material n05",0.25]
[null,null,"material n06",0.3]
[null,null,"material n07",0.35]
[null,null,"material n08",0.4]
[null,null,"material n09",0.45]
[null,null,"material n10",0.5]
[null,null,"material n11",0.55000000000000004]
[null,null,"material n12",0.6]
[null,null,"material n13",0.65]
[null,null,"material n14",0.7]
[null,null,"material n15",0.75]
[null,null,"material n16",0.8]
[null,null,"material n17",0.85]
[null,null,"material n18",0.9]
[null,null,"material n19",0.95]
[null,null,"material n20",1]
[null,null,"Otro","-"]
[]
[]
[]
[197,{"$f":"\"Lista  \"  &A4900& \"  \"& LOOKUP(A4900,'entrada datos Urbanizacion'!$D$3:$D$89,'entrada datos Urbanizacion'!$H$3:$H$89)","v":"Lista  197  vallas"},"Sin materiall reciclado ",0]
[null,null,"Huesca-ZICLA",1]
[null,null,"Cuenca-ZICLA",1]
[null,null,"Ibiza-ZICLA",1]
[null,null,"material n04",0.2]
[null,null,"material n05",0.25]
[null,null,"material n06",0.3]
[null,null,"material n07",0.35]
[null,null,"material n08",0.4]
[null,null,"material n09",0.45]
[null,null,"material n10",0.5]
[null,null,"material n11",0.55000000000000004]
[null,null,"material n12",0.6]
[null,null,"material n13",0.65]
[null,null,"material n14",0.7]
[null,null,"material n15",0.75]
[null,null,"material n16",0.8]
[null,null,"material n17",0.85]
[null,null,"material n18",0.9]
[null,null,"material n19",0.95]
[null,null,"material n20",1]
[null,null,"Otro","-"]
[]
[]
[]
[198,{"$f":"\"Lista  \"  &A4925& \"  \"& LOOKUP(A4925,'entrada datos Urbanizacion'!$D$3:$D$89,'entrada datos Urbanizacion'!$H$3:$H$89)","v":"Lista  198  aparcabicicletas"},"Sin materiall reciclado ",0]
[null,null,"APARCABICIS MADERA- Recollida i Reciclatge SL",0.05]
[null,null,"material n02",0.1]
[null,null,"material n03",0.15]
[null,null,"material n04",0.2]
[null,null,"material n05",0.25]
[null,null,"material n06",0.3]
[null,null,"material n07",0.35]
[null,null,"material n08",0.4]
[null,null,"material n09",0.45]
[null,null,"material n10",0.5]
[null,null,"material n11",0.55000000000000004]
[null,null,"material n12",0.6]
[null,null,"material n13",0.65]
[null,null,"material n14",0.7]
[null,null,"material n15",0.75]
[null,null,"material n16",0.8]
[null,null,"material n17",0.85]
[null,null,"material n18",0.9]
[null,null,"material n19",0.95]
[null,null,"material n20",1]
[null,null,"Otro","-"]
[]
[]
[]
[199,{"$f":"\"Lista  \"  &A4950& \"  \"& LOOKUP(A4950,'entrada datos Urbanizacion'!$D$3:$D$89,'entrada datos Urbanizacion'!$H$3:$H$89)","v":"Lista  199  red abastecimiento"},"Sin materiall reciclado ",0]
[null,null,"PP-R PIPES- AQUATHERM GMBH ",0.05]
[null,null,"material n02",0.1]
[null,null,"material n03",0.15]
[null,null,"material n04",0.2]
[null,null,"material n05",0.25]
[null,null,"material n06",0.3]
[null,null,"material n07",0.35]
[null,null,"material n08",0.4]
[null,null,"material n09",0.45]
[null,null,"material n10",0.5]
[null,null,"material n11",0.55000000000000004]
[null,null,"material n12",0.6]
[null,null,"material n13",0.65]
[null,null,"material n14",0.7]
[null,null,"material n15",0.75]
[null,null,"material n16",0.8]
[null,null,"material n17",0.85]
[null,null,"material n18",0.9]
[null,null,"material n19",0.95]
[null,null,"material n20",1]
[null,null,"Otro","-"]
[]
[]
[]
[200,{"$f":"\"Lista  \"  &A4975& \"  \"& LOOKUP(A4975,'entrada datos Urbanizacion'!$D$3:$D$89,'entrada datos Urbanizacion'!$H$3:$H$89)","v":"Lista  200  red saneamiento"},"Sin materiall reciclado ",0]
[null,null,"material n01",0.05]
[null,null,"material n02",0.1]
[null,null,"material n03",0.15]
[null,null,"material n04",0.2]
[null,null,"material n05",0.25]
[null,null,"material n06",0.3]
[null,null,"material n07",0.35]
[null,null,"material n08",0.4]
[null,null,"material n09",0.45]
[null,null,"material n10",0.5]
[null,null,"material n11",0.55000000000000004]
[null,null,"material n12",0.6]
[null,null,"material n13",0.65]
[null,null,"material n14",0.7]
[null,null,"material n15",0.75]
[null,null,"material n16",0.8]
[null,null,"material n17",0.85]
[null,null,"material n18",0.9]
[null,null,"material n19",0.95]
[null,null,"material n20",1]
[null,null,"Otro","-"]
[]
[]
[]
[201,{"$f":"\"Lista  \"  &A5000& \"  \"& LOOKUP(A5000,'entrada datos Urbanizacion'!$D$3:$D$89,'entrada datos Urbanizacion'!$H$3:$H$89)","v":"Lista  201  red electricidad"},"Sin materiall reciclado ",0]
[null,null,"material n01",0.05]
[null,null,"material n02",0.1]
[null,null,"material n03",0.15]
[null,null,"material n04",0.2]
[null,null,"material n05",0.25]
[null,null,"material n06",0.3]
[null,null,"material n07",0.35]
[null,null,"material n08",0.4]
[null,null,"material n09",0.45]
[null,null,"material n10",0.5]
[null,null,"material n11",0.55000000000000004]
[null,null,"material n12",0.6]
[null,null,"material n13",0.65]
[null,null,"material n14",0.7]
[null,null,"material n15",0.75]
[null,null,"material n16",0.8]
[null,null,"material n17",0.85]
[null,null,"material n18",0.9]
[null,null,"material n19",0.95]
[null,null,"material n20",1]
[null,null,"Otro","-"]
[]
[]
[]
[202,{"$f":"\"Lista  \"  &A5025& \"  \"& LOOKUP(A5025,'entrada datos Urbanizacion'!$D$3:$D$89,'entrada datos Urbanizacion'!$H$3:$H$89)","v":"Lista  202  red gas"},"Sin materiall reciclado ",0]
[null,null,"material n01",0.05]
[null,null,"material n02",0.1]
[null,null,"material n03",0.15]
[null,null,"material n04",0.2]
[null,null,"material n05",0.25]
[null,null,"material n06",0.3]
[null,null,"material n07",0.35]
[null,null,"material n08",0.4]
[null,null,"material n09",0.45]
[null,null,"material n10",0.5]
[null,null,"material n11",0.55000000000000004]
[null,null,"material n12",0.6]
[null,null,"material n13",0.65]
[null,null,"material n14",0.7]
[null,null,"material n15",0.75]
[null,null,"material n16",0.8]
[null,null,"material n17",0.85]
[null,null,"material n18",0.9]
[null,null,"material n19",0.95]
[null,null,"material n20",1]
[null,null,"Otro","-"]
[]
[]
[]
[203,{"$f":"\"Lista  \"  &A5050& \"  \"& LOOKUP(A5050,'entrada datos Urbanizacion'!$D$3:$D$89,'entrada datos Urbanizacion'!$H$3:$H$89)","v":"Lista  203  otros"},"Sin materiall reciclado ",0]
[null,null,"material n01",0.05]
[null,null,"material n02",0.1]
[null,null,"material n03",0.15]
[null,null,"material n04",0.2]
[null,null,"material n05",0.25]
[null,null,"material n06",0.3]
[null,null,"material n07",0.35]
[null,null,"material n08",0.4]
[null,null,"material n09",0.45]
[null,null,"material n10",0.5]
[null,null,"material n11",0.55000000000000004]
[null,null,"material n12",0.6]
[null,null,"material n13",0.65]
[null,null,"material n14",0.7]
[null,null,"material n15",0.75]
[null,null,"material n16",0.8]
[null,null,"material n17",0.85]
[null,null,"material n18",0.9]
[null,null,"material n19",0.95]
[null,null,"material n20",1]
[null,null,"Otro","-"]